Organisation name,Organisation Code,Effective date,Directorate / service where expenditure incurred,Service Category label,Service category URI,Supplier (Beneficiary) name,Local supplier (beneficiary) internal reference,Supplier,Supplier registered charity number,VCSE grant,Payment date - G/L Date,Transaction number,Net Amount,Irrecoverable VAT,"Purpose of spend
Account Description",Procurement classification / merchant category: Council�s procurement category name,Procurement classification / merchant category: CPV label,Procurement classification / merchant category: CPV code,Procurement classification / merchant category: Proclass label,Procurement classification / merchant category: Proclass code,Card Transaction,Contract reference
The Royal Borough of Kensington and Chelsea,RBKC,,Housing Commissioning,HCM,,Anchor Trust,,,,,02/01/2015,PI1024208,899.42,,Accommodation based service,,,,,,No,
The Royal Borough of Kensington and Chelsea,RBKC,,Housing Commissioning,HCM,,Anchor Trust,,,,,02/01/2015,PI1024209,788.50,,Accommodation based service,,,,,,No,
The Royal Borough of Kensington and Chelsea,RBKC,,Tri-Borough Education Service,SED,,Ashburnham Community School,,,,,02/01/2015,P41024136,"1,656.00",,LEA Current year,,,,,,No,
The Royal Borough of Kensington and Chelsea,RBKC,,Tri-Borough Education Service,SED,,Ashburnham Community School,,,,,02/01/2015,P41024136,"1,656.00",,LEA Current year,,,,,,No,
The Royal Borough of Kensington and Chelsea,RBKC,,Tri-Borough Education Service,SED,,Ashburnham Community School,,,,,02/01/2015,P41024136,"3,190.00",,LEA Current year,,,,,,No,
The Royal Borough of Kensington and Chelsea,RBKC,,Tri-Borough Education Service,SED,,Avondale Park Primary School,,,,,02/01/2015,P41024137,"2,480.67",,LEA Current year,,,,,,No,
The Royal Borough of Kensington and Chelsea,RBKC,,Tri-Borough Education Service,SED,,Avondale Park Primary School,,,,,02/01/2015,P41024137,990.36,,LEA Current year,,,,,,No,
The Royal Borough of Kensington and Chelsea,RBKC,,Tri-Borough Education Service,SED,,Avondale Park Primary School,,,,,02/01/2015,P41024137,"2,480.67",,LEA Current year,,,,,,No,
The Royal Borough of Kensington and Chelsea,RBKC,,Tri-Borough Education Service,SED,,Avondale Park Primary School,,,,,02/01/2015,P41024137,"2,480.66",,LEA Current year,,,,,,No,
The Royal Borough of Kensington and Chelsea,RBKC,,Tri-Borough Education Service,SED,,Barlby Primary School,,,,,02/01/2015,P41024138,555.98,,LEA Current year,,,,,,No,
The Royal Borough of Kensington and Chelsea,RBKC,,Tri-Borough Education Service,SED,,Barlby Primary School,,,,,02/01/2015,P41024138,"2,480.67",,LEA Current year,,,,,,No,
The Royal Borough of Kensington and Chelsea,RBKC,,Tri-Borough Education Service,SED,,Barlby Primary School,,,,,02/01/2015,P41024138,"2,480.67",,LEA Current year,,,,,,No,
The Royal Borough of Kensington and Chelsea,RBKC,,Tri-Borough Education Service,SED,,Barlby Primary School,,,,,02/01/2015,P41024138,"1,105.89",,LEA Current year,,,,,,No,
The Royal Borough of Kensington and Chelsea,RBKC,,Tri-Borough Education Service,SED,,Barlby Primary School,,,,,02/01/2015,P41024138,"1,655.80",,LEA Current year,,,,,,No,
The Royal Borough of Kensington and Chelsea,RBKC,,Tri-Borough Education Service,SED,,Barlby Primary School,,,,,02/01/2015,P41024138,"1,105.89",,LEA Current year,,,,,,No,
The Royal Borough of Kensington and Chelsea,RBKC,,Tri-Borough Education Service,SED,,Barlby Primary School,,,,,02/01/2015,P41024138,555.98,,LEA Current year,,,,,,No,
The Royal Borough of Kensington and Chelsea,RBKC,,Tri-Borough Education Service,SED,,Barlby Primary School,,,,,02/01/2015,P41024138,"1,105.89",,LEA Current year,,,,,,No,
The Royal Borough of Kensington and Chelsea,RBKC,,Tri-Borough Education Service,SED,,Barlby Primary School,,,,,02/01/2015,P41024138,"1,655.80",,LEA Current year,,,,,,No,
The Royal Borough of Kensington and Chelsea,RBKC,,Tri-Borough Education Service,SED,,Barlby Primary School,,,,,02/01/2015,P41024138,"1,105.89",,LEA Current year,,,,,,No,
The Royal Borough of Kensington and Chelsea,RBKC,,Tri-Borough Education Service,SED,,Bevington Primary School,,,,,02/01/2015,P41024139,"1,655.80",,LEA Current year,,,,,,No,
The Royal Borough of Kensington and Chelsea,RBKC,,Tri-Borough Education Service,SED,,Bevington Primary School,,,,,02/01/2015,P41024139,"1,655.80",,LEA Current year,,,,,,No,
The Royal Borough of Kensington and Chelsea,RBKC,,Tri-Borough Education Service,SED,,Bevington Primary School,,,,,02/01/2015,P41024139,"2,480.67",,LEA Current year,,,,,,No,
The Royal Borough of Kensington and Chelsea,RBKC,,Tri-Borough Education Service,SED,,Bevington Primary School,,,,,02/01/2015,P41024139,"1,105.89",,LEA Current year,,,,,,No,
The Royal Borough of Kensington and Chelsea,RBKC,,Tri-Borough Education Service,SED,,Bevington Primary School,,,,,02/01/2015,P41024139,"1,105.89",,LEA Current year,,,,,,No,
The Royal Borough of Kensington and Chelsea,RBKC,,Non Revenue,001,,Bluebird Care (Kensington & Chelsea),,,,,02/01/2015,P41024157,807.61,,Payments,,,,,,No,
The Royal Borough of Kensington and Chelsea,RBKC,,Non Revenue,001,,Bluebird Care (Kensington & Chelsea),,,,,02/01/2015,P41024167,986.96,,Payments,,,,,,No,
The Royal Borough of Kensington and Chelsea,RBKC,,Tri-Borough Education Service,SED,,Bousfield Primary School,,,,,02/01/2015,P41024140,"1,655.80",,LEA Current year,,,,,,No,
The Royal Borough of Kensington and Chelsea,RBKC,,Tri-Borough Education Service,SED,,Bousfield Primary School,,,,,02/01/2015,P41024140,555.98,,LEA Current year,,,,,,No,
The Royal Borough of Kensington and Chelsea,RBKC,,Tri-Borough Education Service,SED,,Bousfield Primary School,,,,,02/01/2015,P41024140,"2,480.67",,LEA Current year,,,,,,No,
The Royal Borough of Kensington and Chelsea,RBKC,,Tri-Borough Education Service,SED,,Bousfield Primary School,,,,,02/01/2015,P41024140,"1,105.89",,LEA Current year,,,,,,No,
The Royal Borough of Kensington and Chelsea,RBKC,,Tri-Borough Education Service,SED,,Bousfield Primary School,,,,,02/01/2015,P41024140,"1,105.89",,LEA Current year,,,,,,No,
The Royal Borough of Kensington and Chelsea,RBKC,,Tri-Borough Education Service,SED,,Bousfield Primary School,,,,,02/01/2015,P41024140,"5,173.96",,LEA Current year,,,,,,No,
The Royal Borough of Kensington and Chelsea,RBKC,,Safer Neighbourhoods,YSN,,C J Jordan & Son Ltd,,,,,02/01/2015,P21024199,545.00,,Removal/Refixing-Headstones,,,,,,No,
The Royal Borough of Kensington and Chelsea,RBKC,,Housing Commissioning,HCM,,CAHA Ltd (Weston Super Mare),,,,,02/01/2015,PI1024225,"13,062.00",,Accommodation based service,,,,,,No,
The Royal Borough of Kensington and Chelsea,RBKC,,Tri-Borough Education Service,SED,,Cardinal Vaughan Memorial School,,,,,02/01/2015,P41024141,"3,464.96",,LEA Current year,,,,,,No,
The Royal Borough of Kensington and Chelsea,RBKC,,Tri-Borough Education Service,SED,,Cardinal Vaughan Memorial School,,,,,02/01/2015,P41024141,"1,655.80",,LEA Current year,,,,,,No,
The Royal Borough of Kensington and Chelsea,RBKC,,Tri-Borough Education Service,SED,,Cardinal Vaughan Memorial School,,,,,02/01/2015,P41024141,"2,480.67",,LEA Current year,,,,,,No,
The Royal Borough of Kensington and Chelsea,RBKC,,Tri-Borough Education Service,SED,,Cardinal Vaughan Memorial School,,,,,02/01/2015,P41024141,"1,655.80",,LEA Current year,,,,,,No,
The Royal Borough of Kensington and Chelsea,RBKC,,Tri-Borough Education Service,SED,,Cardinal Vaughan Memorial School,,,,,02/01/2015,P41024141,"2,640.09",,LEA Current year,,,,,,No,
The Royal Borough of Kensington and Chelsea,RBKC,,Tri-Borough Education Service,SED,,Cardinal Vaughan Memorial School,,,,,02/01/2015,P41024141,555.98,,LEA Current year,,,,,,No,
The Royal Borough of Kensington and Chelsea,RBKC,,Tri-Borough Education Service,SED,,Cardinal Vaughan Memorial School,,,,,02/01/2015,P41024141,"1,655.80",,LEA Current year,,,,,,No,
The Royal Borough of Kensington and Chelsea,RBKC,,Tri-Borough Education Service,SED,,Cardinal Vaughan Memorial School,,,,,02/01/2015,P41024141,"2,090.18",,LEA Current year,,,,,,No,
The Royal Borough of Kensington and Chelsea,RBKC,,Tri-Borough Education Service,SED,,Cardinal Vaughan Memorial School,,,,,02/01/2015,P41024141,"2,306.57",,LEA Current year,,,,,,No,
The Royal Borough of Kensington and Chelsea,RBKC,,Tri-Borough Education Service,SED,,Cardinal Vaughan Memorial School,,,,,02/01/2015,P41024141,"1,655.80",,LEA Current year,,,,,,No,
The Royal Borough of Kensington and Chelsea,RBKC,,Tri-Borough Education Service,SED,,Cardinal Vaughan Memorial School,,,,,02/01/2015,P41024141,"2,480.67",,LEA Current year,,,,,,No,
The Royal Borough of Kensington and Chelsea,RBKC,,Tri-Borough Education Service,SED,,Cardinal Vaughan Memorial School,,,,,02/01/2015,P41024141,"5,173.96",,LEA Current year,,,,,,No,
The Royal Borough of Kensington and Chelsea,RBKC,,Tri-Borough Education Service,SED,,Cardinal Vaughan Memorial School,,,,,02/01/2015,P41024141,"2,480.67",,LEA Current year,,,,,,No,
The Royal Borough of Kensington and Chelsea,RBKC,,Tri-Borough Education Service,SED,,Cardinal Vaughan Memorial School,,,,,02/01/2015,P41024141,"1,040.56",,LEA Current year,,,,,,No,
The Royal Borough of Kensington and Chelsea,RBKC,,Tri-Borough Education Service,SED,,Cardinal Vaughan Memorial School,,,,,02/01/2015,P41024141,"1,040.56",,LEA Current year,,,,,,No,
The Royal Borough of Kensington and Chelsea,RBKC,,Tri-Borough Education Service,SED,,Cardinal Vaughan Memorial School,,,,,02/01/2015,P41024141,"3,464.96",,LEA Current year,,,,,,No,
The Royal Borough of Kensington and Chelsea,RBKC,,Tri-Borough Education Service,SED,,Cardinal Vaughan Memorial School,,,,,02/01/2015,P41024141,"2,480.67",,LEA Current year,,,,,,No,
The Royal Borough of Kensington and Chelsea,RBKC,,Tri-Borough Education Service,SED,,Cardinal Vaughan Memorial School,,,,,02/01/2015,P41024141,555.98,,LEA Current year,,,,,,No,
The Royal Borough of Kensington and Chelsea,RBKC,,Tri-Borough Education Service,SED,,Cardinal Vaughan Memorial School,,,,,02/01/2015,P41024141,"1,105.89",,LEA Current year,,,,,,No,
The Royal Borough of Kensington and Chelsea,RBKC,,Tri-Borough Education Service,SED,,Cardinal Vaughan Memorial School,,,,,02/01/2015,P41024141,"3,464.95",,LEA Current year,,,,,,No,
The Royal Borough of Kensington and Chelsea,RBKC,,Housing Commissioning,HCM,,Carr Gomm Society,,,,,02/01/2015,PI1024233,"16,732.50",,Accommodation based service,,,,,,No,
The Royal Borough of Kensington and Chelsea,RBKC,,Tri-Borough Education Service,SED,,Chelsea Academy,,,,,02/01/2015,P41024142,"2,480.67",,LEA Current year,,,,,,No,
The Royal Borough of Kensington and Chelsea,RBKC,,Tri-Borough Education Service,SED,,Chelsea Academy,,,,,02/01/2015,P41024142,"1,540.27",,LEA Current year,,,,,,No,
The Royal Borough of Kensington and Chelsea,RBKC,,Tri-Borough Education Service,SED,,Chelsea Academy,,,,,02/01/2015,P41024142,990.36,,LEA Current year,,,,,,No,
The Royal Borough of Kensington and Chelsea,RBKC,,Tri-Borough Education Service,SED,,Chelsea Academy,,,,,02/01/2015,P41024142,"2,640.09",,LEA Current year,,,,,,No,
The Royal Borough of Kensington and Chelsea,RBKC,,Tri-Borough Education Service,SED,,Chelsea Academy,,,,,02/01/2015,P41024142,"1,540.27",,LEA Current year,,,,,,No,
The Royal Borough of Kensington and Chelsea,RBKC,,Tri-Borough Education Service,SED,,Chelsea Academy,,,,,02/01/2015,P41024142,"2,205.71",,LEA Current year,,,,,,No,
The Royal Borough of Kensington and Chelsea,RBKC,,Tri-Borough Education Service,SED,,Chelsea Academy,,,,,02/01/2015,P41024142,555.98,,LEA Current year,,,,,,No,
The Royal Borough of Kensington and Chelsea,RBKC,,Tri-Borough Education Service,SED,,Chelsea Academy,,,,,02/01/2015,P41024142,"2,640.09",,LEA Current year,,,,,,No,
The Royal Borough of Kensington and Chelsea,RBKC,,Tri-Borough Education Service,SED,,Chelsea Academy,,,,,02/01/2015,P41024142,"1,540.27",,LEA Current year,,,,,,No,
The Royal Borough of Kensington and Chelsea,RBKC,,Tri-Borough Education Service,SED,,Chelsea Academy,,,,,02/01/2015,P41024142,990.36,,LEA Current year,,,,,,No,
The Royal Borough of Kensington and Chelsea,RBKC,,Tri-Borough Education Service,SED,,Chelsea Academy,,,,,02/01/2015,P41024142,"2,090.18",,LEA Current year,,,,,,No,
The Royal Borough of Kensington and Chelsea,RBKC,,Tri-Borough Education Service,SED,,Chelsea Academy,,,,,02/01/2015,P41024142,990.36,,LEA Current year,,,,,,No,
The Royal Borough of Kensington and Chelsea,RBKC,,Tri-Borough Education Service,SED,,Chelsea Academy,,,,,02/01/2015,P41024142,"2,480.70",,LEA Current year,,,,,,No,
The Royal Borough of Kensington and Chelsea,RBKC,,Tri-Borough Education Service,SED,,Chelsea Academy,,,,,02/01/2015,P41024142,555.98,,LEA Current year,,,,,,No,
The Royal Borough of Kensington and Chelsea,RBKC,,Tri-Borough Education Service,SED,,Chelsea Children's Hospital School,,,,,02/01/2015,P41024143,"1,160.00",,LEA Current year,,,,,,No,
The Royal Borough of Kensington and Chelsea,RBKC,,Tri-Borough Education Service,SED,,Chelsea Open Air Nursery School,,,,,02/01/2015,P41024147,"4,072.72",,LEA Current year,,,,,,No,
The Royal Borough of Kensington and Chelsea,RBKC,,Tri-Borough Education Service,SED,,Chelsea Open Air Nursery School,,,,,02/01/2015,P41024147,"4,072.72",,LEA Current year,,,,,,No,
The Royal Borough of Kensington and Chelsea,RBKC,,Tri-Borough Education Service,SED,,Chelsea Open Air Nursery School,,,,,02/01/2015,P41024147,"3,574.42",,LEA Current year,,,,,,No,
The Royal Borough of Kensington and Chelsea,RBKC,,Tri-Borough Education Service,SED,,Chelsea Open Air Nursery School,,,,,02/01/2015,P41024147,"1,649.73",,LEA Current year,,,,,,No,
The Royal Borough of Kensington and Chelsea,RBKC,,Tri-Borough Education Service,SED,,Chelsea Open Air Nursery School,,,,,02/01/2015,P41024147,"3,574.42",,LEA Current year,,,,,,No,
The Royal Borough of Kensington and Chelsea,RBKC,,Tri-Borough Education Service,SED,,Christ Church CE Primary School,,,,,02/01/2015,P41024148,"2,425.64",,LEA Current year,,,,,,No,
The Royal Borough of Kensington and Chelsea,RBKC,,Tri-Borough Education Service,SED,,Christ Church CE Primary School,,,,,02/01/2015,P41024148,"2,480.67",,LEA Current year,,,,,,No,
The Royal Borough of Kensington and Chelsea,RBKC,,Tri-Borough Education Service,SED,,Christ Church CE Primary School,,,,,02/01/2015,P41024148,"3,444.06",,LEA Current year,,,,,,No,
The Royal Borough of Kensington and Chelsea,RBKC,,Tri-Borough Education Service,SED,,Christ Church CE Primary School,,,,,02/01/2015,P41024148,"2,425.68",,LEA Current year,,,,,,No,
The Royal Borough of Kensington and Chelsea,RBKC,,Tri-Borough Education Service,SED,,Christ Church CE Primary School,,,,,02/01/2015,P41024148,"1,655.80",,LEA Current year,,,,,,No,
The Royal Borough of Kensington and Chelsea,RBKC,,Tri-Borough Education Service,SED,,Christ Church CE Primary School,,,,,02/01/2015,P41024148,"2,480.67",,LEA Current year,,,,,,No,
The Royal Borough of Kensington and Chelsea,RBKC,,Tri-Borough Education Service,SED,,Christ Church CE Primary School,,,,,02/01/2015,P41024148,"2,480.67",,LEA Current year,,,,,,No,
The Royal Borough of Kensington and Chelsea,RBKC,,Tri-Borough Education Service,SED,,Christ Church CE Primary School,,,,,02/01/2015,P41024148,"2,480.67",,LEA Current year,,,,,,No,
The Royal Borough of Kensington and Chelsea,RBKC,,Tri-Borough Education Service,SED,,Christ Church CE Primary School,,,,,02/01/2015,P41024148,"3,453.53",,LEA Current year,,,,,,No,
The Royal Borough of Kensington and Chelsea,RBKC,,Tri-Borough Education Service,SED,,Christ Church CE Primary School,,,,,02/01/2015,P41024148,"1,655.80",,LEA Current year,,,,,,No,
The Royal Borough of Kensington and Chelsea,RBKC,,Tri-Borough Education Service,SED,,Christ Church CE Primary School,,,,,02/01/2015,P41024148,"2,480.67",,LEA Current year,,,,,,No,
The Royal Borough of Kensington and Chelsea,RBKC,,Tri-Borough Education Service,SED,,Christ Church CE Primary School,,,,,02/01/2015,P41024148,"2,480.67",,LEA Current year,,,,,,No,
The Royal Borough of Kensington and Chelsea,RBKC,,Family Services - RBKC,SKC,,DVIP,,,,,02/01/2015,P21024171,"1,320.00",,Contact-Other Expenses,,,,,,No,
The Royal Borough of Kensington and Chelsea,RBKC,,Housing Commissioning,HCM,,Earls Court YMCA,,,,,02/01/2015,PI1024212,"15,833.33",,Accommodation based service,,,,,,No,
The Royal Borough of Kensington and Chelsea,RBKC,,Housing Commissioning,HCM,,Earls Court YMCA,,,,,02/01/2015,PI1024213,"23,084.58",,Accommodation based service,,,,,,No,
The Royal Borough of Kensington and Chelsea,RBKC,,Housing Commissioning,HCM,,English Churches Housing Group,,,,,02/01/2015,PI1024217,"2,982.25",,Accommodation based service,,,,,,No,
The Royal Borough of Kensington and Chelsea,RBKC,,Housing Commissioning,HCM,,English Churches Housing Group,,,,,02/01/2015,PI1024218,"4,440.08",,Accommodation based service,,,,,,No,
The Royal Borough of Kensington and Chelsea,RBKC,,Housing Commissioning,HCM,,Family Mosaic Housing,,,,,02/01/2015,PI1024227,"4,653.32",,Accommodation based service,,,,,,No,
The Royal Borough of Kensington and Chelsea,RBKC,,Housing Commissioning,HCM,,Family Mosaic Housing,,,,,02/01/2015,PI1024228,"21,450.39",,Floating Support Service,,,,,,No,
The Royal Borough of Kensington and Chelsea,RBKC,,Housing Commissioning,HCM,,Field Lane Foundation,,,,,02/01/2015,PI1024234,"21,822.37",,Accommodation based service,,,,,,No,
The Royal Borough of Kensington and Chelsea,RBKC,,Tri-Borough Education Service,SED,,Fox Primary School,,,,,02/01/2015,P41024150,"2,480.67",,LEA Current year,,,,,,No,
The Royal Borough of Kensington and Chelsea,RBKC,,Tri-Borough Education Service,SED,,Fox Primary School,,,,,02/01/2015,P41024150,"1,655.80",,LEA Current year,,,,,,No,
The Royal Borough of Kensington and Chelsea,RBKC,,Tri-Borough Education Service,SED,,Fox Primary School,,,,,02/01/2015,P41024150,"2,480.67",,LEA Current year,,,,,,No,
The Royal Borough of Kensington and Chelsea,RBKC,,Tri-Borough Education Service,SED,,Fox Primary School,,,,,02/01/2015,P41024150,990.36,,LEA Current year,,,,,,No,
The Royal Borough of Kensington and Chelsea,RBKC,,Tri-Borough Education Service,SED,,Fox Primary School,,,,,02/01/2015,P41024150,"2,480.67",,LEA Current year,,,,,,No,
The Royal Borough of Kensington and Chelsea,RBKC,,Tri-Borough Education Service,SED,,Fox Primary School,,,,,02/01/2015,P41024150,"1,655.80",,LEA Current year,,,,,,No,
The Royal Borough of Kensington and Chelsea,RBKC,,Tri-Borough Education Service,SED,,Fox Primary School,,,,,02/01/2015,P41024150,"2,480.67",,LEA Current year,,,,,,No,
The Royal Borough of Kensington and Chelsea,RBKC,,Tri-Borough Education Service,SED,,Fox Primary School,,,,,02/01/2015,P41024150,"1,655.80",,LEA Current year,,,,,,No,
The Royal Borough of Kensington and Chelsea,RBKC,,Tri-Borough Education Service,SED,,Fox Primary School,,,,,02/01/2015,P41024150,"1,655.80",,LEA Current year,,,,,,No,
The Royal Borough of Kensington and Chelsea,RBKC,,Tri-Borough Education Service,SED,,Fox Primary School,,,,,02/01/2015,P41024150,"2,480.67",,LEA Current year,,,,,,No,
The Royal Borough of Kensington and Chelsea,RBKC,,Tri-Borough Education Service,SED,,Fox Primary School,,,,,02/01/2015,P41024150,555.98,,LEA Current year,,,,,,No,
The Royal Borough of Kensington and Chelsea,RBKC,,Tri-Borough Education Service,SED,,Fox Primary School,,,,,02/01/2015,P41024150,"2,480.67",,LEA Current year,,,,,,No,
The Royal Borough of Kensington and Chelsea,RBKC,,Tri-Borough Education Service,SED,,Fox Primary School,,,,,02/01/2015,P41024150,"2,090.18",,LEA Current year,,,,,,No,
The Royal Borough of Kensington and Chelsea,RBKC,,Tri-Borough Education Service,SED,,Fox Primary School,,,,,02/01/2015,P41024150,"2,480.67",,LEA Current year,,,,,,No,
The Royal Borough of Kensington and Chelsea,RBKC,,Tri-Borough Education Service,SED,,Fox Primary School,,,,,02/01/2015,P41024150,"2,480.65",,LEA Current year,,,,,,No,
The Royal Borough of Kensington and Chelsea,RBKC,,Housing Commissioning,HCM,,Hestia Housing & Support,,,,,02/01/2015,PI1024222,"15,347.71",,Accommodation based service,,,,,,No,
The Royal Borough of Kensington and Chelsea,RBKC,,Housing Commissioning,HCM,,Hestia Housing & Support,,,,,02/01/2015,PI1024223,"4,293.92",,Accommodation based service,,,,,,No,
The Royal Borough of Kensington and Chelsea,RBKC,,Tri-Borough Education Service,SED,,Holland Park School Ltd,,,,,02/01/2015,P41024153,"1,105.89",,LEA Current year,,,,,,No,
The Royal Borough of Kensington and Chelsea,RBKC,,Tri-Borough Education Service,SED,,Holland Park School Ltd,,,,,02/01/2015,P41024153,"1,540.27",,LEA Current year,,,,,,No,
The Royal Borough of Kensington and Chelsea,RBKC,,Tri-Borough Education Service,SED,,Holland Park School Ltd,,,,,02/01/2015,P41024153,"1,655.80",,LEA Current year,,,,,,No,
The Royal Borough of Kensington and Chelsea,RBKC,,Tri-Borough Education Service,SED,,Holland Park School Ltd,,,,,02/01/2015,P41024153,"1,099.82",,LEA Current year,,,,,,No,
The Royal Borough of Kensington and Chelsea,RBKC,,Tri-Borough Education Service,SED,,Holland Park School Ltd,,,,,02/01/2015,P41024153,555.98,,LEA Current year,,,,,,No,
The Royal Borough of Kensington and Chelsea,RBKC,,Tri-Borough Education Service,SED,,Holland Park School Ltd,,,,,02/01/2015,P41024153,555.98,,LEA Current year,,,,,,No,
The Royal Borough of Kensington and Chelsea,RBKC,,Tri-Borough Education Service,SED,,Holland Park School Ltd,,,,,02/01/2015,P41024153,"3,464.96",,LEA Current year,,,,,,No,
The Royal Borough of Kensington and Chelsea,RBKC,,Tri-Borough Education Service,SED,,Holland Park School Ltd,,,,,02/01/2015,P41024153,"1,540.27",,LEA Current year,,,,,,No,
The Royal Borough of Kensington and Chelsea,RBKC,,Tri-Borough Education Service,SED,,Holland Park School Ltd,,,,,02/01/2015,P41024153,990.36,,LEA Current year,,,,,,No,
The Royal Borough of Kensington and Chelsea,RBKC,,Tri-Borough Education Service,SED,,Holland Park School Ltd,,,,,02/01/2015,P41024153,"1,540.29",,LEA Current year,,,,,,No,
The Royal Borough of Kensington and Chelsea,RBKC,,Tri-Borough Education Service,SED,,Holy Trinity School,,,,,02/01/2015,P41024166,"-1,272.65",,LEA Current year,,,,,,No,
The Royal Borough of Kensington and Chelsea,RBKC,,Tri-Borough Education Service,SED,,Holy Trinity School,,,,,02/01/2015,P41024166,"1,380.85",,LEA Current year,,,,,,No,
The Royal Borough of Kensington and Chelsea,RBKC,,Tri-Borough Education Service,SED,,Holy Trinity School,,,,,02/01/2015,P41024166,"1,540.27",,LEA Current year,,,,,,No,
The Royal Borough of Kensington and Chelsea,RBKC,,Tri-Borough Education Service,SED,,Holy Trinity School,,,,,02/01/2015,P41024166,"2,425.68",,LEA Current year,,,,,,No,
The Royal Borough of Kensington and Chelsea,RBKC,,Tri-Borough Education Service,SED,,Holy Trinity School,,,,,02/01/2015,P41024166,"2,480.67",,LEA Current year,,,,,,No,
The Royal Borough of Kensington and Chelsea,RBKC,,Tri-Borough Education Service,SED,,Holy Trinity School,,,,,02/01/2015,P41024166,"3,574.41",,LEA Current year,,,,,,No,
The Royal Borough of Kensington and Chelsea,RBKC,,Support Services & Executive,PS,,Idox Software Ltd,,,,,02/01/2015,P21024179,"1,465.00",,Computer Hardware Maintenance,,,,,,No,
The Royal Borough of Kensington and Chelsea,RBKC,,Provided Services/ MH Partners,AS5,,London Cyrenians Housing Ltd,,,,,02/01/2015,P21024175,"29,998.44",,P&V Supp Accom,,,,,,No,
The Royal Borough of Kensington and Chelsea,RBKC,,Housing Commissioning,HCM,,London Cyrenians Housing Ltd,,,,,02/01/2015,PI1024203,"11,473.12",,Accommodation based service,,,,,,No,
The Royal Borough of Kensington and Chelsea,RBKC,,Housing Commissioning,HCM,,London Cyrenians Housing Ltd,,,,,02/01/2015,PI1024204,"13,544.19",,Accommodation based service,,,,,,No,
The Royal Borough of Kensington and Chelsea,RBKC,,Housing Commissioning,HCM,,London Cyrenians Housing Ltd,,,,,02/01/2015,PI1024205,"8,124.72",,Accommodation based service,,,,,,No,
The Royal Borough of Kensington and Chelsea,RBKC,,Housing Commissioning,HCM,,London Cyrenians Housing Ltd,,,,,02/01/2015,PI1024206,"7,848.67",,Accommodation based service,,,,,,No,
The Royal Borough of Kensington and Chelsea,RBKC,,Housing Commissioning,HCM,,London Cyrenians Housing Ltd,,,,,02/01/2015,PI1024207,"11,534.75",,Accommodation based service,,,,,,No,
The Royal Borough of Kensington and Chelsea,RBKC,,Provided Services/ MH Partners,AS5,,London Cyrenians Housing Ltd,,,,,02/01/2015,P21024173,"5,376.29",,Supported Living,,,,,,No,
The Royal Borough of Kensington and Chelsea,RBKC,,Provided Services/ MH Partners,AS5,,London Cyrenians Housing Ltd,,,,,02/01/2015,P21024172,"5,376.29",,Supported Living,,,,,,No,
The Royal Borough of Kensington and Chelsea,RBKC,,Commissioning,AS4,,London Cyrenians Housing Ltd,,,,,02/01/2015,P21024174,"7,274.59",,VO Supp Accom,,,,,,No,
The Royal Borough of Kensington and Chelsea,RBKC,,Provided Services/ MH Partners,AS5,,London Cyrenians Housing Ltd,,,,,02/01/2015,P21024176,"26,546.23",,VO Supp Accomodation,,,,,,No,
The Royal Borough of Kensington and Chelsea,RBKC,,Provided Services/ MH Partners,AS5,,London Cyrenians Housing Ltd,,,,,02/01/2015,P21024176,"9,818.47",,VO Supp Accom,,,,,,No,
The Royal Borough of Kensington and Chelsea,RBKC,,Housing Commissioning,HCM,,Look Ahead Housing & Care,,,,,02/01/2015,PI1024229,"34,707.92",,Accommodation based service,,,,,,No,
The Royal Borough of Kensington and Chelsea,RBKC,,Housing Commissioning,HCM,,Look Ahead Housing & Care,,,,,02/01/2015,PI1024230,"57,515.83",,Accommodation based service,,,,,,No,
The Royal Borough of Kensington and Chelsea,RBKC,,Housing Commissioning,HCM,,Look Ahead Housing & Care,,,,,02/01/2015,PI1024231,"9,375.42",,Accommodation based service,,,,,,No,
The Royal Borough of Kensington and Chelsea,RBKC,,Tri-Borough Education Service,SED,,Marlborough Primary School,,,,,02/01/2015,P41024155,"2,480.67",,LEA Current year,,,,,,No,
The Royal Borough of Kensington and Chelsea,RBKC,,Tri-Borough Education Service,SED,,Marlborough Primary School,,,,,02/01/2015,P41024155,"1,655.80",,LEA Current year,,,,,,No,
The Royal Borough of Kensington and Chelsea,RBKC,,Tri-Borough Education Service,SED,,Marlborough Primary School,,,,,02/01/2015,P41024155,990.36,,LEA Current year,,,,,,No,
The Royal Borough of Kensington and Chelsea,RBKC,,Tri-Borough Education Service,SED,,Marlborough Primary School,,,,,02/01/2015,P41024155,665.96,,LEA Current year,,,,,,No,
The Royal Borough of Kensington and Chelsea,RBKC,,Tri-Borough Education Service,SED,,Marlborough Primary School,,,,,02/01/2015,P41024155,"2,480.67",,LEA Current year,,,,,,No,
The Royal Borough of Kensington and Chelsea,RBKC,,Tri-Borough Education Service,SED,,Marlborough Primary School,,,,,02/01/2015,P41024155,"1,105.89",,LEA Current year,,,,,,No,
The Royal Borough of Kensington and Chelsea,RBKC,,Tri-Borough Education Service,SED,,Marlborough Primary School,,,,,02/01/2015,P41024155,"2,480.67",,LEA Current year,,,,,,No,
The Royal Borough of Kensington and Chelsea,RBKC,,Tri-Borough Education Service,SED,,Marlborough Primary School,,,,,02/01/2015,P41024155,"2,480.67",,LEA Current year,,,,,,No,
The Royal Borough of Kensington and Chelsea,RBKC,,Tri-Borough Education Service,SED,,Marlborough Primary School,,,,,02/01/2015,P41024155,555.98,,LEA Current year,,,,,,No,
The Royal Borough of Kensington and Chelsea,RBKC,,Tri-Borough Education Service,SED,,Marlborough Primary School,,,,,02/01/2015,P41024155,"1,105.88",,LEA Current year,,,,,,No,
The Royal Borough of Kensington and Chelsea,RBKC,,Tri-Borough Education Service,SED,,Marlborough Primary School,,,,,02/01/2015,P41024155,"2,480.67",,LEA Current year,,,,,,No,
The Royal Borough of Kensington and Chelsea,RBKC,,Tri-Borough Education Service,SED,,Maxilla Nursery School,,,,,02/01/2015,P41024151,"3,574.42",,LEA Current year,,,,,,No,
The Royal Borough of Kensington and Chelsea,RBKC,,Tri-Borough Education Service,SED,,Maxilla Nursery School,,,,,02/01/2015,P41024158,"3,574.42",,LEA Current year,,,,,,No,
The Royal Borough of Kensington and Chelsea,RBKC,,Housing Commissioning,HCM,,Notting Hill Housing Trust,,,,,02/01/2015,PI1024201,"16,283.64",,Accommodation based service,,,,,,No,
The Royal Borough of Kensington and Chelsea,RBKC,,Housing Commissioning,HCM,,Notting Hill Housing Trust,,,,,02/01/2015,PI1024202,"15,922.74",,Floating Support Service,,,,,,No,
The Royal Borough of Kensington and Chelsea,RBKC,,Housing Commissioning,HCM,,Octavia Housing & Care,,,,,02/01/2015,PI1024224,"3,185.00",,Floating Support Service,,,,,,No,
The Royal Borough of Kensington and Chelsea,RBKC,,Tri-Borough Education Service,SED,,Oratory RC Primary School,,,,,02/01/2015,P41024160,"1,655.80",,LEA Current year,,,,,,No,
The Royal Borough of Kensington and Chelsea,RBKC,,Tri-Borough Education Service,SED,,Oratory RC Primary School,,,,,02/01/2015,P41024160,"1,655.80",,LEA Current year,,,,,,No,
The Royal Borough of Kensington and Chelsea,RBKC,,Tri-Borough Education Service,SED,,Our Lady of Victories RC Primary School,,,,,02/01/2015,P41024159,"2,480.67",,LEA Current year,,,,,,No,
The Royal Borough of Kensington and Chelsea,RBKC,,Tri-Borough Education Service,SED,,Our Lady of Victories RC Primary School,,,,,02/01/2015,P41024159,"1,105.89",,LEA Current year,,,,,,No,
The Royal Borough of Kensington and Chelsea,RBKC,,Tri-Borough Education Service,SED,,Our Lady of Victories RC Primary School,,,,,02/01/2015,P41024159,"2,090.18",,LEA Current year,,,,,,No,
The Royal Borough of Kensington and Chelsea,RBKC,,Tri-Borough Education Service,SED,,Our Lady of Victories RC Primary School,,,,,02/01/2015,P41024159,"2,480.67",,LEA Current year,,,,,,No,
The Royal Borough of Kensington and Chelsea,RBKC,,Family Services - RBKC,SKC,,Owlswick,,,,,02/01/2015,P21024177,"4,815.00",,Boarding School Placements,,,,,,No,
The Royal Borough of Kensington and Chelsea,RBKC,,Tri-Borough Education Service,SED,,Oxford Gardens Primary School,,,,,02/01/2015,P41024161,"3,574.42",,LEA Current year,,,,,,No,
The Royal Borough of Kensington and Chelsea,RBKC,,Tri-Borough Education Service,SED,,Oxford Gardens Primary School,,,,,02/01/2015,P41024161,508.33,,LEA Current year,,,,,,No,
The Royal Borough of Kensington and Chelsea,RBKC,,Tri-Borough Education Service,SED,,Oxford Gardens Primary School,,,,,02/01/2015,P41024161,"1,105.89",,LEA Current year,,,,,,No,
The Royal Borough of Kensington and Chelsea,RBKC,,Tri-Borough Education Service,SED,,Oxford Gardens Primary School,,,,,02/01/2015,P41024161,555.98,,LEA Current year,,,,,,No,
The Royal Borough of Kensington and Chelsea,RBKC,,Tri-Borough Education Service,SED,,Oxford Gardens Primary School,,,,,02/01/2015,P41024161,"2,480.67",,LEA Current year,,,,,,No,
The Royal Borough of Kensington and Chelsea,RBKC,,Tri-Borough Education Service,SED,,Oxford Gardens Primary School,,,,,02/01/2015,P41024161,"5,985.06",,LEA Current year,,,,,,No,
The Royal Borough of Kensington and Chelsea,RBKC,,Tri-Borough Education Service,SED,,Oxford Gardens Primary School,,,,,02/01/2015,P41024161,"1,655.80",,LEA Current year,,,,,,No,
The Royal Borough of Kensington and Chelsea,RBKC,,Tri-Borough Education Service,SED,,Oxford Gardens Primary School,,,,,02/01/2015,P41024161,"7,158.49",,LEA Current year,,,,,,No,
The Royal Borough of Kensington and Chelsea,RBKC,,Tri-Borough Education Service,SED,,Oxford Gardens Primary School,,,,,02/01/2015,P41024161,"-4,778.17",,LEA Current year,,,,,,No,
The Royal Borough of Kensington and Chelsea,RBKC,,Tri-Borough Education Service,SED,,Park Walk Primary School,,,,,02/01/2015,P41024164,665.96,,LEA Current year,,,,,,No,
The Royal Borough of Kensington and Chelsea,RBKC,,Tri-Borough Education Service,SED,,Park Walk Primary School,,,,,02/01/2015,P41024164,"2,480.67",,LEA Current year,,,,,,No,
The Royal Borough of Kensington and Chelsea,RBKC,,Tri-Borough Education Service,SED,,Park Walk Primary School,,,,,02/01/2015,P41024164,"1,105.89",,LEA Current year,,,,,,No,
The Royal Borough of Kensington and Chelsea,RBKC,,Family Services - RBKC,SKC,,People Potential Possibilities T/a P3,,,,,02/01/2015,P21024193,"1,217.36",,P&V Homes & Hostels,,,,,,No,
The Royal Borough of Kensington and Chelsea,RBKC,,Family Services - RBKC,SKC,,People Potential Possibilities T/a P3,,,,,02/01/2015,P21024194,"1,108.43",,P&V Homes & Hostels,,,,,,No,
The Royal Borough of Kensington and Chelsea,RBKC,,Family Services - RBKC,SKC,,People Potential Possibilities T/a P3,,,,,02/01/2015,P21024197,"1,074.99",,P&V Homes & Hostels,,,,,,No,
The Royal Borough of Kensington and Chelsea,RBKC,,Family Services - RBKC,SKC,,People Potential Possibilities T/a P3,,,,,02/01/2015,P21024196,"1,072.67",,P&V Homes & Hostels,,,,,,No,
The Royal Borough of Kensington and Chelsea,RBKC,,Family Services - RBKC,SKC,,People Potential Possibilities T/a P3,,,,,02/01/2015,P21024195,"1,217.36",,P&V Homes & Hostels,,,,,,No,
The Royal Borough of Kensington and Chelsea,RBKC,,Housing Commissioning,HCM,,RBKC - TMO Ltd,,,,,02/01/2015,PI1024219,"22,619.50",,Accommodation based service,,,,,,No,
The Royal Borough of Kensington and Chelsea,RBKC,,Housing Commissioning,HCM,,RBKC - TMO Ltd,,,,,02/01/2015,PI1024220,"2,281.25",,Accommodation based service,,,,,,No,
The Royal Borough of Kensington and Chelsea,RBKC,,Tri-Borough Education Service,SED,,RBKC Colville Primary School,,,,,02/01/2015,P41024149,"2,480.67",,LEA Current year,,,,,,No,
The Royal Borough of Kensington and Chelsea,RBKC,,Tri-Borough Education Service,SED,,RBKC Colville Primary School,,,,,02/01/2015,P41024149,"1,655.80",,LEA Current year,,,,,,No,
The Royal Borough of Kensington and Chelsea,RBKC,,Tri-Borough Education Service,SED,,RBKC Colville Primary School,,,,,02/01/2015,P41024149,"2,480.67",,LEA Current year,,,,,,No,
The Royal Borough of Kensington and Chelsea,RBKC,,Tri-Borough Education Service,SED,,RBKC Colville Primary School,,,,,02/01/2015,P41024149,"3,574.41",,LEA Current year,,,,,,No,
The Royal Borough of Kensington and Chelsea,RBKC,,Housing Commissioning,HCM,,Richmond Fellowship,,,,,02/01/2015,PI1024232,"12,683.75",,Accommodation based service,,,,,,No,
The Royal Borough of Kensington and Chelsea,RBKC,,Housing Commissioning,HCM,,Servite Houses,,,,,02/01/2015,PI1024210,"3,698.25",,Accommodation based service,,,,,,No,
The Royal Borough of Kensington and Chelsea,RBKC,,Housing Commissioning,HCM,,St Mungo's,,,,,02/01/2015,PI1024221,"22,127.00",,Accommodation based service,,,,,,No,
The Royal Borough of Kensington and Chelsea,RBKC,,Housing Commissioning,HCM,,Thames Reach,,,,,02/01/2015,PI1024226,"6,391.33",,Accommodation based service,,,,,,No,
The Royal Borough of Kensington and Chelsea,RBKC,,Housing Commissioning,HCM,,The Rugby Portobello Trust,,,,,02/01/2015,PI1024211,"19,750.25",,Accommodation based service,,,,,,No,
The Royal Borough of Kensington and Chelsea,RBKC,,Housing Commissioning,HCM,,Threshold Support,,,,,02/01/2015,PI1024214,"4,866.83",,Accommodation based service,,,,,,No,
The Royal Borough of Kensington and Chelsea,RBKC,,Housing Commissioning,HCM,,Threshold Support,,,,,02/01/2015,PI1024215,"13,994.08",,Accommodation based service,,,,,,No,
The Royal Borough of Kensington and Chelsea,RBKC,,Housing Commissioning,HCM,,Threshold Support,,,,,02/01/2015,PI1024216,"9,839.50",,Accommodation based service,,,,,,No,
The Royal Borough of Kensington and Chelsea,RBKC,,"Cleaner,Greener & Cultural Ser",YCG,,Access Displays Ltd,,,,,05/01/2015,P21024406,"1,246.40",,Marketing,,,,,,No,
The Royal Borough of Kensington and Chelsea,RBKC,,Non Revenue,001,,Active Wellness,,,,,05/01/2015,P41024245,"1,352.40",,Payments,,,,,,No,
The Royal Borough of Kensington and Chelsea,RBKC,,Hsg Needs and Homelessness,HNH,,Affinity Sutton Homes Ltd,,,,,05/01/2015,P21024496,"1,299.23",,PLA Accommod - Stat Homeless,,,,,,No,
The Royal Borough of Kensington and Chelsea,RBKC,,Tri-Borough Education Service,SED,,Ambitious About Autism,,,,,05/01/2015,P21024513,"22,980.00",,Independent Schools,,,,,,No,
The Royal Borough of Kensington and Chelsea,RBKC,,Tri-Borough Education Service,SED,,Ambitious About Autism,,,,,05/01/2015,P21024531,"22,980.00",,Independent Schools,,,,,,No,
The Royal Borough of Kensington and Chelsea,RBKC,,Tri-Borough Education Service,SED,,Ambitious About Autism,,,,,05/01/2015,P21024514,"22,980.00",,Independent Schools,,,,,,No,
The Royal Borough of Kensington and Chelsea,RBKC,,Non Revenue,001,,Architecture PLB,,,,,05/01/2015,P21024486,"1,926.00",,Fees-Consultants,,,,,,No,
The Royal Borough of Kensington and Chelsea,RBKC,,Operations,AS6,,Ashbourne Healthcare Services,,,,,05/01/2015,P21024441,921.52,,Home Care-Ext Providers-Health,,,,,,No,
The Royal Borough of Kensington and Chelsea,RBKC,,Operations,AS6,,Ashbourne Healthcare Services,,,,,05/01/2015,P21024438,921.52,,Home Care-Ext Providers-Health,,,,,,No,
The Royal Borough of Kensington and Chelsea,RBKC,,Tri-Borough Education Service,SED,,Beyond Autism,,,,,05/01/2015,P21024530,"21,783.33",,Independent Schools,,,,,,No,
The Royal Borough of Kensington and Chelsea,RBKC,,Information Systems,CIS,,Bluesky International Ltd,,,,,05/01/2015,P21024399,"1,946.25",,Computer Software Purchase,,,,,,No,
The Royal Borough of Kensington and Chelsea,RBKC,,Non Revenue,001,,Brewsters Waste Management Ltd,,,,,05/01/2015,P21024378,"2,750.00",,Fees-Consultants,,,,,,No,
The Royal Borough of Kensington and Chelsea,RBKC,,Tri-Borough Education Service,SED,,Central London Community Healthcare,,,,,05/01/2015,P21024372,"56,093.00",,LEA Current year,,,,,,No,
The Royal Borough of Kensington and Chelsea,RBKC,,Public Health,JPH,,Central London Community Healthcare,,,,,05/01/2015,P21024495,"74,617.00",,Contract Costs,,,,,,No,
The Royal Borough of Kensington and Chelsea,RBKC,,Provided Services/ MH Partners,AS5,,Central London Community Healthcare,,,,,05/01/2015,P21024547,"10,508.00",,Salaries Agency,,,,,,No,
The Royal Borough of Kensington and Chelsea,RBKC,,Strategy & Local Services,CPU,,Chelsea Flowers,,,,,05/01/2015,P21024473,819.00,,Floral Decorations,,,,,,No,
The Royal Borough of Kensington and Chelsea,RBKC,,Non Revenue,001,,Cluttons LLP,,,,,05/01/2015,P21024377,"1,500.00",,Other Sale Expenses,,,,,,No,
The Royal Borough of Kensington and Chelsea,RBKC,,Family Services - RBKC,SKC,,CNWL NHS Foundation Trust,,,,,05/01/2015,P21024398,"61,852.00",,Commissioned Services,,,,,,No,
The Royal Borough of Kensington and Chelsea,RBKC,,Corporate Property,CBV,,Colliers International Business Space UK,,,,,05/01/2015,P21024407,"54,085.35",,Consultants,,,,,,No,
The Royal Borough of Kensington and Chelsea,RBKC,,Non Revenue,001,,Comensura Ltd,,,,,05/01/2015,P21024459,"57,305.85",,Payments,,,,,,No,
The Royal Borough of Kensington and Chelsea,RBKC,,Non Revenue,001,,Cupaz,,,,,05/01/2015,P21024396,"2,000.00",,Decanting Costs,,,,,,No,
The Royal Borough of Kensington and Chelsea,RBKC,,Information Systems,CIS,,Data Select Ltd,,,,,05/01/2015,P21024401,"1,350.00",,Mobile Phone Charges,,,,,,No,
The Royal Borough of Kensington and Chelsea,RBKC,,Operations,AS6,,Dust to Daisies Cleaning & Care Services,,,,,05/01/2015,P21024453,655.00,,Supported Living,,,,,,No,
The Royal Borough of Kensington and Chelsea,RBKC,,Operations,AS6,,Dust to Daisies Cleaning & Care Services,,,,,05/01/2015,P21024453,559.00,,Supported Living,,,,,,No,
The Royal Borough of Kensington and Chelsea,RBKC,,Operations,AS6,,Dust to Daisies Cleaning & Care Services,,,,,05/01/2015,P21024452,684.00,,Home Care,,,,,,No,
The Royal Borough of Kensington and Chelsea,RBKC,,Commissioning,AS4,,Edna Barrett,,,,,05/01/2015,P41024235,500.00,,Service To Carers,,,,,,No,
The Royal Borough of Kensington and Chelsea,RBKC,,"Cleaner,Greener & Cultural Ser",YCG,,Excel Group,,,,,05/01/2015,P21024381,976.83,,Marketing,,,,,,No,
The Royal Borough of Kensington and Chelsea,RBKC,,Tri-Borough Education Service,SED,,Fairley House Upper School,,,,,05/01/2015,P21024515,"9,517.88",,Independent Schools,,,,,,No,
The Royal Borough of Kensington and Chelsea,RBKC,,Tri-Borough Education Service,SED,,Fairley House Upper School,,,,,05/01/2015,P21024516,"4,021.33",,Independent Schools,,,,,,No,
The Royal Borough of Kensington and Chelsea,RBKC,,Corporate Property,CBV,,Gerald Eve LLP,,,,,05/01/2015,P21024403,"5,551.00",,Consultants,,,,,,No,
The Royal Borough of Kensington and Chelsea,RBKC,,Information Systems,CIS,,Gradwell Dot Com Ltd,,,,,05/01/2015,P21024435,589.00,,Telephone Charges,,,,,,No,
The Royal Borough of Kensington and Chelsea,RBKC,,"Cleaner,Greener & Cultural Ser",YCG,,Have Sound,,,,,05/01/2015,P21024380,796.00,,Equipment-Rental,,,,,,No,
The Royal Borough of Kensington and Chelsea,RBKC,,Operations,AS6,,Hope Care Agency Ltd,,,,,05/01/2015,P21024508,931.25,,Home Care,,,,,,No,
The Royal Borough of Kensington and Chelsea,RBKC,,"Cleaner,Greener & Cultural Ser",YCG,,Imperial Polythene Products,,,,,05/01/2015,P21024258,"4,408.99",,Purchase Of Plastic Sacks,,,,,,No,
The Royal Borough of Kensington and Chelsea,RBKC,,"Cleaner,Greener & Cultural Ser",YCG,,Imperial Polythene Products,,,,,05/01/2015,P21024259,"3,674.16",,Purchase Of Plastic Sacks,,,,,,No,
The Royal Borough of Kensington and Chelsea,RBKC,,Information Systems,CIS,,Incentivated Ltd,,,,,05/01/2015,P21024500,750.00,,Specific ISD Projects,,,,,,No,
The Royal Borough of Kensington and Chelsea,RBKC,,Information Systems,CIS,,Incentivated Ltd,,,,,05/01/2015,P21024499,750.00,,Specific ISD Projects,,,,,,No,
The Royal Borough of Kensington and Chelsea,RBKC,,Non Revenue,001,,Insight Direct (UK) Ltd,,,,,05/01/2015,P21024390,"26,185.50",,Expenditure,,,,,,No,
The Royal Borough of Kensington and Chelsea,RBKC,,Provided Services/ MH Partners,AS5,,Kenward Trust,,,,,05/01/2015,P21024502,946.29,,P&V Residential,,,,,,No,
The Royal Borough of Kensington and Chelsea,RBKC,,Non Revenue,001,,Kinnear Landscape Architecture Ltd,,,,,05/01/2015,P21024400,"3,500.00",,Construction-Main Ctrctrs A/C,,,,,,No,
The Royal Borough of Kensington and Chelsea,RBKC,,Tri-Borough Education Service,SED,,Linden Lodge School,,,,,05/01/2015,P21024370,"2,700.00",,Speech Therapy,,,,,,No,
The Royal Borough of Kensington and Chelsea,RBKC,,Tri-Borough Education Service,SED,,London Borough Of Hammersmith & Fulham,,,,,05/01/2015,P21024386,"13,100.00",,Payments to LBHF,,,,,,No,
The Royal Borough of Kensington and Chelsea,RBKC,,Tri-Borough Education Service,SED,,London Borough Of Hammersmith & Fulham,,,,,05/01/2015,P21024371,"3,333.33",,Payments to LBHF,,,,,,No,
The Royal Borough of Kensington and Chelsea,RBKC,,Strategy & Local Services,CPU,,London Borough Of Hammersmith & Fulham,,,,,05/01/2015,P21024550,"14,393.25",,Payments to LBHF,,,,,,No,
The Royal Borough of Kensington and Chelsea,RBKC,,Commissioning,AS4,,London Cyrenians Housing Ltd,,,,,05/01/2015,P21024448,"7,274.59",,VO Supp Accom,,,,,,No,
The Royal Borough of Kensington and Chelsea,RBKC,,Commissioning,AS4,,London Cyrenians Housing Ltd,,,,,05/01/2015,P21024391,"9,504.54",,VO Supp Accom,,,,,,No,
The Royal Borough of Kensington and Chelsea,RBKC,,Public Health,JPH,,London North West Healthcare NHS Trust,,,,,05/01/2015,P21024494,759.00,,Contract Costs,,,,,,No,
The Royal Borough of Kensington and Chelsea,RBKC,,Tri-Borough Education Service,SED,,Lynmac Training & Consultancy Ltd,,,,,05/01/2015,P21024404,"1,000.00",,EDP/CPD,,,,,,No,
The Royal Borough of Kensington and Chelsea,RBKC,,Hsg Needs and Homelessness,HNH,,Manor Lodge Hotel,,,,,05/01/2015,P21024498,"3,410.00",,PLA Accommod - Stat Homeless,,,,,,No,
The Royal Borough of Kensington and Chelsea,RBKC,,Tri-Borough Education Service,SED,,Marissa Lee,,,,,05/01/2015,P21024537,510.00,,LOVAAS Payment,,,,,,No,
The Royal Borough of Kensington and Chelsea,RBKC,,Tri-Borough Education Service,SED,,Marissa Lee,,,,,05/01/2015,P21024535,517.50,,LOVAAS Payment,,,,,,No,
The Royal Borough of Kensington and Chelsea,RBKC,,Tri-Borough Education Service,SED,,Marissa Lee,,,,,05/01/2015,P21024543,510.00,,LOVAAS Payment,,,,,,No,
The Royal Borough of Kensington and Chelsea,RBKC,,Tri-Borough Education Service,SED,,Marissa Lee,,,,,05/01/2015,P21024538,517.50,,LOVAAS Payment,,,,,,No,
The Royal Borough of Kensington and Chelsea,RBKC,,Tri-Borough Education Service,SED,,Mary Hare Schools,,,,,05/01/2015,P21024375,"8,822.00",,Independent Schools,,,,,,No,
The Royal Borough of Kensington and Chelsea,RBKC,,Human Resources,CHG,,Mindz In Motion Ltd,,,,,05/01/2015,P21024549,750.00,,Annual Programme,,,,,,No,
The Royal Borough of Kensington and Chelsea,RBKC,,Tri-Borough Education Service,SED,,Nice Work Consulting Ltd,,,,,05/01/2015,P21024397,850.00,,Training Expenses,,,,,,No,
The Royal Borough of Kensington and Chelsea,RBKC,,"Cleaner,Greener & Cultural Ser",YCG,,Nigel Hall,,,,,05/01/2015,P21024432,"40,000.00",,Artist Fees,,,,,,No,
The Royal Borough of Kensington and Chelsea,RBKC,,Tri-Borough Education Service,SED,,Normans,,,,,05/01/2015,P21024428,884.00,,Music,,,,,,No,
The Royal Borough of Kensington and Chelsea,RBKC,,Non Revenue,001,,OCS GROUP UK LTD,,,,,05/01/2015,PL823679,"175,086.54",,Cleaning Contract,,,,,,No,
The Royal Borough of Kensington and Chelsea,RBKC,,Tri-Borough Education Service,SED,,Octavia House School,,,,,05/01/2015,P21024405,"19,250.00",,Independent Schools,,,,,,No,
The Royal Borough of Kensington and Chelsea,RBKC,,Tri-Borough Education Service,SED,,Orchard Hill College,,,,,05/01/2015,P21024512,"13,109.87",,LEA Current year,,,,,,No,
The Royal Borough of Kensington and Chelsea,RBKC,,"Cleaner,Greener & Cultural Ser",YCG,,Paul Hosking,,,,,05/01/2015,P21024511,"10,000.00",,Artist Fees,,,,,,No,
The Royal Borough of Kensington and Chelsea,RBKC,,Non Revenue,001,,Penderels Trust,,,,,05/01/2015,P41024244,"1,567.72",,Payments,,,,,,No,
The Royal Borough of Kensington and Chelsea,RBKC,,Non Revenue,001,,Penderels Trust,,,,,05/01/2015,P41024249,"1,165.49",,Payments,,,,,,No,
The Royal Borough of Kensington and Chelsea,RBKC,,Non Revenue,001,,Penderels Trust,,,,,05/01/2015,P41024249,"3,830.59",,Payments,,,,,,No,
The Royal Borough of Kensington and Chelsea,RBKC,,Non Revenue,001,,Penderels Trust,,,,,05/01/2015,P41024249,"8,714.20",,Payments,,,,,,No,
The Royal Borough of Kensington and Chelsea,RBKC,,Non Revenue,001,,Penderels Trust,,,,,05/01/2015,P41024249,556.05,,Payments,,,,,,No,
The Royal Borough of Kensington and Chelsea,RBKC,,Non Revenue,001,,Penderels Trust,,,,,05/01/2015,P41024249,718.30,,Payments,,,,,,No,
The Royal Borough of Kensington and Chelsea,RBKC,,Non Revenue,001,,Penderels Trust,,,,,05/01/2015,P41024249,676.60,,Payments,,,,,,No,
The Royal Borough of Kensington and Chelsea,RBKC,,Non Revenue,001,,Penderels Trust,,,,,05/01/2015,P41024249,"3,156.99",,Payments,,,,,,No,
The Royal Borough of Kensington and Chelsea,RBKC,,Hsg Needs and Homelessness,HNH,,Penham Ltd,,,,,05/01/2015,P21024252,"45,280.90",,PLA Accommod - Stat Homeless,,,,,,No,
The Royal Borough of Kensington and Chelsea,RBKC,,Hsg Needs and Homelessness,HNH,,Penham Ltd,,,,,05/01/2015,P21024253,"43,836.26",,PLA Accommod - Stat Homeless,,,,,,No,
The Royal Borough of Kensington and Chelsea,RBKC,,Hsg Needs and Homelessness,HNH,,Penham Ltd,,,,,05/01/2015,P21024254,"40,859.13",,PLA Accommod - Stat Homeless,,,,,,No,
The Royal Borough of Kensington and Chelsea,RBKC,,Family Services - RBKC,SKC,,Penna PLC,,,,,05/01/2015,P21024260,940.00,,Recruitment Advertising,,,,,,No,
The Royal Borough of Kensington and Chelsea,RBKC,,Hsg Needs and Homelessness,HNH,,R@W Logistics Ltd,,,,,05/01/2015,P21024505,"2,214.33",,PLA Accommod - Stat Homeless,,,,,,No,
The Royal Borough of Kensington and Chelsea,RBKC,,Hsg Needs and Homelessness,HNH,,R@W Logistics Ltd,,,,,05/01/2015,P21024504,"2,184.57",,PLA Accommod - Stat Homeless,,,,,,No,
The Royal Borough of Kensington and Chelsea,RBKC,,"Cleaner,Greener & Cultural Ser",YCG,,Rodney Todd-White & Son Ltd,,,,,05/01/2015,P21024392,"1,250.00",,Consultants,,,,,,No,
The Royal Borough of Kensington and Chelsea,RBKC,,Operations,AS6,,Saga Homecare,,,,,05/01/2015,P21024456,"1,088.43",,Home Care over 65,,,,,,No,
The Royal Borough of Kensington and Chelsea,RBKC,,Operations,AS6,,Saga Homecare,,,,,05/01/2015,P21024457,"1,088.43",,Home Care over 65,,,,,,No,
The Royal Borough of Kensington and Chelsea,RBKC,,Operations,AS6,,Saga Homecare,,,,,05/01/2015,P21024458,"1,088.43",,Home Care over 65,,,,,,No,
The Royal Borough of Kensington and Chelsea,RBKC,,Housing Revenue Account,HRA,,Savills Commercial Ltd,,,,,05/01/2015,P21024503,"2,000.00",,Resource Accounting Costs,,,,,,No,
The Royal Borough of Kensington and Chelsea,RBKC,,Revenues,CFR,,Serco Ltd,,,,,05/01/2015,P21024482,"3,255.00",,Salaries Agency,,,,,,No,
The Royal Borough of Kensington and Chelsea,RBKC,,Revenues,CFR,,Serco Ltd,,,,,05/01/2015,P21024484,750.00,,Salaries Agency,,,,,,No,
The Royal Borough of Kensington and Chelsea,RBKC,,Revenues,CFR,,Serco Ltd,,,,,05/01/2015,P21024483,750.00,,Salaries Agency,,,,,,No,
The Royal Borough of Kensington and Chelsea,RBKC,,Strategy & Local Services,CPU,,Snap Surveys Ltd,,,,,05/01/2015,P21024544,999.00,,Computer Software Purchase,,,,,,No,
The Royal Borough of Kensington and Chelsea,RBKC,,Environmental Health,YEH,,Sos4 Ltd,,,,,05/01/2015,P21024523,"2,750.00",,Consultants,,,,,,No,
The Royal Borough of Kensington and Chelsea,RBKC,,Tri-Borough Education Service,SED,,St Charles Catholic Sixth Form College,,,,,05/01/2015,P21024374,"2,900.00",,LEA Current year,,,,,,No,
The Royal Borough of Kensington and Chelsea,RBKC,,Tri-Borough Education Service,SED,,St Charles Catholic Sixth Form College,,,,,05/01/2015,P21024373,"1,451.90",,LEA Current year,,,,,,No,
The Royal Borough of Kensington and Chelsea,RBKC,,Tri-Borough Education Service,SED,,St Marylebone Church of England Bridge S,,,,,05/01/2015,P21024383,"2,000.00",,LEA Current year,,,,,,No,
The Royal Borough of Kensington and Chelsea,RBKC,,Tri-Borough Education Service,SED,,St Marylebone Church of England Bridge S,,,,,05/01/2015,P21024384,"2,000.00",,LEA Current year,,,,,,No,
The Royal Borough of Kensington and Chelsea,RBKC,,Tri-Borough Education Service,SED,,St Marylebone Church of England Bridge S,,,,,05/01/2015,P21024385,"2,000.00",,LEA Current year,,,,,,No,
The Royal Borough of Kensington and Chelsea,RBKC,,Non Revenue,001,,SW SECURITY LTD,,,,,05/01/2015,PL823681,"3,565.00",,ARW-Notting Hill Area,,,,,,No,
The Royal Borough of Kensington and Chelsea,RBKC,,Transportation & Highways,YTH,,TFL Surface Transport,,,,,05/01/2015,P21024510,"65,463.16",,Urban Traffic Control,,,,,,No,
The Royal Borough of Kensington and Chelsea,RBKC,,Legal Services,CLA,,TLT Llp,,,,,05/01/2015,P21024379,"5,417.00",,External Solicitors Fees,,,,,,No,
The Royal Borough of Kensington and Chelsea,RBKC,,Non Revenue,001,,TREE WISE MEN S.E. LTD,,,,,05/01/2015,PL823678,"21,558.58",,PM-Garden Maintenance Contract,,,,,,No,
The Royal Borough of Kensington and Chelsea,RBKC,,Finance & Resources,SFR,,University of London,,,,,05/01/2015,P21024251,663.00,,Agency Placements-Unallocated,,,,,,No,
The Royal Borough of Kensington and Chelsea,RBKC,,Finance & Resources,SFR,,University of London,,,,,05/01/2015,P21024251,663.00,,Agency Placements-Unallocated,,,,,,No,
The Royal Borough of Kensington and Chelsea,RBKC,,Finance & Resources,SFR,,University of London,,,,,05/01/2015,P21024251,663.00,,Agency Placements-Unallocated,,,,,,No,
The Royal Borough of Kensington and Chelsea,RBKC,,Finance & Resources,SFR,,University of London,,,,,05/01/2015,P21024251,663.00,,Agency Placements-Unallocated,,,,,,No,
The Royal Borough of Kensington and Chelsea,RBKC,,"Cleaner,Greener & Cultural Ser",YCG,,University of London,,,,,05/01/2015,P21024251,663.00,,Administration,,,,,,No,
The Royal Borough of Kensington and Chelsea,RBKC,,"Cleaner,Greener & Cultural Ser",YCG,,University of London,,,,,05/01/2015,P21024251,663.00,,Consultants,,,,,,No,
The Royal Borough of Kensington and Chelsea,RBKC,,Legal Services,CLA,,University of London,,,,,05/01/2015,P21024251,703.00,,Salaries Agency,,,,,,No,
The Royal Borough of Kensington and Chelsea,RBKC,,Operations,AS6,,University of London,,,,,05/01/2015,P21024251,663.00,,Payments To Vol Orgs,,,,,,No,
The Royal Borough of Kensington and Chelsea,RBKC,,"Cleaner,Greener & Cultural Ser",YCG,,University of London,,,,,05/01/2015,P21024251,708.00,,Environmental Initiatives,,,,,,No,
The Royal Borough of Kensington and Chelsea,RBKC,,Provided Services/ MH Partners,AS5,,Westcliffe House Ltd,,,,,05/01/2015,P21024509,"2,488.86",,P&V Residential,,,,,,No,
The Royal Borough of Kensington and Chelsea,RBKC,,Strategy & Local Services,CPU,,Age UK Kensington & Chelsea,,,,,06/01/2015,P41024754,"17,333.00",,Payments To Vol Orgs,,,,,,No,
The Royal Borough of Kensington and Chelsea,RBKC,,Non Revenue,001,,AK Care Ltd,,,,,06/01/2015,P41024753,"2,024.00",,Payments,,,,,,No,
The Royal Borough of Kensington and Chelsea,RBKC,,Corporate Property,CBV,,Amey Community Ltd,,,,,06/01/2015,P21024789,"23,936.68",,Postages,,,,,,No,
The Royal Borough of Kensington and Chelsea,RBKC,,Hsg Needs and Homelessness,HNH,,AMS Housing Ltd,,,,,06/01/2015,P21024773,"25,774.77",,PLA Accommod - Stat Homeless,,,,,,No,
The Royal Borough of Kensington and Chelsea,RBKC,,Provided Services/ MH Partners,AS5,,Ana Treatment Centres Ltd,,,,,06/01/2015,P21025914,"2,657.14",,P&V Residential,,,,,,No,
The Royal Borough of Kensington and Chelsea,RBKC,,Family Services - RBKC,SKC,,Angela Brown,,,,,06/01/2015,P21025839,"2,725.00",,Training Programme Delivery,,,,,,No,
The Royal Borough of Kensington and Chelsea,RBKC,,Hsg Needs and Homelessness,HNH,,Apex Housing Solutions,,,,,06/01/2015,P21024804,"40,122.68",,PLA Accommod - Stat Homeless,,,,,,No,
The Royal Borough of Kensington and Chelsea,RBKC,,Operations,AS6,,Ashbourne Healthcare Services,,,,,06/01/2015,P21024769,921.52,,Home Care-Ext Providers-Health,,,,,,No,
The Royal Borough of Kensington and Chelsea,RBKC,,Operations,AS6,,Ashbourne Healthcare Services,,,,,06/01/2015,P21025894,944.02,,Home Care-Ext Providers-Health,,,,,,No,
The Royal Borough of Kensington and Chelsea,RBKC,,Operations,AS6,,Ashbourne Healthcare Services,,,,,06/01/2015,P21024770,"1,016.84",,Home Care-Ext Providers-Health,,,,,,No,
The Royal Borough of Kensington and Chelsea,RBKC,,Operations,AS6,,Ashbourne Healthcare Services,,,,,06/01/2015,P21024777,"1,332.16",,Home Care-Ext Providers-Health,,,,,,No,
The Royal Borough of Kensington and Chelsea,RBKC,,Non Revenue,001,,AVS Steps Ltd,,,,,06/01/2015,P21025913,719.50,,Expenditure,,,,,,No,
The Royal Borough of Kensington and Chelsea,RBKC,,Family Services - RBKC,SKC,,BAAF Registered Charity,,,,,06/01/2015,P21025926,506.60,,Training Expenses,,,,,,No,
The Royal Borough of Kensington and Chelsea,RBKC,,Non Revenue,001,,Balfour Beatty regional Construction Ltd,,,,,06/01/2015,P21025890,"26,132.00",,Construction-Main Ctrctrs A/C,,,,,,No,
The Royal Borough of Kensington and Chelsea,RBKC,,Non Revenue,001,,Barrie Bookkeeping & Payroll Solutions,,,,,06/01/2015,P41024750,"1,308.46",,Payments,,,,,,No,
The Royal Borough of Kensington and Chelsea,RBKC,,Non Revenue,001,,Barrie Bookkeeping & Payroll Solutions,,,,,06/01/2015,P41024751,"1,121.10",,Payments,,,,,,No,
The Royal Borough of Kensington and Chelsea,RBKC,,Non Revenue,001,,Barrie Bookkeeping & Payroll Solutions,,,,,06/01/2015,P41025812,"1,485.98",,Payments,,,,,,No,
The Royal Borough of Kensington and Chelsea,RBKC,,Procurement & Bus Intelligence,AS3,,BT Global Services,,,,,06/01/2015,P21025849,"1,974.34",,Computer Supplies-Misc,,,,,,No,
The Royal Borough of Kensington and Chelsea,RBKC,,Tri-Borough Education Service,SED,,Cardinal Vaughan Memorial School,,,,,06/01/2015,P41025801,"10,000.00",,Grants Given-Misc,,,,,,No,
The Royal Borough of Kensington and Chelsea,RBKC,,Operations,AS6,,Carewatch (Kensington & Chelsea),,,,,06/01/2015,P21024781,"1,066.24",,Home Care over 65,,,,,,No,
The Royal Borough of Kensington and Chelsea,RBKC,,Operations,AS6,,Carewatch (Kensington & Chelsea),,,,,06/01/2015,P21024778,"1,225.00",,Home Care over 65,,,,,,No,
The Royal Borough of Kensington and Chelsea,RBKC,,Operations,AS6,,Carewatch (Kensington & Chelsea),,,,,06/01/2015,P21025899,"1,345.78",,Home Care over 65,,,,,,No,
The Royal Borough of Kensington and Chelsea,RBKC,,Operations,AS6,,Carewatch (Kensington & Chelsea),,,,,06/01/2015,P21025897,"1,471.30",,Home Care over 65,,,,,,No,
The Royal Borough of Kensington and Chelsea,RBKC,,Operations,AS6,,Carewatch (Kensington & Chelsea),,,,,06/01/2015,P21025905,"2,107.64",,Home Care,,,,,,No,
The Royal Borough of Kensington and Chelsea,RBKC,,Children's Commissioning,SCC,,Cater Cover Service Ltd,,,,,06/01/2015,P21025918,922.59,,Catering Expenditure,,,,,,No,
The Royal Borough of Kensington and Chelsea,RBKC,,Operations,AS6,,CavaCare Ltd,,,,,06/01/2015,P21025929,"5,250.00",,Consultants,,,,,,No,
The Royal Borough of Kensington and Chelsea,RBKC,,Legal Services,CLA,,Chartered Institute of Legal Executives,,,,,06/01/2015,P41025808,549.00,,Training Expenses,,,,,,No,
The Royal Borough of Kensington and Chelsea,RBKC,,Tri-Borough Education Service,SED,,Chelsea Academy,,,,,06/01/2015,P41025804,"10,000.00",,Grants Given-Misc,,,,,,No,
The Royal Borough of Kensington and Chelsea,RBKC,,Public Health,JPH,,City Of Westminster,,,,,06/01/2015,P21024760,"260,978.44",,Payments to WCC,,,,,,No,
The Royal Borough of Kensington and Chelsea,RBKC,,Non Revenue,001,,Cluttons LLP,,,,,06/01/2015,P21025823,"1,500.00",,Other Sale Expenses,,,,,,No,
The Royal Borough of Kensington and Chelsea,RBKC,,Non Revenue,001,,Cluttons LLP,,,,,06/01/2015,P21025826,"1,500.00",,Other Sale Expenses,,,,,,No,
The Royal Borough of Kensington and Chelsea,RBKC,,Non Revenue,001,,Cluttons LLP,,,,,06/01/2015,P21025825,500.00,,Other Sale Expenses,,,,,,No,
The Royal Borough of Kensington and Chelsea,RBKC,,Non Revenue,001,,Cluttons LLP,,,,,06/01/2015,P21025828,750.00,,Other Sale Expenses,,,,,,No,
The Royal Borough of Kensington and Chelsea,RBKC,,Non Revenue,001,,Cluttons LLP,,,,,06/01/2015,P21025830,750.00,,Other Sale Expenses,,,,,,No,
The Royal Borough of Kensington and Chelsea,RBKC,,Non Revenue,001,,Cluttons LLP,,,,,06/01/2015,P21025829,750.00,,Other Sale Expenses,,,,,,No,
The Royal Borough of Kensington and Chelsea,RBKC,,Non Revenue,001,,Cluttons LLP,,,,,06/01/2015,P21025835,"1,000.00",,Other Sale Expenses,,,,,,No,
The Royal Borough of Kensington and Chelsea,RBKC,,Non Revenue,001,,Cluttons LLP,,,,,06/01/2015,P21025827,"3,000.00",,Other Sale Expenses,,,,,,No,
The Royal Borough of Kensington and Chelsea,RBKC,,Non Revenue,001,,Cluttons LLP,,,,,06/01/2015,P21025831,"1,500.00",,Other Sale Expenses,,,,,,No,
The Royal Borough of Kensington and Chelsea,RBKC,,Non Revenue,001,,Cluttons LLP,,,,,06/01/2015,P21025834,"1,500.00",,Other Sale Expenses,,,,,,No,
The Royal Borough of Kensington and Chelsea,RBKC,,Non Revenue,001,,Cluttons LLP,,,,,06/01/2015,P21025837,"1,500.00",,Other Sale Expenses,,,,,,No,
The Royal Borough of Kensington and Chelsea,RBKC,,Non Revenue,001,,Cluttons LLP,,,,,06/01/2015,P21025838,"3,000.00",,Other Sale Expenses,,,,,,No,
The Royal Borough of Kensington and Chelsea,RBKC,,Non Revenue,001,,Cluttons LLP,,,,,06/01/2015,P21025840,"1,500.00",,Other Sale Expenses,,,,,,No,
The Royal Borough of Kensington and Chelsea,RBKC,,Non Revenue,001,,Cluttons LLP,,,,,06/01/2015,P21025841,"1,500.00",,Other Sale Expenses,,,,,,No,
The Royal Borough of Kensington and Chelsea,RBKC,,Non Revenue,001,,Cluttons LLP,,,,,06/01/2015,P21025842,"1,500.00",,Other Sale Expenses,,,,,,No,
The Royal Borough of Kensington and Chelsea,RBKC,,Non Revenue,001,,Cluttons LLP,,,,,06/01/2015,P21025836,750.00,,Other Sale Expenses,,,,,,No,
The Royal Borough of Kensington and Chelsea,RBKC,,Non Revenue,001,,Digital Message Ltd,,,,,06/01/2015,P21025893,"5,348.00",,Furn & Equip-Init Furn & Equip,,,,,,No,
The Royal Borough of Kensington and Chelsea,RBKC,,Operations,AS6,,Dust to Daisies Cleaning & Care Services,,,,,06/01/2015,P21024799,654.00,,Home Care,,,,,,No,
The Royal Borough of Kensington and Chelsea,RBKC,,Operations,AS6,,Dust to Daisies Cleaning & Care Services,,,,,06/01/2015,P21024798,611.00,,Supported Living,,,,,,No,
The Royal Borough of Kensington and Chelsea,RBKC,,Operations,AS6,,Dust to Daisies Cleaning & Care Services,,,,,06/01/2015,P21024798,521.00,,Supported Living,,,,,,No,
The Royal Borough of Kensington and Chelsea,RBKC,,Strategy & Local Services,CPU,,Equal People (Kensington & Chelsea),,,,,06/01/2015,P41024756,"1,125.00",,Payments To Vol Orgs,,,,,,No,
The Royal Borough of Kensington and Chelsea,RBKC,,Transportation & Highways,YTH,,Eurovia Infrastructure Ltd,,,,,06/01/2015,P21025888,649.82,,Public Lighting-Minor Roads,,,,,,No,
The Royal Borough of Kensington and Chelsea,RBKC,,Transportation & Highways,YTH,,Eurovia Infrastructure Ltd,,,,,06/01/2015,P21025888,"2,141.30",,Public Lighting-Minor Roads,,,,,,No,
The Royal Borough of Kensington and Chelsea,RBKC,,Family Services - RBKC,SKC,,Geraldine Thomas,,,,,06/01/2015,P21025843,"1,901.60",,Medical Fees,,,,,,No,
The Royal Borough of Kensington and Chelsea,RBKC,,Human Resources,CHG,,Globaltech Solutions Ltd,,,,,06/01/2015,P21025933,750.00,,Annual Programme,,,,,,No,
The Royal Borough of Kensington and Chelsea,RBKC,,Family Services - RBKC,SKC,,Hilltop Hotel,,,,,06/01/2015,P21025919,"1,550.00",,Families Denied Ben-Accom Cost,,,,,,No,
The Royal Borough of Kensington and Chelsea,RBKC,,Family Services - RBKC,SKC,,Hilltop Hotel,,,,,06/01/2015,P21024807,750.00,,Families Denied Ben-Accom Cost,,,,,,No,
The Royal Borough of Kensington and Chelsea,RBKC,,Tri-Borough Education Service,SED,,Holland Park School Ltd,,,,,06/01/2015,P41025805,"10,000.00",,Grants Given-Misc,,,,,,No,
The Royal Borough of Kensington and Chelsea,RBKC,,Non Revenue,001,,Individual Care Services,,,,,06/01/2015,P41025814,"1,547.00",,Payments,,,,,,No,
The Royal Borough of Kensington and Chelsea,RBKC,,Information Systems,CIS,,Insight Direct (UK) Ltd,,,,,06/01/2015,P21024762,632.82,,Equipm Computer Hardware,,,,,,No,
The Royal Borough of Kensington and Chelsea,RBKC,,Environmental Health,YEH,,Insight Direct (UK) Ltd,,,,,06/01/2015,P21024762,"1,265.64",,Equipment-Maintenance,,,,,,No,
The Royal Borough of Kensington and Chelsea,RBKC,,Non Revenue,001,,ITC Concepts Ltd,,,,,06/01/2015,P21024763,"224,070.00",,Construction-Main Ctrctrs A/C,,,,,,No,
The Royal Borough of Kensington and Chelsea,RBKC,,Information Systems,CIS,,Khipu Networks Ltd,,,,,06/01/2015,P21025845,"4,296.06",,Network Maintenance,,,,,,No,
The Royal Borough of Kensington and Chelsea,RBKC,,Non Revenue,001,,Konica Minolta Business Solutions (UK),,,,,06/01/2015,P21025896,"26,912.61",,Payments,,,,,,No,
The Royal Borough of Kensington and Chelsea,RBKC,,Public Health,JPH,,London North West Healthcare NHS Trust,,,,,06/01/2015,P21024774,"1,102.00",,Contract Costs,,,,,,No,
The Royal Borough of Kensington and Chelsea,RBKC,,Non Revenue,001,,Man With a Van UK,,,,,06/01/2015,P21025889,630.00,,Furn & Equip-Init Furn & Equip,,,,,,No,
The Royal Borough of Kensington and Chelsea,RBKC,,LibrarySupt Services,LSS,,Mastercolour Plc,,,,,06/01/2015,P21025910,857.17,,External Printing,,,,,,No,
The Royal Borough of Kensington and Chelsea,RBKC,,Family Services - RBKC,SKC,,Maxilla Nursery School,,,,,06/01/2015,P41025797,"5,476.38",,Special Needs,,,,,,No,
The Royal Borough of Kensington and Chelsea,RBKC,,Non Revenue,001,,MR P ROGALA,,,,,06/01/2015,PU285081,600.00,,Responsive Building Repairs,,,,,,No,
The Royal Borough of Kensington and Chelsea,RBKC,,Public Health,JPH,,MSH Health & Wellbeing CIC,,,,,06/01/2015,P21025892,"13,103.00",,Contract Costs,,,,,,No,
The Royal Borough of Kensington and Chelsea,RBKC,,Customer & Business Improvemnt,YCB,,Newbury Fork Truck Centre Ltd,,,,,06/01/2015,P21024787,"2,769.00",,Forklift maintenance,,,,,,No,
The Royal Borough of Kensington and Chelsea,RBKC,,Strategy & Local Services,CPU,,Octavia Foundation,,,,,06/01/2015,P41025822,"8,900.00",,Payments To Vol Orgs,,,,,,No,
The Royal Borough of Kensington and Chelsea,RBKC,,Strategy & Local Services,CPU,,Open Age,,,,,06/01/2015,P41025820,"5,000.00",,Payments To Vol Orgs,,,,,,No,
The Royal Borough of Kensington and Chelsea,RBKC,,Strategy & Local Services,CPU,,Open Age,,,,,06/01/2015,P41025821,"9,823.00",,Payments To Vol Orgs,,,,,,No,
The Royal Borough of Kensington and Chelsea,RBKC,,Non Revenue,001,,P Dutson Associates Ltd,,,,,06/01/2015,P21024803,"1,416.00",,Expenditure,,,,,,No,
The Royal Borough of Kensington and Chelsea,RBKC,,Tri-Borough Education Service,SED,,Parayhouse School,,,,,06/01/2015,P21024764,"5,540.00",,Independent Schools,,,,,,No,
The Royal Borough of Kensington and Chelsea,RBKC,,Family Services - RBKC,SKC,,Redact Details,,,,,06/01/2015,PI1024617,868.00,,Foster Carers,,,,,,No,
The Royal Borough of Kensington and Chelsea,RBKC,,Family Services - RBKC,SKC,,Redact Details,,,,,06/01/2015,PI1024625,533.50,,Foster Carers,,,,,,No,
The Royal Borough of Kensington and Chelsea,RBKC,,Family Services - RBKC,SKC,,Redact Details,,,,,06/01/2015,PI1024667,533.50,,Foster Carers,,,,,,No,
The Royal Borough of Kensington and Chelsea,RBKC,,Family Services - RBKC,SKC,,Redact Details,,,,,06/01/2015,PI1024673,512.50,,Foster Carers,,,,,,No,
The Royal Borough of Kensington and Chelsea,RBKC,,Family Services - RBKC,SKC,,Redact Details,,,,,06/01/2015,PI1024677,564.50,,Foster Carers,,,,,,No,
The Royal Borough of Kensington and Chelsea,RBKC,,Family Services - RBKC,SKC,,Redact Details,,,,,06/01/2015,PI1024710,"1,019.43",,Foster Carers,,,,,,No,
The Royal Borough of Kensington and Chelsea,RBKC,,Family Services - RBKC,SKC,,Redact Details,,,,,06/01/2015,PI1024716,711.00,,Foster Carers,,,,,,No,
The Royal Borough of Kensington and Chelsea,RBKC,,Non Revenue,001,,Redact Details,,,,,06/01/2015,P41025794,"1,540.00",,Trainee Awards,,,,,,No,
The Royal Borough of Kensington and Chelsea,RBKC,,Operations,AS6,,Respect Care Services Ltd,,,,,06/01/2015,P21024767,"1,223.40",,Home Care-Ext Providers-Health,,,,,,No,
The Royal Borough of Kensington and Chelsea,RBKC,,Strategy & Local Services,CPU,,Response Community Projects Ltd,,,,,06/01/2015,P41025798,"8,775.00",,Grants Given-Misc,,,,,,No,
The Royal Borough of Kensington and Chelsea,RBKC,,Tri-Borough Education Service,SED,,Sion-Manning RC Secondary School,,,,,06/01/2015,P41025803,"10,000.00",,Grants Given-Misc,,,,,,No,
The Royal Borough of Kensington and Chelsea,RBKC,,Tri/Bi-Borough Projects,CTB,,Speak Communications Ltd,,,,,06/01/2015,P21024795,"5,333.33",,Consultants,,,,,,No,
The Royal Borough of Kensington and Chelsea,RBKC,,Information Systems,CIS,,Speak Communications Ltd,,,,,06/01/2015,P21024795,"2,666.67",,Fees-Consultants,,,,,,No,
The Royal Borough of Kensington and Chelsea,RBKC,,Tri/Bi-Borough Projects,CTB,,Speak Communications Ltd,,,,,06/01/2015,P21024796,"3,866.67",,Consultants,,,,,,No,
The Royal Borough of Kensington and Chelsea,RBKC,,Information Systems,CIS,,Speak Communications Ltd,,,,,06/01/2015,P21024796,"1,933.33",,Fees-Consultants,,,,,,No,
The Royal Borough of Kensington and Chelsea,RBKC,,Tri/Bi-Borough Projects,CTB,,Speak Communications Ltd,,,,,06/01/2015,P21024797,"5,333.33",,Consultants,,,,,,No,
The Royal Borough of Kensington and Chelsea,RBKC,,Information Systems,CIS,,Speak Communications Ltd,,,,,06/01/2015,P21024797,"2,666.67",,Fees-Consultants,,,,,,No,
The Royal Borough of Kensington and Chelsea,RBKC,,Tri-Borough Education Service,SED,,St Thomas More School,,,,,06/01/2015,P41025802,"10,000.00",,Grants Given-Misc,,,,,,No,
The Royal Borough of Kensington and Chelsea,RBKC,,Hsg Needs and Homelessness,HNH,,Staying First,,,,,06/01/2015,P41025796,"93,133.00",,Payments To Vol Orgs,,,,,,No,
The Royal Borough of Kensington and Chelsea,RBKC,,Hsg Needs and Homelessness,HNH,,Storing.com Ltd,,,,,06/01/2015,P21024768,"1,937.75",,Storage-Homeless Persons,,,,,,No,
The Royal Borough of Kensington and Chelsea,RBKC,,Tri-Borough Education Service,SED,,TBAP Trust,,,,,06/01/2015,P41025806,"5,000.00",,Grants Given-Misc,,,,,,No,
The Royal Borough of Kensington and Chelsea,RBKC,,Transportation & Highways,YTH,,Technicolour Tyre Company Ltd,,,,,06/01/2015,P21024800,"1,552.50",,Initiatives,,,,,,No,
The Royal Borough of Kensington and Chelsea,RBKC,,Strategy & Local Services,CPU,,The Clement James Centre,,,,,06/01/2015,P41024755,"7,500.00",,Grants Given-Misc,,,,,,No,
The Royal Borough of Kensington and Chelsea,RBKC,,Internal Audit & Risk Mngmnt,CFA,,The London Borough of Croydon,,,,,06/01/2015,P21025922,"8,302.50",,General Hired & Contracted Ser,,,,,,No,
The Royal Borough of Kensington and Chelsea,RBKC,,Tri-Borough Education Service,SED,,The Roche School,,,,,06/01/2015,P21024805,"3,383.00",,Independent Schools,,,,,,No,
The Royal Borough of Kensington and Chelsea,RBKC,,Non Revenue,001,,Thebigword,,,,,06/01/2015,P21025920,534.10,,Payments,,,,,,No,
The Royal Borough of Kensington and Chelsea,RBKC,,Safer Neighbourhoods,YSN,,Treemasters Ltd,,,,,06/01/2015,P21024801,"1,500.00",,Tree Management,,,,,,No,
The Royal Borough of Kensington and Chelsea,RBKC,,Support Services & Executive,PS,,Trinity Mirror Publishing Ltd,,,,,06/01/2015,P21024766,540.00,,Advertising,,,,,,No,
The Royal Borough of Kensington and Chelsea,RBKC,,Provided Services/ MH Partners,AS5,,Turning Point,,,,,06/01/2015,P21025846,"20,790.00",,VO Supp Accomodation,,,,,,No,
The Royal Borough of Kensington and Chelsea,RBKC,,Provided Services/ MH Partners,AS5,,Turning Point,,,,,06/01/2015,P21025846,"38,610.00",,VO Supp Accom,,,,,,No,
The Royal Borough of Kensington and Chelsea,RBKC,,Provided Services/ MH Partners,AS5,,Turning Point,,,,,06/01/2015,P21025847,"21,291.99",,VO Supp Accomodation,,,,,,No,
The Royal Borough of Kensington and Chelsea,RBKC,,Provided Services/ MH Partners,AS5,,Turning Point,,,,,06/01/2015,P21025847,"39,542.26",,VO Supp Accom,,,,,,No,
The Royal Borough of Kensington and Chelsea,RBKC,,Provided Services/ MH Partners,AS5,,Westcliffe House Ltd,,,,,06/01/2015,P21024802,"2,466.71",,P&V Residential,,,,,,No,
The Royal Borough of Kensington and Chelsea,RBKC,,Strategy & Local Services,CPU,,Westway Development Trust,,,,,06/01/2015,P41025815,"3,857.50",,Payments To Vol Orgs,,,,,,No,
The Royal Borough of Kensington and Chelsea,RBKC,,Non Revenue,001,,Yarrow Housing Ltd,,,,,06/01/2015,P41025807,678.40,,Payments,,,,,,No,
The Royal Borough of Kensington and Chelsea,RBKC,,Non Revenue,001,,Yarrow Housing Ltd,,,,,06/01/2015,P41025809,"2,374.40",,Payments,,,,,,No,
The Royal Borough of Kensington and Chelsea,RBKC,,Non Revenue,001,,Yarrow Housing Ltd,,,,,06/01/2015,P41025810,949.76,,Payments,,,,,,No,
The Royal Borough of Kensington and Chelsea,RBKC,,Non Revenue,001,,Yarrow Housing Ltd,,,,,06/01/2015,P41025817,"2,320.00",,Payments,,,,,,No,
The Royal Borough of Kensington and Chelsea,RBKC,,Non Revenue,001,,Yarrow Housing Ltd,,,,,06/01/2015,P41025819,678.40,,Payments,,,,,,No,
The Royal Borough of Kensington and Chelsea,RBKC,,Legal Services,CLA,,9-12 Bell Yard Advocacy Services Ltd,,,,,07/01/2015,P21026524,"2,500.00",,Counsels Fees,,,,,,No,
The Royal Borough of Kensington and Chelsea,RBKC,,Public Health,JPH,,Action On Addiction Ltd,,,,,07/01/2015,P21026094,"20,000.00",,Contract Costs,,,,,,No,
The Royal Borough of Kensington and Chelsea,RBKC,,Strategy & Local Services,CPU,,Al-Hasaniya Moroccan Womens Project,,,,,07/01/2015,P41026021,"16,907.50",,Grants Given-Misc,,,,,,No,
The Royal Borough of Kensington and Chelsea,RBKC,,Non Revenue,001,,Appleyards Ltd T/a Artelia,,,,,07/01/2015,PL823725,"4,921.75",,Fees-Consultants,,,,,,No,
The Royal Borough of Kensington and Chelsea,RBKC,,Non Revenue,001,,Architects Design Partnership LLP,,,,,07/01/2015,P21026084,550.00,,Fees-Consultants,,,,,,No,
The Royal Borough of Kensington and Chelsea,RBKC,,Non Revenue,001,,Atkins Ltd,,,,,07/01/2015,P21026082,900.00,,Fees-Consultants,,,,,,No,
The Royal Borough of Kensington and Chelsea,RBKC,,Operations,AS6,,Bluebird Care (Kensington & Chelsea),,,,,07/01/2015,P21026571,993.75,,Home Care-Ext Providers-Health,,,,,,No,
The Royal Borough of Kensington and Chelsea,RBKC,,Operations,AS6,,Bluebird Care (Kensington & Chelsea),,,,,07/01/2015,P21026570,"1,412.88",,Home Care-Ext Providers-Health,,,,,,No,
The Royal Borough of Kensington and Chelsea,RBKC,,Operations,AS6,,Bluebird Care (Kensington & Chelsea),,,,,07/01/2015,P21026569,978.08,,Home Care-Ext Providers-Health,,,,,,No,
The Royal Borough of Kensington and Chelsea,RBKC,,Operations,AS6,,Bluebird Care (Kensington & Chelsea),,,,,07/01/2015,P21026567,733.22,,Home Care-Ext Providers-Health,,,,,,No,
The Royal Borough of Kensington and Chelsea,RBKC,,Operations,AS6,,Bluebird Care (Kensington & Chelsea),,,,,07/01/2015,P21026566,538.34,,Home Care over 65,,,,,,No,
The Royal Borough of Kensington and Chelsea,RBKC,,Operations,AS6,,Bluebird Care (Kensington & Chelsea),,,,,07/01/2015,P21026565,"1,138.87",,Home Care-Ext Providers-Health,,,,,,No,
The Royal Borough of Kensington and Chelsea,RBKC,,Operations,AS6,,Bluebird Care (Kensington & Chelsea),,,,,07/01/2015,P21026563,784.88,,Home Care over 65,,,,,,No,
The Royal Borough of Kensington and Chelsea,RBKC,,Operations,AS6,,Bluebird Care (Kensington & Chelsea),,,,,07/01/2015,P21026562,657.98,,Home Care over 65,,,,,,No,
The Royal Borough of Kensington and Chelsea,RBKC,,Operations,AS6,,Bluebird Care (Kensington & Chelsea),,,,,07/01/2015,P21026560,"1,297.28",,Home Care over 65,,,,,,No,
The Royal Borough of Kensington and Chelsea,RBKC,,Operations,AS6,,Bluebird Care (Kensington & Chelsea),,,,,07/01/2015,P21026557,717.60,,Home Care-Ext Providers-Health,,,,,,No,
The Royal Borough of Kensington and Chelsea,RBKC,,Operations,AS6,,Bluebird Care (Kensington & Chelsea),,,,,07/01/2015,P21026556,750.94,,Home Care-Ext Providers-Health,,,,,,No,
The Royal Borough of Kensington and Chelsea,RBKC,,Operations,AS6,,Bluebird Care (Kensington & Chelsea),,,,,07/01/2015,P21026554,609.35,,Home Care over 65,,,,,,No,
The Royal Borough of Kensington and Chelsea,RBKC,,Operations,AS6,,Bluebird Care (Kensington & Chelsea),,,,,07/01/2015,P21026552,"1,854.00",,Home Care-Ext Providers-Health,,,,,,No,
The Royal Borough of Kensington and Chelsea,RBKC,,School Funding,SSF,,Bousfield Primary School,,,,,07/01/2015,P41026511,"20,950.00",,Grants Given-Misc,,,,,,No,
The Royal Borough of Kensington and Chelsea,RBKC,,Public Health,JPH,,Build on Belief Ltd,,,,,07/01/2015,P21026092,"12,083.33",,Contract Costs,,,,,,No,
The Royal Borough of Kensington and Chelsea,RBKC,,Non Revenue,001,,C S Stokes And Associates Ltd,,,,,07/01/2015,PL823726,705.00,,Fees-Consultants,,,,,,No,
The Royal Borough of Kensington and Chelsea,RBKC,,"Cleaner,Greener & Cultural Ser",YCG,,Capital Scenery Ltd,,,,,07/01/2015,P21026609,"20,000.00",,Set,,,,,,No,
The Royal Borough of Kensington and Chelsea,RBKC,,Operations,AS6,,Carewatch (Kensington & Chelsea),,,,,07/01/2015,P21026070,"1,075.48",,Home Care over 65,,,,,,No,
The Royal Borough of Kensington and Chelsea,RBKC,,Operations,AS6,,Carewatch (Kensington & Chelsea),,,,,07/01/2015,P21026043,806.44,,Home Care,,,,,,No,
The Royal Borough of Kensington and Chelsea,RBKC,,Operations,AS6,,Carewatch (Kensington & Chelsea),,,,,07/01/2015,P21026046,"2,250.00",,Home Care-Ext Providers-Health,,,,,,No,
The Royal Borough of Kensington and Chelsea,RBKC,,Operations,AS6,,Carewatch (Kensington & Chelsea),,,,,07/01/2015,P21026052,748.32,,Home Care over 65,,,,,,No,
The Royal Borough of Kensington and Chelsea,RBKC,,Operations,AS6,,Carewatch (Kensington & Chelsea),,,,,07/01/2015,P21026049,"1,555.76",,Home Care-Ext Providers-Health,,,,,,No,
The Royal Borough of Kensington and Chelsea,RBKC,,Operations,AS6,,Carewatch (Kensington & Chelsea),,,,,07/01/2015,P21026047,"1,121.40",,Home Care over 65,,,,,,No,
The Royal Borough of Kensington and Chelsea,RBKC,,Operations,AS6,,Carewatch (Kensington & Chelsea),,,,,07/01/2015,P21026061,"1,336.28",,Home Care,,,,,,No,
The Royal Borough of Kensington and Chelsea,RBKC,,Operations,AS6,,Carewatch (Kensington & Chelsea),,,,,07/01/2015,P21026059,790.16,,Home Care over 65,,,,,,No,
The Royal Borough of Kensington and Chelsea,RBKC,,Operations,AS6,,Carewatch (Kensington & Chelsea),,,,,07/01/2015,P21026058,"1,619.60",,Home Care over 65,,,,,,No,
The Royal Borough of Kensington and Chelsea,RBKC,,Hsg Needs and Homelessness,HNH,,Castleline Ltd,,,,,07/01/2015,P21026576,"1,749.33",,PLA Accommod - Stat Homeless,,,,,,No,
The Royal Borough of Kensington and Chelsea,RBKC,,Hsg Needs and Homelessness,HNH,,Castleline Ltd,,,,,07/01/2015,P21026577,"1,650.44",,PLA Accommod - Stat Homeless,,,,,,No,
The Royal Borough of Kensington and Chelsea,RBKC,,Legal Services,CLA,,Celina Colquhoun,,,,,07/01/2015,P21026532,750.00,,Counsels Fees,,,,,,No,
The Royal Borough of Kensington and Chelsea,RBKC,,Operations,AS6,,Central & North West London NHS Trust,,,,,07/01/2015,P21026542,"16,050.00",,Payments To Vol Orgs,,,,,,No,
The Royal Borough of Kensington and Chelsea,RBKC,,Strategy & Local Services,CPU,,Chelsea Theatre,,,,,07/01/2015,P41026019,"21,625.00",,Grants Given-Misc,,,,,,No,
The Royal Borough of Kensington and Chelsea,RBKC,,Strategy & Local Services,CPU,,Chroma Vision Ltd,,,,,07/01/2015,P21026526,"7,119.62",,CCTV Equipment Maintenance,,,,,,No,
The Royal Borough of Kensington and Chelsea,RBKC,,Operations,AS6,,CNWL NHS Foundation Trust,,,,,07/01/2015,P21026077,"10,419.37",,Salaries Agency,,,,,,No,
The Royal Borough of Kensington and Chelsea,RBKC,,Operations,AS6,,CNWL NHS Foundation Trust,,,,,07/01/2015,P21026075,"10,430.62",,Salaries Agency,,,,,,No,
The Royal Borough of Kensington and Chelsea,RBKC,,Family Services - RBKC,SKC,,CNWL NHS Foundation Trust,,,,,07/01/2015,P21026601,"3,250.00",,Commissioned Services,,,,,,No,
The Royal Borough of Kensington and Chelsea,RBKC,,Family Services - RBKC,SKC,,CNWL NHS Foundation Trust,,,,,07/01/2015,P21026602,"3,049.00",,Commissioned Services,,,,,,No,
The Royal Borough of Kensington and Chelsea,RBKC,,Strategy & Local Services,CPU,,Community Accountancy Self-Help,,,,,07/01/2015,P41026020,"7,550.00",,Grants Given-Misc,,,,,,No,
The Royal Borough of Kensington and Chelsea,RBKC,,Corporate Property,CBV,,Coretex International Ltd,,,,,07/01/2015,P21026592,"4,900.00",,Consultants,,,,,,No,
The Royal Borough of Kensington and Chelsea,RBKC,,Hsg Needs and Homelessness,HNH,,Cromwood Ltd,,,,,07/01/2015,P21026573,"14,454.99",,PLA Accommod - Stat Homeless,,,,,,No,
The Royal Borough of Kensington and Chelsea,RBKC,,Strategy & Local Services,CPU,,Dalgarno Neighbourhood Trust Ltd,,,,,07/01/2015,P41026014,"14,795.75",,Grants Given-Misc,,,,,,No,
The Royal Borough of Kensington and Chelsea,RBKC,,Family Services - RBKC,SKC,,Earls Court YMCA,,,,,07/01/2015,P21026539,"1,154.13",,Semi Independent,,,,,,No,
The Royal Borough of Kensington and Chelsea,RBKC,,Transportation & Highways,YTH,,Eurovia Infrastructure Ltd,,,,,07/01/2015,P21026527,"2,015.84",,White Lights � Relighting,,,,,,No,
The Royal Borough of Kensington and Chelsea,RBKC,,Transportation & Highways,YTH,,Eurovia Infrastructure Ltd,,,,,07/01/2015,P21026527,"17,939.60",,White Lights � Relighting,,,,,,No,
The Royal Borough of Kensington and Chelsea,RBKC,,Transportation & Highways,YTH,,Eurovia Infrastructure Ltd,,,,,07/01/2015,P21026091,"3,030.10",,Public Lighting-Contract Maint,,,,,,No,
The Royal Borough of Kensington and Chelsea,RBKC,,Transportation & Highways,YTH,,Eurovia Infrastructure Ltd,,,,,07/01/2015,P21026091,"9,706.25",,Public Lighting-Contract Maint,,,,,,No,
The Royal Borough of Kensington and Chelsea,RBKC,,Transportation & Highways,YTH,,Eurovia Infrastructure Ltd,,,,,07/01/2015,P21026091,"10,120.93",,Traffic Signs � Contract Maint,,,,,,No,
The Royal Borough of Kensington and Chelsea,RBKC,,Non Revenue,001,,Fairhurst Ward Abbotts Ltd,,,,,07/01/2015,PL823727,"14,257.36",,Construction-Main Ctrctrs A/C,,,,,,No,
The Royal Borough of Kensington and Chelsea,RBKC,,Non Revenue,001,,Fairhurst Ward Abbotts Ltd,,,,,07/01/2015,PL823727,"214,472.76",,PM-External Decorations,,,,,,No,
The Royal Borough of Kensington and Chelsea,RBKC,,Family Services - RBKC,SKC,,Fostering Together Ltd,,,,,07/01/2015,P21026042,"5,234.35",,P & V Fostering,,,,,,No,
The Royal Borough of Kensington and Chelsea,RBKC,,Non Revenue,001,,Gage-Tupper & Associates Ltd,,,,,07/01/2015,PL823729,"2,064.00",,PM-External Decorations,,,,,,No,
The Royal Borough of Kensington and Chelsea,RBKC,,Non Revenue,001,,Gage-Tupper & Associates Ltd,,,,,07/01/2015,PL823730,"1,806.00",,PM-External Decorations,,,,,,No,
The Royal Borough of Kensington and Chelsea,RBKC,,Non Revenue,001,,Gage-Tupper & Associates Ltd,,,,,07/01/2015,PL823731,"2,886.38",,Fees-Consultants,,,,,,No,
The Royal Borough of Kensington and Chelsea,RBKC,,Strategy & Local Services,CPU,,Golborne Forum,,,,,07/01/2015,P41026011,"1,500.00",,Grants Given-Misc,,,,,,No,
The Royal Borough of Kensington and Chelsea,RBKC,,Strategy & Local Services,CPU,,Goldfinger Factory,,,,,07/01/2015,P41025985,"12,500.00",,Payments To Vol Orgs,,,,,,No,
The Royal Borough of Kensington and Chelsea,RBKC,,Strategy & Local Services,CPU,,Groundwork London,,,,,07/01/2015,P41025986,"12,908.50",,Payments To Vol Orgs,,,,,,No,
The Royal Borough of Kensington and Chelsea,RBKC,,"Cleaner,Greener & Cultural Ser",YCG,,Gulan,,,,,07/01/2015,P21026089,560.00,,Artist Fees,,,,,,No,
The Royal Borough of Kensington and Chelsea,RBKC,,Non Revenue,001,,Harlow Associates Ltd,,,,,07/01/2015,PL823732,"1,050.00",,Fees-Consultants,,,,,,No,
The Royal Borough of Kensington and Chelsea,RBKC,,Non Revenue,001,,Harlow Associates Ltd,,,,,07/01/2015,PL823732,"2,625.00",,Fees-Consultants,,,,,,No,
The Royal Borough of Kensington and Chelsea,RBKC,,Non Revenue,001,,Harlow Associates Ltd,,,,,07/01/2015,PL823732,"1,500.00",,Fees-Consultants,,,,,,No,
The Royal Borough of Kensington and Chelsea,RBKC,,Strategy & Local Services,CPU,,Help Counselling Centre,,,,,07/01/2015,P41025984,"5,564.00",,Payments To Vol Orgs,,,,,,No,
The Royal Borough of Kensington and Chelsea,RBKC,,Legal Services,CLA,,Her Majesty's Courts & Tribunals Service,,,,,07/01/2015,P41026497,545.00,,Legal Issue Fees,,,,,,No,
The Royal Borough of Kensington and Chelsea,RBKC,,Strategy & Local Services,CPU,,Hodan Somali Community,,,,,07/01/2015,P41026010,"5,450.00",,Grants Given-Misc,,,,,,No,
The Royal Borough of Kensington and Chelsea,RBKC,,Non Revenue,001,,Holmdale Print Ltd,,,,,07/01/2015,PL823733,863.14,,Expenses-Other,,,,,,No,
The Royal Borough of Kensington and Chelsea,RBKC,,Non Revenue,001,,Holmdale Print Ltd,,,,,07/01/2015,PL823736,"1,511.51",,PM-External Decorations,,,,,,No,
The Royal Borough of Kensington and Chelsea,RBKC,,Non Revenue,001,,IDCC LTD,,,,,07/01/2015,PI1026160,"24,240.00",,ARW-Portobello Area,,,,,,No,
The Royal Borough of Kensington and Chelsea,RBKC,,Customer & Business Improvemnt,YCB,,Imperial Polythene Products,,,,,07/01/2015,P21026538,"2,970.24",,Purchase Of Plastic Sacks,,,,,,No,
The Royal Borough of Kensington and Chelsea,RBKC,,Non Revenue,001,,John Rowan & Partners LLP,,,,,07/01/2015,PL823737,819.00,,PM-Rewiring Works,,,,,,No,
The Royal Borough of Kensington and Chelsea,RBKC,,Non Revenue,001,,John Rowan & Partners LLP,,,,,07/01/2015,PL823738,"1,259.00",,PM-Rewiring Works,,,,,,No,
The Royal Borough of Kensington and Chelsea,RBKC,,Strategy & Local Services,CPU,,Kalayaan,,,,,07/01/2015,P41026009,"2,400.00",,Grants Given-Misc,,,,,,No,
The Royal Borough of Kensington and Chelsea,RBKC,,"Cleaner,Greener & Cultural Ser",YCG,,Kasete Skeen,,,,,07/01/2015,P21026545,"2,300.00",,Salaries-Holland Park,,,,,,No,
The Royal Borough of Kensington and Chelsea,RBKC,,Strategy & Local Services,CPU,,Kensington & Chelsea Citizens Advice Bur,,,,,07/01/2015,P41026018,"170,867.50",,Grants Given-Misc,,,,,,No,
The Royal Borough of Kensington and Chelsea,RBKC,,Strategy & Local Services,CPU,,Kensington & Chelsea Cruse,,,,,07/01/2015,P41026016,"1,560.50",,Grants Given-Misc,,,,,,No,
The Royal Borough of Kensington and Chelsea,RBKC,,Strategy & Local Services,CPU,,Kensington & Chelsea Social Council,,,,,07/01/2015,P41026013,"53,573.00",,Grants Given-Misc,,,,,,No,
The Royal Borough of Kensington and Chelsea,RBKC,,Non Revenue,001,,Kensington & Chelsea TMO Repairs Direct,,,,,07/01/2015,PI1026399,673.91,,Responsive Building Repairs,,,,,,No,
The Royal Borough of Kensington and Chelsea,RBKC,,Non Revenue,001,,Kensington & Chelsea TMO Repairs Direct,,,,,07/01/2015,PI1026450,853.10,,Responsive Building Repairs,,,,,,No,
The Royal Borough of Kensington and Chelsea,RBKC,,Non Revenue,001,,Kensington & Chelsea TMO Repairs Direct,,,,,07/01/2015,PI1026456,"2,381.00",,PR-Aids and Adaptations,,,,,,No,
The Royal Borough of Kensington and Chelsea,RBKC,,Non Revenue,001,,Kensington & Chelsea TMO Repairs Direct,,,,,07/01/2015,PI1026457,"4,371.81",,RR-Major Works Voids,,,,,,No,
The Royal Borough of Kensington and Chelsea,RBKC,,Non Revenue,001,,Kensington & Chelsea TMO Repairs Direct,,,,,07/01/2015,PI1026458,"3,149.33",,RR-Major Works Voids,,,,,,No,
The Royal Borough of Kensington and Chelsea,RBKC,,Non Revenue,001,,Kensington & Chelsea TMO Repairs Direct,,,,,07/01/2015,PI1026459,"2,622.40",,RR-Major Works Voids,,,,,,No,
The Royal Borough of Kensington and Chelsea,RBKC,,Corporate Property,CBV,,Kensington Temple,,,,,07/01/2015,P41025966,575.00,,Other Lettings Income,,,,,,No,
The Royal Borough of Kensington and Chelsea,RBKC,,Non Revenue,001,,Konica Minolta Business Solutions (UK),,,,,07/01/2015,P21026041,562.44,,Payments,,,,,,No,
The Royal Borough of Kensington and Chelsea,RBKC,,Corporate Property,CBV,,Konica Minolta Business Solutions (UK),,,,,07/01/2015,P21026534,"11,987.50",,Photocopier Hire / Mtce,,,,,,No,
The Royal Borough of Kensington and Chelsea,RBKC,,Non Revenue,001,,Konica Minolta Business Solutions (UK),,,,,07/01/2015,P21026071,"2,848.80",,Payments,,,,,,No,
The Royal Borough of Kensington and Chelsea,RBKC,,Non Revenue,001,,Konica Minolta Business Solutions (UK),,,,,07/01/2015,P21026074,"2,346.97",,Payments,,,,,,No,
The Royal Borough of Kensington and Chelsea,RBKC,,Non Revenue,001,,Konica Minolta Business Solutions (UK),,,,,07/01/2015,P21026073,"2,666.69",,Payments,,,,,,No,
The Royal Borough of Kensington and Chelsea,RBKC,,Strategy & Local Services,CPU,,Latymer Christian Centre,,,,,07/01/2015,P41026003,750.00,,Grants Given-Misc,,,,,,No,
The Royal Borough of Kensington and Chelsea,RBKC,,Safer Neighbourhoods,YSN,,Lodge Brothers (Funeral) Ltd,,,,,07/01/2015,P21026590,635.00,,Removal/Refixing-Headstones,,,,,,No,
The Royal Borough of Kensington and Chelsea,RBKC,,Provided Services/ MH Partners,AS5,,London Cyrenians Housing Ltd,,,,,07/01/2015,P21026024,"1,050.86",,VO Supp Accom,,,,,,No,
The Royal Borough of Kensington and Chelsea,RBKC,,Provided Services/ MH Partners,AS5,,London Cyrenians Housing Ltd,,,,,07/01/2015,P21026027,"1,085.89",,VO Supp Accom,,,,,,No,
The Royal Borough of Kensington and Chelsea,RBKC,,Provided Services/ MH Partners,AS5,,London Cyrenians Housing Ltd,,,,,07/01/2015,P21026032,"1,085.89",,VO Supp Accom,,,,,,No,
The Royal Borough of Kensington and Chelsea,RBKC,,Provided Services/ MH Partners,AS5,,Manor Lodge Hotel,,,,,07/01/2015,P21026023,"1,395.00",,P&V Homes & Hostels,,,,,,No,
The Royal Borough of Kensington and Chelsea,RBKC,,Provided Services/ MH Partners,AS5,,Manor Lodge Hotel,,,,,07/01/2015,P21026025,"1,350.00",,P&V Homes & Hostels,,,,,,No,
The Royal Borough of Kensington and Chelsea,RBKC,,Legal Services,CLA,,Matt Hutchings,,,,,07/01/2015,P21026523,"1,370.00",,Counsels Fees,,,,,,No,
The Royal Borough of Kensington and Chelsea,RBKC,,Non Revenue,001,,Max Fordham LLP,,,,,07/01/2015,PL823739,"6,743.75",,Fees-Consultants,,,,,,No,
The Royal Borough of Kensington and Chelsea,RBKC,,Strategy & Local Services,CPU,,MCHC Trust,,,,,07/01/2015,P41025998,"8,125.00",,Grants Given-Misc,,,,,,No,
The Royal Borough of Kensington and Chelsea,RBKC,,Strategy & Local Services,CPU,,Meanwhile Gardens Community Association,,,,,07/01/2015,P41026002,"15,625.00",,Grants Given-Misc,,,,,,No,
The Royal Borough of Kensington and Chelsea,RBKC,,Hsg Needs and Homelessness,HNH,,Metropolitan & Crown Estate Agent Ltd,,,,,07/01/2015,P21026585,"2,170.00",,PLA Accommod - Stat Homeless,,,,,,No,
The Royal Borough of Kensington and Chelsea,RBKC,,Strategy & Local Services,CPU,,Midaye Somali Developement Network,,,,,07/01/2015,P41026001,"4,125.00",,Grants Given-Misc,,,,,,No,
The Royal Borough of Kensington and Chelsea,RBKC,,Strategy & Local Services,CPU,,Migrant and Refugee Communities Forum,,,,,07/01/2015,P41025999,"14,100.00",,Grants Given-Misc,,,,,,No,
The Royal Borough of Kensington and Chelsea,RBKC,,Provided Services/ MH Partners,AS5,,MiHomecare Ltd,,,,,07/01/2015,P21026030,"3,475.80",,Home Care,,,,,,No,
The Royal Borough of Kensington and Chelsea,RBKC,,"Cleaner,Greener & Cultural Ser",YCG,,MPM Specialist Solutions Ltd,,,,,07/01/2015,P21026088,"4,359.36",,Contractors Costs,,,,,,No,
The Royal Borough of Kensington and Chelsea,RBKC,,Hsg Needs and Homelessness,HNH,,Nablodge Ltd,,,,,07/01/2015,P21026606,"5,456.00",,B&B Accomm-Statutory Homeless,,,,,,No,
The Royal Borough of Kensington and Chelsea,RBKC,,Strategy & Local Services,CPU,,North Kensington Law Centre,,,,,07/01/2015,P41025997,"10,588.50",,Grants Given-Misc,,,,,,No,
The Royal Borough of Kensington and Chelsea,RBKC,,Non Revenue,001,,Notting Hill Housing Trust,,,,,07/01/2015,P21026582,"1,250.00",,Payments,,,,,,No,
The Royal Borough of Kensington and Chelsea,RBKC,,Non Revenue,001,,Notting Hill Housing Trust,,,,,07/01/2015,P21026581,"1,250.00",,Payments,,,,,,No,
The Royal Borough of Kensington and Chelsea,RBKC,,Non Revenue,001,,Notting Hill Housing Trust,,,,,07/01/2015,P21026580,"2,500.00",,Payments,,,,,,No,
The Royal Borough of Kensington and Chelsea,RBKC,,Transportation & Highways,YTH,,NSL Ltd,,,,,07/01/2015,P21026584,"5,039.56",,NCP Labour and Staff Costs,,,,,,No,
The Royal Borough of Kensington and Chelsea,RBKC,,Transportation & Highways,YTH,,NSL Ltd,,,,,07/01/2015,P21026584,"3,433.70",,NCP Labour and Staff Costs,,,,,,No,
The Royal Borough of Kensington and Chelsea,RBKC,,Transportation & Highways,YTH,,NSL Ltd,,,,,07/01/2015,P21026584,"8,590.19",,NCP Labour and Staff Costs,,,,,,No,
The Royal Borough of Kensington and Chelsea,RBKC,,Transportation & Highways,YTH,,NSL Ltd,,,,,07/01/2015,P21026584,"33,694.57",,NCP Labour and Staff Costs,,,,,,No,
The Royal Borough of Kensington and Chelsea,RBKC,,Transportation & Highways,YTH,,NSL Ltd,,,,,07/01/2015,P21026584,"32,357.83",,NCP Labour and Staff Costs,,,,,,No,
The Royal Borough of Kensington and Chelsea,RBKC,,Transportation & Highways,YTH,,NSL Ltd,,,,,07/01/2015,P21026584,"16,954.29",,NCP Labour and Staff Costs,,,,,,No,
The Royal Borough of Kensington and Chelsea,RBKC,,Transportation & Highways,YTH,,NSL Ltd,,,,,07/01/2015,P21026584,"131,312.55",,NCP Labour and Staff Costs,,,,,,No,
The Royal Borough of Kensington and Chelsea,RBKC,,Transportation & Highways,YTH,,NSL Ltd,,,,,07/01/2015,P21026584,"27,432.75",,NCP Labour and Staff Costs,,,,,,No,
The Royal Borough of Kensington and Chelsea,RBKC,,Transportation & Highways,YTH,,NSL Ltd,,,,,07/01/2015,P21026584,"2,436.04",,NCP Labour and Staff Costs,,,,,,No,
The Royal Borough of Kensington and Chelsea,RBKC,,Transportation & Highways,YTH,,NSL Ltd,,,,,07/01/2015,P21026584,"18,675.11",,NCP Accommodation Costs,,,,,,No,
The Royal Borough of Kensington and Chelsea,RBKC,,Transportation & Highways,YTH,,NSL Ltd,,,,,07/01/2015,P21026584,"-7,694.46",,NCP Accommodation Costs,,,,,,No,
The Royal Borough of Kensington and Chelsea,RBKC,,Transportation & Highways,YTH,,NSL Ltd,,,,,07/01/2015,P21026584,"3,487.72",,NCP Equipment& Operating Costs,,,,,,No,
The Royal Borough of Kensington and Chelsea,RBKC,,Transportation & Highways,YTH,,NSL Ltd,,,,,07/01/2015,P21026584,"2,974.19",,NCP Equipment& Operating Costs,,,,,,No,
The Royal Borough of Kensington and Chelsea,RBKC,,Transportation & Highways,YTH,,NSL Ltd,,,,,07/01/2015,P21026584,764.69,,NCP Equipment& Operating Costs,,,,,,No,
The Royal Borough of Kensington and Chelsea,RBKC,,Transportation & Highways,YTH,,NSL Ltd,,,,,07/01/2015,P21026584,"1,774.57",,NCP Equipment& Operating Costs,,,,,,No,
The Royal Borough of Kensington and Chelsea,RBKC,,Transportation & Highways,YTH,,NSL Ltd,,,,,07/01/2015,P21026584,"3,557.18",,NCP Equipment& Operating Costs,,,,,,No,
The Royal Borough of Kensington and Chelsea,RBKC,,Transportation & Highways,YTH,,NSL Ltd,,,,,07/01/2015,P21026584,861.24,,NCP Vehicle Operating Costs,,,,,,No,
The Royal Borough of Kensington and Chelsea,RBKC,,Transportation & Highways,YTH,,NSL Ltd,,,,,07/01/2015,P21026584,826.34,,NCP Vehicle Operating Costs,,,,,,No,
The Royal Borough of Kensington and Chelsea,RBKC,,Transportation & Highways,YTH,,NSL Ltd,,,,,07/01/2015,P21026584,"4,057.86",,NCP Other Direct Contrct Costs,,,,,,No,
The Royal Borough of Kensington and Chelsea,RBKC,,Transportation & Highways,YTH,,NSL Ltd,,,,,07/01/2015,P21026584,"2,891.12",,NCP Other Direct Contrct Costs,,,,,,No,
The Royal Borough of Kensington and Chelsea,RBKC,,Transportation & Highways,YTH,,NSL Ltd,,,,,07/01/2015,P21026584,"1,796.33",,NCP Depreciation,,,,,,No,
The Royal Borough of Kensington and Chelsea,RBKC,,Transportation & Highways,YTH,,NSL Ltd,,,,,07/01/2015,P21026584,500.42,,NCP Corporate Overheads,,,,,,No,
The Royal Borough of Kensington and Chelsea,RBKC,,Transportation & Highways,YTH,,NSL Ltd,,,,,07/01/2015,P21026584,"6,074.67",,NCP Corporate Overheads,,,,,,No,
The Royal Borough of Kensington and Chelsea,RBKC,,Transportation & Highways,YTH,,NSL Ltd,,,,,07/01/2015,P21026584,"24,298.64",,NCP Profit,,,,,,No,
The Royal Borough of Kensington and Chelsea,RBKC,,Transportation & Highways,YTH,,NSL Ltd,,,,,07/01/2015,P21026584,"27,881.04",,NCP Labour and Staff Costs,,,,,,No,
The Royal Borough of Kensington and Chelsea,RBKC,,Transportation & Highways,YTH,,NSL Ltd,,,,,07/01/2015,P21026584,"20,672.18",,NCP Labour and Staff Costs,,,,,,No,
The Royal Borough of Kensington and Chelsea,RBKC,,Transportation & Highways,YTH,,NSL Ltd,,,,,07/01/2015,P21026584,"7,980.74",,NCP Labour and Staff Costs,,,,,,No,
The Royal Borough of Kensington and Chelsea,RBKC,,Transportation & Highways,YTH,,NSL Ltd,,,,,07/01/2015,P21026584,"13,940.71",,NCP Accommodation Costs,,,,,,No,
The Royal Borough of Kensington and Chelsea,RBKC,,Transportation & Highways,YTH,,NSL Ltd,,,,,07/01/2015,P21026584,626.63,,NCP Equipment& Operating Costs,,,,,,No,
The Royal Borough of Kensington and Chelsea,RBKC,,Transportation & Highways,YTH,,NSL Ltd,,,,,07/01/2015,P21026584,"3,576.48",,NCP Vehicle Operating Costs,,,,,,No,
The Royal Borough of Kensington and Chelsea,RBKC,,Transportation & Highways,YTH,,NSL Ltd,,,,,07/01/2015,P21026584,"3,111.09",,NCP Vehicle Operating Costs,,,,,,No,
The Royal Borough of Kensington and Chelsea,RBKC,,Transportation & Highways,YTH,,NSL Ltd,,,,,07/01/2015,P21026584,900.49,,NCP Other Direct Contrct Costs,,,,,,No,
The Royal Borough of Kensington and Chelsea,RBKC,,Transportation & Highways,YTH,,NSL Ltd,,,,,07/01/2015,P21026584,"2,360.40",,NCP Other Direct Contrct Costs,,,,,,No,
The Royal Borough of Kensington and Chelsea,RBKC,,Transportation & Highways,YTH,,NSL Ltd,,,,,07/01/2015,P21026584,"5,090.57",,NCP Depreciation,,,,,,No,
The Royal Borough of Kensington and Chelsea,RBKC,,Transportation & Highways,YTH,,NSL Ltd,,,,,07/01/2015,P21026584,"1,188.33",,NCP Corporate Overheads,,,,,,No,
The Royal Borough of Kensington and Chelsea,RBKC,,Transportation & Highways,YTH,,NSL Ltd,,,,,07/01/2015,P21026584,"1,754.24",,NCP Corporate Overheads,,,,,,No,
The Royal Borough of Kensington and Chelsea,RBKC,,Transportation & Highways,YTH,,NSL Ltd,,,,,07/01/2015,P21026584,"7,017.14",,NCP Profit,,,,,,No,
The Royal Borough of Kensington and Chelsea,RBKC,,Transportation & Highways,YTH,,NSL Ltd,,,,,07/01/2015,P21026583,"2,062.97",,Salaries,,,,,,No,
The Royal Borough of Kensington and Chelsea,RBKC,,Transportation & Highways,YTH,,NSL Ltd,,,,,07/01/2015,P21026583,"1,160.87",,NCP-Suspension Courtesy Call,,,,,,No,
The Royal Borough of Kensington and Chelsea,RBKC,,Transportation & Highways,YTH,,NSL Ltd,,,,,07/01/2015,P21026583,515.16,,NCP Additional Enforcement,,,,,,No,
The Royal Borough of Kensington and Chelsea,RBKC,,Transportation & Highways,YTH,,NSL Ltd,,,,,07/01/2015,P21026583,654.84,,NCP Additional Enforcement,,,,,,No,
The Royal Borough of Kensington and Chelsea,RBKC,,Transportation & Highways,YTH,,NSL Ltd,,,,,07/01/2015,P21026583,967.97,,NCP Additional Enforcement,,,,,,No,
The Royal Borough of Kensington and Chelsea,RBKC,,Transportation & Highways,YTH,,NSL Ltd,,,,,07/01/2015,P21026583,"5,385.45",,NCP Drop Curb Enforcement,,,,,,No,
The Royal Borough of Kensington and Chelsea,RBKC,,Strategy & Local Services,CPU,,Nucleus Legal Advice Centre,,,,,07/01/2015,P41025996,"49,625.00",,Grants Given-Misc,,,,,,No,
The Royal Borough of Kensington and Chelsea,RBKC,,Transportation & Highways,YTH,,O2,,,,,07/01/2015,P21026547,763.10,,Mobile Phone Charges,,,,,,No,
The Royal Borough of Kensington and Chelsea,RBKC,,Public Health,JPH,,Pamodzi,,,,,07/01/2015,P21026085,772.50,,Contract Costs,,,,,,No,
The Royal Borough of Kensington and Chelsea,RBKC,,Hsg Needs and Homelessness,HNH,,Paradigm Homes Charitable Housing Associ,,,,,07/01/2015,P21026608,941.07,,PLA Accommod - Stat Homeless,,,,,,No,
The Royal Borough of Kensington and Chelsea,RBKC,,Non Revenue,001,,Pellings LLP,,,,,07/01/2015,P31026531,"-9,312.18",,Fees-Consultants,,,,,,No,
The Royal Borough of Kensington and Chelsea,RBKC,,Strategy & Local Services,CPU,,Persian Care Centre,,,,,07/01/2015,P41026514,"1,407.00",,Grants Given-Misc,,,,,,No,
The Royal Borough of Kensington and Chelsea,RBKC,,Non Revenue,001,,PSW Building Consultancy Ltd,,,,,07/01/2015,PL823740,"10,978.17",,Fees-Consultants,,,,,,No,
The Royal Borough of Kensington and Chelsea,RBKC,,Operations,AS6,,Pursuing Indepentent Paths,,,,,07/01/2015,P21026093,556.68,,P&V Day Care,,,,,,No,
The Royal Borough of Kensington and Chelsea,RBKC,,Non Revenue,001,,Q Despatch (West) Ltd,,,,,07/01/2015,P21026586,"2,592.15",,Payments,,,,,,No,
The Royal Borough of Kensington and Chelsea,RBKC,,Non Revenue,001,,Q Despatch (West) Ltd,,,,,07/01/2015,P21026587,"2,424.65",,Payments,,,,,,No,
The Royal Borough of Kensington and Chelsea,RBKC,,Non Revenue,001,,Q Despatch (West) Ltd,,,,,07/01/2015,P21026588,751.10,,Payments,,,,,,No,
The Royal Borough of Kensington and Chelsea,RBKC,,Non Revenue,001,,R & MA STEWART LTD,,,,,07/01/2015,PI1026462,"1,324.72",,RR-Electrical Wiring,,,,,,No,
The Royal Borough of Kensington and Chelsea,RBKC,,Hsg Needs and Homelessness,HNH,,RHP Services Ltd,,,,,07/01/2015,P21026572,"17,177.10",,PLA Accommod - Stat Homeless,,,,,,No,
The Royal Borough of Kensington and Chelsea,RBKC,,Hsg Needs and Homelessness,HNH,,RHP Services Ltd,,,,,07/01/2015,P21026575,"12,127.47",,PLA Accommod - Stat Homeless,,,,,,No,
The Royal Borough of Kensington and Chelsea,RBKC,,Non Revenue,001,,Right of Light Consulting Ltd,,,,,07/01/2015,P21026528,"5,050.00",,Fees-Consultants,,,,,,No,
The Royal Borough of Kensington and Chelsea,RBKC,,Transportation & Highways,YTH,,Royal Mail,,,,,07/01/2015,P21026543,"1,054.59",,Postage/Franking Charges,,,,,,No,
The Royal Borough of Kensington and Chelsea,RBKC,,Corporate Property,CBV,,Royal Mail,,,,,07/01/2015,P21026090,582.50,,Postages,,,,,,No,
The Royal Borough of Kensington and Chelsea,RBKC,,Operations,AS6,,Saga Homecare,,,,,07/01/2015,P21026040,"1,088.43",,Home Care over 65,,,,,,No,
The Royal Borough of Kensington and Chelsea,RBKC,,"Cleaner,Greener & Cultural Ser",YCG,,SDK Environmental Ltd,,,,,07/01/2015,P21026604,"3,281.27",,Animal Warden Contract,,,,,,No,
The Royal Borough of Kensington and Chelsea,RBKC,,Tri-Borough Education Service,SED,,Servite RC Primary School,,,,,07/01/2015,P41026502,"2,480.67",,LEA Current year,,,,,,No,
The Royal Borough of Kensington and Chelsea,RBKC,,Tri-Borough Education Service,SED,,Servite RC Primary School,,,,,07/01/2015,P41026502,665.96,,LEA Current year,,,,,,No,
The Royal Borough of Kensington and Chelsea,RBKC,,Tri-Borough Education Service,SED,,Servite RC Primary School,,,,,07/01/2015,P41026502,665.96,,LEA Current year,,,,,,No,
The Royal Borough of Kensington and Chelsea,RBKC,,Tri-Borough Education Service,SED,,Servite RC Primary School,,,,,07/01/2015,P41026502,"2,480.67",,LEA Current year,,,,,,No,
The Royal Borough of Kensington and Chelsea,RBKC,,Strategy & Local Services,CPU,,Sew Portobello Ltd,,,,,07/01/2015,P41026007,"8,000.00",,Payments To Vol Orgs,,,,,,No,
The Royal Borough of Kensington and Chelsea,RBKC,,Non Revenue,001,,SILK AND MACKMAN SERVICES LTD,,,,,07/01/2015,PI1026202,738.00,,Responsive Security Systems,,,,,,No,
The Royal Borough of Kensington and Chelsea,RBKC,,Tri-Borough Education Service,SED,,Sion-Manning RC Secondary School,,,,,07/01/2015,P41026503,"-1,672.30",,LEA Current year,,,,,,No,
The Royal Borough of Kensington and Chelsea,RBKC,,Tri-Borough Education Service,SED,,Sion-Manning RC Secondary School,,,,,07/01/2015,P41026503,"6,653.44",,LEA Current year,,,,,,No,
The Royal Borough of Kensington and Chelsea,RBKC,,Tri-Borough Education Service,SED,,Sion-Manning RC Secondary School,,,,,07/01/2015,P41026503,"2,205.71",,LEA Current year,,,,,,No,
The Royal Borough of Kensington and Chelsea,RBKC,,Tri-Borough Education Service,SED,,Sion-Manning RC Secondary School,,,,,07/01/2015,P41026503,"-6,031.67",,LEA Current year,,,,,,No,
The Royal Borough of Kensington and Chelsea,RBKC,,Tri-Borough Education Service,SED,,Sion-Manning RC Secondary School,,,,,07/01/2015,P41026503,"3,074.48",,LEA Current year,,,,,,No,
The Royal Borough of Kensington and Chelsea,RBKC,,Tri-Borough Education Service,SED,,Sion-Manning RC Secondary School,,,,,07/01/2015,P41026503,"1,105.89",,LEA Current year,,,,,,No,
The Royal Borough of Kensington and Chelsea,RBKC,,Tri-Borough Education Service,SED,,Sion-Manning RC Secondary School,,,,,07/01/2015,P41026503,"2,480.67",,LEA Current year,,,,,,No,
The Royal Borough of Kensington and Chelsea,RBKC,,Tri-Borough Education Service,SED,,Sion-Manning RC Secondary School,,,,,07/01/2015,P41026503,"1,655.80",,LEA Current year,,,,,,No,
The Royal Borough of Kensington and Chelsea,RBKC,,Tri-Borough Education Service,SED,,Sion-Manning RC Secondary School,,,,,07/01/2015,P41026503,"3,080.01",,LEA Current year,,,,,,No,
The Royal Borough of Kensington and Chelsea,RBKC,,"Cleaner,Greener & Cultural Ser",YCG,,SITA UK Ltd,,,,,07/01/2015,P21026594,"1,153,937.67",,Contract Street Cleansing,,,,,,No,
The Royal Borough of Kensington and Chelsea,RBKC,,"Cleaner,Greener & Cultural Ser",YCG,,SITA UK Ltd,,,,,07/01/2015,P21026593,"5,888.21",,Cleansing Contract-VO's,,,,,,No,
The Royal Borough of Kensington and Chelsea,RBKC,,Non Revenue,001,,Southern Van Lines (2006) Ltd,,,,,07/01/2015,P21026036,"3,950.00",,Fees-Consultants,,,,,,No,
The Royal Borough of Kensington and Chelsea,RBKC,,Strategy & Local Services,CPU,,SPID Theatre Company Ltd,,,,,07/01/2015,P41025994,"3,125.00",,Grants Given-Misc,,,,,,No,
The Royal Borough of Kensington and Chelsea,RBKC,,Tri-Borough Education Service,SED,,St Barnabas & St Philip Primary School,,,,,07/01/2015,P41026504,"2,480.67",,LEA Current year,,,,,,No,
The Royal Borough of Kensington and Chelsea,RBKC,,Tri-Borough Education Service,SED,,St Barnabas & St Philip Primary School,,,,,07/01/2015,P41026504,"2,480.67",,LEA Current year,,,,,,No,
The Royal Borough of Kensington and Chelsea,RBKC,,Tri-Borough Education Service,SED,,St Barnabas & St Philip Primary School,,,,,07/01/2015,P41026504,555.97,,LEA Current year,,,,,,No,
The Royal Borough of Kensington and Chelsea,RBKC,,Tri-Borough Education Service,SED,,St Charles RC Primary School,,,,,07/01/2015,P41026505,"-1,604.40",,LEA Current year,,,,,,No,
The Royal Borough of Kensington and Chelsea,RBKC,,Tri-Borough Education Service,SED,,St Charles RC Primary School,,,,,07/01/2015,P41026505,"6,433.97",,LEA Current year,,,,,,No,
The Royal Borough of Kensington and Chelsea,RBKC,,Tri-Borough Education Service,SED,,St Charles RC Primary School,,,,,07/01/2015,P41026505,"4,636.24",,LEA Current year,,,,,,No,
The Royal Borough of Kensington and Chelsea,RBKC,,Tri-Borough Education Service,SED,,St Charles RC Primary School,,,,,07/01/2015,P41026505,"2,480.67",,LEA Current year,,,,,,No,
The Royal Borough of Kensington and Chelsea,RBKC,,Tri-Borough Education Service,SED,,St Charles RC Primary School,,,,,07/01/2015,P41026505,"2,480.67",,LEA Current year,,,,,,No,
The Royal Borough of Kensington and Chelsea,RBKC,,Tri-Borough Education Service,SED,,St Charles RC Primary School,,,,,07/01/2015,P41026505,"2,693.29",,LEA Current year,,,,,,No,
The Royal Borough of Kensington and Chelsea,RBKC,,Tri-Borough Education Service,SED,,St Charles RC Primary School,,,,,07/01/2015,P41026505,"2,480.66",,LEA Current year,,,,,,No,
The Royal Borough of Kensington and Chelsea,RBKC,,Tri-Borough Education Service,SED,,St Clement & St James CE Primary Schl,,,,,07/01/2015,P41026506,"1,930.76",,LEA Current year,,,,,,No,
The Royal Borough of Kensington and Chelsea,RBKC,,Tri-Borough Education Service,SED,,St Clement & St James CE Primary Schl,,,,,07/01/2015,P41026506,"1,105.89",,LEA Current year,,,,,,No,
The Royal Borough of Kensington and Chelsea,RBKC,,Tri-Borough Education Service,SED,,St Clement & St James CE Primary Schl,,,,,07/01/2015,P41026506,"2,480.67",,LEA Current year,,,,,,No,
The Royal Borough of Kensington and Chelsea,RBKC,,Tri-Borough Education Service,SED,,St Clement & St James CE Primary Schl,,,,,07/01/2015,P41026506,"5,985.06",,LEA Current year,,,,,,No,
The Royal Borough of Kensington and Chelsea,RBKC,,Tri-Borough Education Service,SED,,St Clement & St James CE Primary Schl,,,,,07/01/2015,P41026506,"1,655.80",,LEA Current year,,,,,,No,
The Royal Borough of Kensington and Chelsea,RBKC,,Tri-Borough Education Service,SED,,St Cuthbert St Matthias CE Primary Sch.,,,,,07/01/2015,P41026507,"2,480.67",,LEA Current year,,,,,,No,
The Royal Borough of Kensington and Chelsea,RBKC,,Tri-Borough Education Service,SED,,St Cuthbert St Matthias CE Primary Sch.,,,,,07/01/2015,P41026507,"1,105.89",,LEA Current year,,,,,,No,
The Royal Borough of Kensington and Chelsea,RBKC,,Tri-Borough Education Service,SED,,St Francis RC Primary School,,,,,07/01/2015,P41026508,"2,480.67",,LEA Current year,,,,,,No,
The Royal Borough of Kensington and Chelsea,RBKC,,Tri-Borough Education Service,SED,,St Francis RC Primary School,,,,,07/01/2015,P41026508,"2,480.67",,LEA Current year,,,,,,No,
The Royal Borough of Kensington and Chelsea,RBKC,,Tri-Borough Education Service,SED,,St Francis RC Primary School,,,,,07/01/2015,P41026508,555.97,,LEA Current year,,,,,,No,
The Royal Borough of Kensington and Chelsea,RBKC,,Tri-Borough Education Service,SED,,St Francis RC Primary School,,,,,07/01/2015,P41026508,"2,480.67",,LEA Current year,,,,,,No,
The Royal Borough of Kensington and Chelsea,RBKC,,Tri-Borough Education Service,SED,,St Joseph's Primary School,,,,,07/01/2015,P41026509,"1,655.80",,LEA Current year,,,,,,No,
The Royal Borough of Kensington and Chelsea,RBKC,,Tri-Borough Education Service,SED,,St Joseph's Primary School,,,,,07/01/2015,P41026509,"2,480.67",,LEA Current year,,,,,,No,
The Royal Borough of Kensington and Chelsea,RBKC,,Tri-Borough Education Service,SED,,St Joseph's Primary School,,,,,07/01/2015,P41026509,"1,655.80",,LEA Current year,,,,,,No,
The Royal Borough of Kensington and Chelsea,RBKC,,Tri-Borough Education Service,SED,,St Joseph's Primary School,,,,,07/01/2015,P41026509,"2,425.67",,LEA Current year,,,,,,No,
The Royal Borough of Kensington and Chelsea,RBKC,,Tri-Borough Education Service,SED,,St Joseph's Primary School,,,,,07/01/2015,P41026509,"1,655.80",,LEA Current year,,,,,,No,
The Royal Borough of Kensington and Chelsea,RBKC,,Tri-Borough Education Service,SED,,St Mary Abbots CE Primary School,,,,,07/01/2015,P41026510,555.98,,LEA Current year,,,,,,No,
The Royal Borough of Kensington and Chelsea,RBKC,,Tri-Borough Education Service,SED,,St Mary Abbots CE Primary School,,,,,07/01/2015,P41026510,"5,173.96",,LEA Current year,,,,,,No,
The Royal Borough of Kensington and Chelsea,RBKC,,Tri-Borough Education Service,SED,,St Mary Abbots CE Primary School,,,,,07/01/2015,P41026510,"2,480.67",,LEA Current year,,,,,,No,
The Royal Borough of Kensington and Chelsea,RBKC,,Tri-Borough Education Service,SED,,St Mary Abbots CE Primary School,,,,,07/01/2015,P41026510,"2,480.67",,LEA Current year,,,,,,No,
The Royal Borough of Kensington and Chelsea,RBKC,,Tri-Borough Education Service,SED,,St Mary Abbots CE Primary School,,,,,07/01/2015,P41026510,"3,030.57",,LEA Current year,,,,,,No,
The Royal Borough of Kensington and Chelsea,RBKC,,Tri-Borough Education Service,SED,,St Marys RC Primary School,,,,,07/01/2015,P41026515,"1,105.89",,LEA Current year,,,,,,No,
The Royal Borough of Kensington and Chelsea,RBKC,,Tri-Borough Education Service,SED,,St Marys RC Primary School,,,,,07/01/2015,P41026515,"2,205.71",,LEA Current year,,,,,,No,
The Royal Borough of Kensington and Chelsea,RBKC,,Tri-Borough Education Service,SED,,St Marys RC Primary School,,,,,07/01/2015,P41026515,"1,105.89",,LEA Current year,,,,,,No,
The Royal Borough of Kensington and Chelsea,RBKC,,Tri-Borough Education Service,SED,,St Marys RC Primary School,,,,,07/01/2015,P41026515,"8,570.76",,LEA Current year,,,,,,No,
The Royal Borough of Kensington and Chelsea,RBKC,,Tri-Borough Education Service,SED,,St Marys RC Primary School,,,,,07/01/2015,P41026515,"1,655.80",,LEA Current year,,,,,,No,
The Royal Borough of Kensington and Chelsea,RBKC,,Tri-Borough Education Service,SED,,St Marys RC Primary School,,,,,07/01/2015,P41026515,"2,480.67",,LEA Current year,,,,,,No,
The Royal Borough of Kensington and Chelsea,RBKC,,Provided Services/ MH Partners,AS5,,Streetscene,,,,,07/01/2015,P21026591,"2,308.04",,P&V Residential,,,,,,No,
The Royal Borough of Kensington and Chelsea,RBKC,,Non Revenue,001,,T BROWN GROUP LIMITED,,,,,07/01/2015,PL823700,"2,400.07",,Construction-Main Ctrctrs A/C,,,,,,No,
The Royal Borough of Kensington and Chelsea,RBKC,,Non Revenue,001,,T BROWN GROUP LIMITED,,,,,07/01/2015,PL823701,"2,400.07",,Construction-Main Ctrctrs A/C,,,,,,No,
The Royal Borough of Kensington and Chelsea,RBKC,,Non Revenue,001,,T BROWN GROUP LIMITED,,,,,07/01/2015,PL823702,"2,400.07",,Construction-Main Ctrctrs A/C,,,,,,No,
The Royal Borough of Kensington and Chelsea,RBKC,,Non Revenue,001,,T BROWN GROUP LIMITED,,,,,07/01/2015,PL823703,"3,789.91",,Construction-Main Ctrctrs A/C,,,,,,No,
The Royal Borough of Kensington and Chelsea,RBKC,,Non Revenue,001,,T BROWN GROUP LIMITED,,,,,07/01/2015,PL823704,"1,481.62",,Construction-Main Ctrctrs A/C,,,,,,No,
The Royal Borough of Kensington and Chelsea,RBKC,,Non Revenue,001,,T BROWN GROUP LIMITED,,,,,07/01/2015,PL823705,"1,453.17",,Construction-Main Ctrctrs A/C,,,,,,No,
The Royal Borough of Kensington and Chelsea,RBKC,,Non Revenue,001,,T BROWN GROUP LIMITED,,,,,07/01/2015,PL823710,"2,400.07",,Construction-Main Ctrctrs A/C,,,,,,No,
The Royal Borough of Kensington and Chelsea,RBKC,,Non Revenue,001,,T BROWN GROUP LIMITED,,,,,07/01/2015,PL823708,"3,345.98",,Construction-Main Ctrctrs A/C,,,,,,No,
The Royal Borough of Kensington and Chelsea,RBKC,,Non Revenue,001,,T BROWN GROUP LIMITED,,,,,07/01/2015,PL823712,"3,647.18",,Construction-Main Ctrctrs A/C,,,,,,No,
The Royal Borough of Kensington and Chelsea,RBKC,,Non Revenue,001,,T BROWN GROUP LIMITED,,,,,07/01/2015,PL823706,"2,345.07",,Construction-Main Ctrctrs A/C,,,,,,No,
The Royal Borough of Kensington and Chelsea,RBKC,,Non Revenue,001,,T BROWN GROUP LIMITED,,,,,07/01/2015,PL823711,"2,400.07",,Construction-Main Ctrctrs A/C,,,,,,No,
The Royal Borough of Kensington and Chelsea,RBKC,,Non Revenue,001,,T BROWN GROUP LIMITED,,,,,07/01/2015,PL823707,"2,400.07",,Construction-Main Ctrctrs A/C,,,,,,No,
The Royal Borough of Kensington and Chelsea,RBKC,,Non Revenue,001,,T BROWN GROUP LIMITED,,,,,07/01/2015,PL823713,"2,439.06",,Construction-Main Ctrctrs A/C,,,,,,No,
The Royal Borough of Kensington and Chelsea,RBKC,,Non Revenue,001,,T BROWN GROUP LIMITED,,,,,07/01/2015,PL823709,"2,400.07",,Construction-Main Ctrctrs A/C,,,,,,No,
The Royal Borough of Kensington and Chelsea,RBKC,,Strategy & Local Services,CPU,,The Clement James Centre,,,,,07/01/2015,P41026017,"2,500.00",,Grants Given-Misc,,,,,,No,
The Royal Borough of Kensington and Chelsea,RBKC,,Corporate Property,CBV,,The Cornbread House Ltd,,,,,07/01/2015,P41025964,575.00,,Other Lettings Income,,,,,,No,
The Royal Borough of Kensington and Chelsea,RBKC,,Operations,AS6,,The Grace Eyre Foundation,,,,,07/01/2015,P21026035,"1,000.00",,P&V Day Care,,,,,,No,
The Royal Borough of Kensington and Chelsea,RBKC,,Non Revenue,001,,Trevor Bottomley,,,,,07/01/2015,P21026086,"1,190.00",,Consultants,,,,,,No,
The Royal Borough of Kensington and Chelsea,RBKC,,Non Revenue,001,,Trowers & Hamlins,,,,,07/01/2015,PL823741,"3,609.90",,Fees-Consultants,,,,,,No,
The Royal Borough of Kensington and Chelsea,RBKC,,Strategy & Local Services,CPU,,Venture Community Association,,,,,07/01/2015,P41025993,"32,749.00",,Grants Given-Misc,,,,,,No,
The Royal Borough of Kensington and Chelsea,RBKC,,Non Revenue,001,,Virgin Media Business,,,,,07/01/2015,P21026533,635.19,,Telephone Charges,,,,,,No,
The Royal Borough of Kensington and Chelsea,RBKC,,Non Revenue,001,,VMA Global Resourcing Group,,,,,07/01/2015,PL823682,"1,290.00",,Consultants,,,,,,No,
The Royal Borough of Kensington and Chelsea,RBKC,,Strategy & Local Services,CPU,,Volunteer Centre Kensington & Chelsea,,,,,07/01/2015,P41025991,"29,625.00",,Grants Given-Misc,,,,,,No,
The Royal Borough of Kensington and Chelsea,RBKC,,Operations,AS6,,Well House,,,,,07/01/2015,P21026076,"5,206.70",,Physical Dsblty Rsdtl Resp,,,,,,No,
The Royal Borough of Kensington and Chelsea,RBKC,,Hsg Needs and Homelessness,HNH,,Wentworth Estates,,,,,07/01/2015,P21026574,"8,472.21",,PLA Accommod - Stat Homeless,,,,,,No,
The Royal Borough of Kensington and Chelsea,RBKC,,Strategy & Local Services,CPU,,West & NW London Vietnamese Association,,,,,07/01/2015,P41025990,"1,250.00",,Grants Given-Misc,,,,,,No,
The Royal Borough of Kensington and Chelsea,RBKC,,Strategy & Local Services,CPU,,Westway Community Transport,,,,,07/01/2015,P41025989,"28,000.00",,Grants Given-Misc,,,,,,No,
The Royal Borough of Kensington and Chelsea,RBKC,,Hsg Needs and Homelessness,HNH,,Westway Housing Association Ltd,,,,,07/01/2015,P21026603,"6,839.45",,PLA Accommod - Stat Homeless,,,,,,No,
The Royal Borough of Kensington and Chelsea,RBKC,,Strategy & Local Services,CPU,,Worlds End Neighbourhood Advice Centre,,,,,07/01/2015,P41025988,"36,875.00",,Grants Given-Misc,,,,,,No,
The Royal Borough of Kensington and Chelsea,RBKC,,Operations,AS6,,Yarrow Housing Ltd,,,,,07/01/2015,P21026062,"8,619.91",,P&V Supp Accom,,,,,,No,
The Royal Borough of Kensington and Chelsea,RBKC,,Operations,AS6,,Yarrow Housing Ltd,,,,,07/01/2015,P21026063,"1,821.01",,Supported Living,,,,,,No,
The Royal Borough of Kensington and Chelsea,RBKC,,Operations,AS6,,Yarrow Housing Ltd,,,,,07/01/2015,P21026063,"1,821.00",,Supported Living,,,,,,No,
The Royal Borough of Kensington and Chelsea,RBKC,,Operations,AS6,,Yarrow Housing Ltd,,,,,07/01/2015,P21026063,562.24,,Supported Living,,,,,,No,
The Royal Borough of Kensington and Chelsea,RBKC,,Operations,AS6,,Yarrow Housing Ltd,,,,,07/01/2015,P21026064,577.28,,Supported Living,,,,,,No,
The Royal Borough of Kensington and Chelsea,RBKC,,Operations,AS6,,Yarrow Housing Ltd,,,,,07/01/2015,P21026065,"2,309.20",,Supported Living,,,,,,No,
The Royal Borough of Kensington and Chelsea,RBKC,,Operations,AS6,,Yarrow Housing Ltd,,,,,07/01/2015,P21026065,753.00,,Supported Living,,,,,,No,
The Royal Borough of Kensington and Chelsea,RBKC,,Operations,AS6,,Yarrow Housing Ltd,,,,,07/01/2015,P21026065,"3,815.20",,Supported Living,,,,,,No,
The Royal Borough of Kensington and Chelsea,RBKC,,Operations,AS6,,Yarrow Housing Ltd,,,,,07/01/2015,P21026066,853.40,,Supported Living,,,,,,No,
The Royal Borough of Kensington and Chelsea,RBKC,,Non Revenue,001,,Yarrow Housing Ltd,,,,,07/01/2015,P41025983,678.40,,Payments,,,,,,No,
The Royal Borough of Kensington and Chelsea,RBKC,,Operations,AS6,,49 Laverstoke Gardens,,,,,08/01/2015,PI1026839,"3,908.84",,P&V Residential Over 65,,,,,,No,
The Royal Borough of Kensington and Chelsea,RBKC,,Operations,AS6,,A&I Care Home Ltd T/a The Meadows,,,,,08/01/2015,PI1026845,"2,160.00",,P&V Residential Over 65,,,,,,No,
The Royal Borough of Kensington and Chelsea,RBKC,,Operations,AS6,,Action On Hearing Loss,,,,,08/01/2015,PI1026806,"3,245.48",,P&V Residential Over 65,,,,,,No,
The Royal Borough of Kensington and Chelsea,RBKC,,Operations,AS6,,Advinia Health Care Ltd,,,,,08/01/2015,PI1026700,"2,400.00",,P&V Nursing Over 65,,,,,,No,
The Royal Borough of Kensington and Chelsea,RBKC,,Operations,AS6,,Advinia Health Care Ltd,,,,,08/01/2015,PI1026700,-601.08,,Client Cntb Nursing Over 65,,,,,,No,
The Royal Borough of Kensington and Chelsea,RBKC,,Operations,AS6,,Affinity Trust,,,,,08/01/2015,PI1026852,"5,766.40",,P&V Residential,,,,,,No,
The Royal Borough of Kensington and Chelsea,RBKC,,Public Health,JPH,,Africa Health & Education Services,,,,,08/01/2015,P21026931,772.50,,Contract Costs,,,,,,No,
The Royal Borough of Kensington and Chelsea,RBKC,,Operations,AS6,,Aitch Care Homes (London) Ltd,,,,,08/01/2015,PI1026864,"6,048.76",,P&V Residential,,,,,,No,
The Royal Borough of Kensington and Chelsea,RBKC,,Operations,AS6,,Alexander House,,,,,08/01/2015,PI1026671,"2,760.00",,P&V Residential Over 65,,,,,,No,
The Royal Borough of Kensington and Chelsea,RBKC,,Operations,AS6,,Alexander House,,,,,08/01/2015,PI1026671,-587.60,,Client Cntb Resid Over 65,,,,,,No,
The Royal Borough of Kensington and Chelsea,RBKC,,Non Revenue,001,,Allan Conisbee & Associates Ltd,,,,,08/01/2015,PL823742,600.00,,Fees-Consultants,,,,,,No,
The Royal Borough of Kensington and Chelsea,RBKC,,Operations,AS6,,Allied Care (MH) Ltd,,,,,08/01/2015,PI1026699,"4,096.00",,P&V Residential Over 65,,,,,,No,
The Royal Borough of Kensington and Chelsea,RBKC,,Non Revenue,001,,Alphaprint (Colchester) Ltd,,,,,08/01/2015,P21027190,"6,968.64",,Payments,,,,,,No,
The Royal Borough of Kensington and Chelsea,RBKC,,Provided Services/ MH Partners,AS5,,Altwood Housing Ltd,,,,,08/01/2015,P21027137,"1,023.00",,P&V Homes & Hostels,,,,,,No,
The Royal Borough of Kensington and Chelsea,RBKC,,Human Resources,CHG,,Anatomie Healthcare Ltd,,,,,08/01/2015,P21026947,"1,188.00",,Occupational Health Scheme,,,,,,No,
The Royal Borough of Kensington and Chelsea,RBKC,,Operations,AS6,,Anchor Homes,,,,,08/01/2015,PI1026709,"2,325.32",,P&V Residential Over 65,,,,,,No,
The Royal Borough of Kensington and Chelsea,RBKC,,Operations,AS6,,Anchor Homes,,,,,08/01/2015,PI1026709,-612.64,,Client Cntb Resid Over 65,,,,,,No,
The Royal Borough of Kensington and Chelsea,RBKC,,Operations,AS6,,ANS Homes,,,,,08/01/2015,PI1026837,"2,137.60",,P&V Nursing Over 65,,,,,,No,
The Royal Borough of Kensington and Chelsea,RBKC,,Operations,AS6,,ANS Homes,,,,,08/01/2015,PI1026837,"5,156.44",,P&V Nursing Over 65,,,,,,No,
The Royal Borough of Kensington and Chelsea,RBKC,,Operations,AS6,,ANS Homes,,,,,08/01/2015,PI1026837,"2,432.96",,P&V Nursing Over 65,,,,,,No,
The Royal Borough of Kensington and Chelsea,RBKC,,Operations,AS6,,ANS Homes,,,,,08/01/2015,PI1026837,"5,156.44",,P&V Nursing Over 65,,,,,,No,
The Royal Borough of Kensington and Chelsea,RBKC,,Operations,AS6,,ANS Homes,,,,,08/01/2015,PI1026837,"5,156.44",,P&V Nursing Over 65,,,,,,No,
The Royal Borough of Kensington and Chelsea,RBKC,,Operations,AS6,,ANS Homes,,,,,08/01/2015,PI1026837,"2,128.84",,P&V Nursing Over 65,,,,,,No,
The Royal Borough of Kensington and Chelsea,RBKC,,Operations,AS6,,ANS Homes,,,,,08/01/2015,PI1026837,-566.63,,Client Cntb Nursing Over 65,,,,,,No,
The Royal Borough of Kensington and Chelsea,RBKC,,Operations,AS6,,ANS Homes,,,,,08/01/2015,PI1026837,-530.36,,Client Cntb Nursing Over 65,,,,,,No,
The Royal Borough of Kensington and Chelsea,RBKC,,Operations,AS6,,ANS Homes,,,,,08/01/2015,PI1026837,"2,245.20",,P&V Nursing Over 65,,,,,,No,
The Royal Borough of Kensington and Chelsea,RBKC,,Operations,AS6,,ANS Homes,,,,,08/01/2015,PI1026837,"2,245.20",,P&V Nursing Over 65,,,,,,No,
The Royal Borough of Kensington and Chelsea,RBKC,,Operations,AS6,,ANS Homes,,,,,08/01/2015,PI1026837,"5,156.44",,P&V Nursing Over 65,,,,,,No,
The Royal Borough of Kensington and Chelsea,RBKC,,Operations,AS6,,ANS Homes,,,,,08/01/2015,PI1026837,"2,124.44",,P&V Nursing Over 65,,,,,,No,
The Royal Borough of Kensington and Chelsea,RBKC,,Operations,AS6,,ANS Homes,,,,,08/01/2015,PI1026837,"5,156.44",,P&V Nursing Over 65,,,,,,No,
The Royal Borough of Kensington and Chelsea,RBKC,,Operations,AS6,,ANS Homes,,,,,08/01/2015,PI1026837,"2,128.84",,P&V Nursing Over 65,,,,,,No,
The Royal Borough of Kensington and Chelsea,RBKC,,Operations,AS6,,ANS Homes,,,,,08/01/2015,PI1026837,"5,156.44",,P&V Nursing Over 65,,,,,,No,
The Royal Borough of Kensington and Chelsea,RBKC,,Operations,AS6,,ANS Homes,,,,,08/01/2015,PI1026837,"2,128.84",,P&V Nursing Over 65,,,,,,No,
The Royal Borough of Kensington and Chelsea,RBKC,,Operations,AS6,,ANS Homes,,,,,08/01/2015,PI1026837,"5,156.44",,P&V Nursing Over 65,,,,,,No,
The Royal Borough of Kensington and Chelsea,RBKC,,Operations,AS6,,ANS Homes,,,,,08/01/2015,PI1026837,"2,156.44",,P&V Nursing Over 65,,,,,,No,
The Royal Borough of Kensington and Chelsea,RBKC,,Operations,AS6,,ANS Homes,,,,,08/01/2015,PI1026837,"3,400.00",,P&V Residential Over 65,,,,,,No,
The Royal Borough of Kensington and Chelsea,RBKC,,Operations,AS6,,ANS Homes,,,,,08/01/2015,PI1026837,"2,128.84",,P&V Nursing,,,,,,No,
The Royal Borough of Kensington and Chelsea,RBKC,,Operations,AS6,,ANS Homes,,,,,08/01/2015,PI1026837,"3,675.76",,P&V Nursing Over 65,,,,,,No,
The Royal Borough of Kensington and Chelsea,RBKC,,Operations,AS6,,ANS Homes Ltd,,,,,08/01/2015,PI1026703,"2,365.20",,P&V Nursing Over 65,,,,,,No,
The Royal Borough of Kensington and Chelsea,RBKC,,Operations,AS6,,ANS Homes Ltd,,,,,08/01/2015,PI1026703,"-2,329.87",,P&V Nursing Over 65,,,,,,No,
The Royal Borough of Kensington and Chelsea,RBKC,,Operations,AS6,,ANS Homes Ltd,,,,,08/01/2015,PI1026703,526.10,,P&V Nursing Over 65,,,,,,No,
The Royal Borough of Kensington and Chelsea,RBKC,,Operations,AS6,,ANS Homes Ltd,,,,,08/01/2015,PI1026703,"2,545.20",,P&V Nursing Over 65,,,,,,No,
The Royal Borough of Kensington and Chelsea,RBKC,,Operations,AS6,,ANS Homes Ltd,,,,,08/01/2015,PI1026703,-654.60,,Client Cntb Nursing Over 65,,,,,,No,
The Royal Borough of Kensington and Chelsea,RBKC,,Provided Services/ MH Partners,AS5,,ANS Homes Ltd,,,,,08/01/2015,PI1026703,"3,467.56",,P&V Nursing,,,,,,No,
The Royal Borough of Kensington and Chelsea,RBKC,,Operations,AS6,,ANS Homes Ltd,,,,,08/01/2015,PI1026779,"2,120.56",,P&V Nursing Over 65,,,,,,No,
The Royal Borough of Kensington and Chelsea,RBKC,,Operations,AS6,,ANS Homes Ltd,,,,,08/01/2015,PI1026779,"2,116.16",,P&V Nursing Over 65,,,,,,No,
The Royal Borough of Kensington and Chelsea,RBKC,,Operations,AS6,,ANS Homes Ltd,,,,,08/01/2015,PI1026779,"2,282.88",,P&V Nursing Over 65,,,,,,No,
The Royal Borough of Kensington and Chelsea,RBKC,,Operations,AS6,,ANS Homes Ltd,,,,,08/01/2015,PI1026779,"2,282.92",,P&V Nursing Over 65,,,,,,No,
The Royal Borough of Kensington and Chelsea,RBKC,,Operations,AS6,,ANS Homes Ltd,,,,,08/01/2015,PI1026779,"2,717.72",,P&V Residential Over 65,,,,,,No,
The Royal Borough of Kensington and Chelsea,RBKC,,Operations,AS6,,ANS Homes Ltd,,,,,08/01/2015,PI1026779,"2,717.72",,P&V Residential Over 65,,,,,,No,
The Royal Borough of Kensington and Chelsea,RBKC,,Operations,AS6,,ANS Homes Ltd,,,,,08/01/2015,PI1026779,"2,200.00",,P&V Residential Over 65,,,,,,No,
The Royal Borough of Kensington and Chelsea,RBKC,,Operations,AS6,,ANS Homes Ltd,,,,,08/01/2015,PI1026779,"1,467.59",,P&V Nursing Over 65,,,,,,No,
The Royal Borough of Kensington and Chelsea,RBKC,,Operations,AS6,,ANS Homes Ltd,,,,,08/01/2015,PI1026779,760.64,,P&V Nursing Over 65,,,,,,No,
The Royal Borough of Kensington and Chelsea,RBKC,,Operations,AS6,,ANS Homes Ltd,,,,,08/01/2015,PI1026779,"2,282.92",,P&V Nursing Over 65,,,,,,No,
The Royal Borough of Kensington and Chelsea,RBKC,,Operations,AS6,,ANS Homes Ltd,,,,,08/01/2015,PI1026779,"2,124.92",,P&V Nursing Over 65,,,,,,No,
The Royal Borough of Kensington and Chelsea,RBKC,,Operations,AS6,,ANS Homes Ltd,,,,,08/01/2015,PI1026779,"3,256.44",,P&V Nursing Over 65,,,,,,No,
The Royal Borough of Kensington and Chelsea,RBKC,,Operations,AS6,,ANS Homes Ltd,,,,,08/01/2015,PI1026779,"2,274.16",,P&V Nursing Over 65,,,,,,No,
The Royal Borough of Kensington and Chelsea,RBKC,,Operations,AS6,,ANS Homes Ltd,,,,,08/01/2015,PI1026779,"2,400.00",,P&V Residential Over 65,,,,,,No,
The Royal Borough of Kensington and Chelsea,RBKC,,Operations,AS6,,ANS Homes Ltd,,,,,08/01/2015,PI1026779,"2,200.00",,P&V Residential Over 65,,,,,,No,
The Royal Borough of Kensington and Chelsea,RBKC,,Operations,AS6,,ANS Homes Ltd,,,,,08/01/2015,PI1026779,-665.52,,Client Cntb Resid Over 65,,,,,,No,
The Royal Borough of Kensington and Chelsea,RBKC,,Operations,AS6,,ANS Homes Ltd,,,,,08/01/2015,PI1026779,"2,282.92",,P&V Nursing Over 65,,,,,,No,
The Royal Borough of Kensington and Chelsea,RBKC,,Operations,AS6,,ANS Homes Ltd,,,,,08/01/2015,PI1026779,"2,124.92",,P&V Nursing Over 65,,,,,,No,
The Royal Borough of Kensington and Chelsea,RBKC,,Operations,AS6,,ANS Homes Ltd,,,,,08/01/2015,PI1026779,"2,200.00",,P&V Nursing Over 65,,,,,,No,
The Royal Borough of Kensington and Chelsea,RBKC,,Operations,AS6,,ANS Homes Ltd,,,,,08/01/2015,PI1026779,"2,200.00",,P&V Residential Over 65,,,,,,No,
The Royal Borough of Kensington and Chelsea,RBKC,,Operations,AS6,,ANS Homes Ltd,,,,,08/01/2015,PI1026779,-653.48,,Client Cntb Nursing Over 65,,,,,,No,
The Royal Borough of Kensington and Chelsea,RBKC,,Operations,AS6,,Ark Care Homes Ltd,,,,,08/01/2015,PI1026675,"6,846.08",,P&V Residential,,,,,,No,
The Royal Borough of Kensington and Chelsea,RBKC,,School Funding,SSF,,Ashburnham Community School,,,,,08/01/2015,P41026900,"23,790.00",,Grants Given-Misc,,,,,,No,
The Royal Borough of Kensington and Chelsea,RBKC,,School Funding,SSF,,Ashburnham Community School,,,,,08/01/2015,P41027130,"240,097.56",,Grants Given-Misc,,,,,,No,
The Royal Borough of Kensington and Chelsea,RBKC,,School Funding,SSF,,Ashburnham Community School,,,,,08/01/2015,P41027136,"2,175.00",,Grants Given-Misc,,,,,,No,
The Royal Borough of Kensington and Chelsea,RBKC,,Operations,AS6,,Ashcroft Care Services,,,,,08/01/2015,PI1026727,"7,948.00",,P&V Residential,,,,,,No,
The Royal Borough of Kensington and Chelsea,RBKC,,Operations,AS6,,Ashcroft Care Services,,,,,08/01/2015,PI1026771,"5,955.88",,P&V Residential,,,,,,No,
The Royal Borough of Kensington and Chelsea,RBKC,,Operations,AS6,,Ashtead House Ltd,,,,,08/01/2015,PI1026678,"3,916.00",,P&V Residential,,,,,,No,
The Royal Borough of Kensington and Chelsea,RBKC,,Operations,AS6,,Ashurst House Ltd,,,,,08/01/2015,PI1026672,"5,155.24",,P&V Nursing,,,,,,No,
The Royal Borough of Kensington and Chelsea,RBKC,,Operations,AS6,,Ashurst House Ltd,,,,,08/01/2015,PI1026672,"4,513.00",,P&V Residential Over 65,,,,,,No,
The Royal Borough of Kensington and Chelsea,RBKC,,Strategy & Local Services,CPU,,Association of Electoral Administrators,,,,,08/01/2015,P21027206,"1,271.00",,Training Expenses,,,,,,No,
The Royal Borough of Kensington and Chelsea,RBKC,,Corporate Property,CBV,,Atkins Ltd,,,,,08/01/2015,P21027194,"3,120.00",,Consultants,,,,,,No,
The Royal Borough of Kensington and Chelsea,RBKC,,Hsg Needs and Homelessness,HNH,,Austins Property Services Ltd,,,,,08/01/2015,P21027235,"36,140.86",,PLA Accommod - Stat Homeless,,,,,,No,
The Royal Borough of Kensington and Chelsea,RBKC,,School Funding,SSF,,Avondale Park Primary School,,,,,08/01/2015,P41027129,"532,120.55",,Grants Given-Misc,,,,,,No,
The Royal Borough of Kensington and Chelsea,RBKC,,School Funding,SSF,,Barlby Primary School,,,,,08/01/2015,P41027068,"62,530.00",,Grants Given-Misc,,,,,,No,
The Royal Borough of Kensington and Chelsea,RBKC,,Tri-Borough Education Service,SED,,Barlby Primary School,,,,,08/01/2015,P41026904,"40,000.00",,LEA Current year,,,,,,No,
The Royal Borough of Kensington and Chelsea,RBKC,,School Funding,SSF,,Barlby Primary School,,,,,08/01/2015,P41027079,"1,934.25",,Grants Given-Misc,,,,,,No,
The Royal Borough of Kensington and Chelsea,RBKC,,School Funding,SSF,,Barlby Primary School,,,,,08/01/2015,P41027128,"412,093.64",,Grants Given-Misc,,,,,,No,
The Royal Borough of Kensington and Chelsea,RBKC,,Hsg Needs and Homelessness,HNH,,Barry Stewart & Partners,,,,,08/01/2015,P21027165,"22,750.81",,PLA Accommod - Stat Homeless,,,,,,No,
The Royal Borough of Kensington and Chelsea,RBKC,,Operations,AS6,,Bayswift Ltd,,,,,08/01/2015,PI1026697,"1,965.20",,P&V Nursing Over 65,,,,,,No,
The Royal Borough of Kensington and Chelsea,RBKC,,Operations,AS6,,Bayswift Ltd,,,,,08/01/2015,PI1026697,-589.36,,Client Cntb Nursing Over 65,,,,,,No,
The Royal Borough of Kensington and Chelsea,RBKC,,School Funding,SSF,,Bevington Primary School,,,,,08/01/2015,P41027069,"47,810.00",,Grants Given-Misc,,,,,,No,
The Royal Borough of Kensington and Chelsea,RBKC,,School Funding,SSF,,Bevington Primary School,,,,,08/01/2015,P41027127,"409,542.06",,Grants Given-Misc,,,,,,No,
The Royal Borough of Kensington and Chelsea,RBKC,,Operations,AS6,,Blakesley House Nursing Home,,,,,08/01/2015,PI1026683,"2,128.44",,P&V Nursing Over 65,,,,,,No,
The Royal Borough of Kensington and Chelsea,RBKC,,Operations,AS6,,Blocklin House Ltd,,,,,08/01/2015,PI1026714,"7,964.40",,P&V Residential,,,,,,No,
The Royal Borough of Kensington and Chelsea,RBKC,,Operations,AS6,,Bluebird Care (Kensington & Chelsea),,,,,08/01/2015,P21026929,934.44,,Home Care over 65,,,,,,No,
The Royal Borough of Kensington and Chelsea,RBKC,,School Funding,SSF,,Bousfield Primary School,,,,,08/01/2015,P41027126,"495,683.55",,Grants Given-Misc,,,,,,No,
The Royal Borough of Kensington and Chelsea,RBKC,,Children's Commissioning,SCC,,Brighter Future Solutions Ltd,,,,,08/01/2015,P21026909,538.65,,Foster Carers Training,,,,,,No,
The Royal Borough of Kensington and Chelsea,RBKC,,Operations,AS6,,British Home & Hospital,,,,,08/01/2015,PI1026686,"2,888.40",,P&V Nursing Over 65,,,,,,No,
The Royal Borough of Kensington and Chelsea,RBKC,,Operations,AS6,,Bupa Care Homes,,,,,08/01/2015,PI1026842,841.30,,P&V Nursing,,,,,,No,
The Royal Borough of Kensington and Chelsea,RBKC,,Operations,AS6,,Bupa Care Services,,,,,08/01/2015,PI1026722,"2,236.44",,P&V Nursing Over 65,,,,,,No,
The Royal Borough of Kensington and Chelsea,RBKC,,Operations,AS6,,Bupa Care Services,,,,,08/01/2015,PI1026744,"5,322.86",,P&V Residential Over 65,,,,,,No,
The Royal Borough of Kensington and Chelsea,RBKC,,Provided Services/ MH Partners,AS5,,Bupa Middlesex Manor Nursing Centre,,,,,08/01/2015,PI1026782,"2,133.20",,P&V Nursing Over 65,,,,,,No,
The Royal Borough of Kensington and Chelsea,RBKC,,Operations,AS6,,Cambian Autism Services Ltd,,,,,08/01/2015,PI1026711,"14,692.28",,P&V Residential,,,,,,No,
The Royal Borough of Kensington and Chelsea,RBKC,,Operations,AS6,,Cambian Learning Disabilities Ltd,,,,,08/01/2015,PI1026836,"10,784.00",,P&V Residential,,,,,,No,
The Royal Borough of Kensington and Chelsea,RBKC,,Provided Services/ MH Partners,AS5,,Campania,,,,,08/01/2015,PI1026687,"2,678.60",,P&V Residential Over 65,,,,,,No,
The Royal Borough of Kensington and Chelsea,RBKC,,Tri-Borough Education Service,SED,,Canbury School,,,,,08/01/2015,P21027222,"9,746.52",,Independent Schools,,,,,,No,
The Royal Borough of Kensington and Chelsea,RBKC,,Operations,AS6,,Candle Court Nursing Home,,,,,08/01/2015,PI1026688,"2,366.60",,P&V Nursing Over 65,,,,,,No,
The Royal Borough of Kensington and Chelsea,RBKC,,School Funding,SSF,,Cardinal Vaughan Memorial School,,,,,08/01/2015,P41027074,"30,182.00",,Grants Given-Misc,,,,,,No,
The Royal Borough of Kensington and Chelsea,RBKC,,Tri-Borough Education Service,SED,,Cardinal Vaughan Memorial School,,,,,08/01/2015,P41027077,"573,750.00",,Grants Given-Misc,,,,,,No,
The Royal Borough of Kensington and Chelsea,RBKC,,School Funding,SSF,,Cardinal Vaughan Memorial School,,,,,08/01/2015,P41027097,"515,367.82",,Grants Given-Misc,,,,,,No,
The Royal Borough of Kensington and Chelsea,RBKC,,School Funding,SSF,,Cardinal Vaughan Memorial School,,,,,08/01/2015,P41027098,"515,367.83",,Grants Given-Misc,,,,,,No,
The Royal Borough of Kensington and Chelsea,RBKC,,Operations,AS6,,Care Ltd,,,,,08/01/2015,PI1026689,"2,585.88",,P&V Residential,,,,,,No,
The Royal Borough of Kensington and Chelsea,RBKC,,Operations,AS6,,Care Management Group Ltd,,,,,08/01/2015,PI1026702,"5,392.12",,P&V Residential,,,,,,No,
The Royal Borough of Kensington and Chelsea,RBKC,,Operations,AS6,,Care Management Group Ltd,,,,,08/01/2015,PI1026702,"5,145.56",,P&V Residential Over 65,,,,,,No,
The Royal Borough of Kensington and Chelsea,RBKC,,Operations,AS6,,Care Solutions Ltd,,,,,08/01/2015,PI1026738,"5,065.24",,P&V Residential,,,,,,No,
The Royal Borough of Kensington and Chelsea,RBKC,,Operations,AS6,,Care Solutions Ltd,,,,,08/01/2015,PI1026738,"1,593.96",,P&V Residential,,,,,,No,
The Royal Borough of Kensington and Chelsea,RBKC,,Operations,AS6,,Care Solutions Ltd,,,,,08/01/2015,PI1026827,"5,669.20",,P&V Residential Over 65,,,,,,No,
The Royal Borough of Kensington and Chelsea,RBKC,,Operations,AS6,,Care Tech Community Services Ltd,,,,,08/01/2015,PI1026691,"5,108.64",,P&V Residential,,,,,,No,
The Royal Borough of Kensington and Chelsea,RBKC,,Operations,AS6,,Care UK Community Partnerships Ltd,,,,,08/01/2015,PI1026674,"2,800.00",,P&V Residential Over 65,,,,,,No,
The Royal Borough of Kensington and Chelsea,RBKC,,Operations,AS6,,Care UK Community Partnerships Ltd,,,,,08/01/2015,PI1026674,-531.60,,Client Cntb Resid Over 65,,,,,,No,
The Royal Borough of Kensington and Chelsea,RBKC,,Corporate Property,CBV,,Care UK Community Partnerships Ltd,,,,,08/01/2015,PI1026719,"-10,772.00",,Rent Income-Commercial Letting,,,,,,No,
The Royal Borough of Kensington and Chelsea,RBKC,,Operations,AS6,,Care UK Community Partnerships Ltd,,,,,08/01/2015,PI1026719,"42,521.60",,P&V Residential Over 65,,,,,,No,
The Royal Borough of Kensington and Chelsea,RBKC,,Corporate Property,CBV,,Care UK Community Partnerships Ltd,,,,,08/01/2015,PI1026720,-846.37,,Rent Income-Commercial Letting,,,,,,No,
The Royal Borough of Kensington and Chelsea,RBKC,,Corporate Property,CBV,,Care UK Community Partnerships Ltd,,,,,08/01/2015,PI1026720,"-1,077.20",,Rent Income-Commercial Letting,,,,,,No,
The Royal Borough of Kensington and Chelsea,RBKC,,Corporate Property,CBV,,Care UK Community Partnerships Ltd,,,,,08/01/2015,PI1026720,-923.31,,Rent Income-Commercial Letting,,,,,,No,
The Royal Borough of Kensington and Chelsea,RBKC,,Corporate Property,CBV,,Care UK Community Partnerships Ltd,,,,,08/01/2015,PI1026720,-500.13,,Rent Income-Commercial Letting,,,,,,No,
The Royal Borough of Kensington and Chelsea,RBKC,,Corporate Property,CBV,,Care UK Community Partnerships Ltd,,,,,08/01/2015,PI1026720,-577.07,,Rent Income-Commercial Letting,,,,,,No,
The Royal Borough of Kensington and Chelsea,RBKC,,Corporate Property,CBV,,Care UK Community Partnerships Ltd,,,,,08/01/2015,PI1026720,"-1,077.20",,Rent Income-Commercial Letting,,,,,,No,
The Royal Borough of Kensington and Chelsea,RBKC,,Corporate Property,CBV,,Care UK Community Partnerships Ltd,,,,,08/01/2015,PI1026720,"-1,077.20",,Rent Income-Commercial Letting,,,,,,No,
The Royal Borough of Kensington and Chelsea,RBKC,,Corporate Property,CBV,,Care UK Community Partnerships Ltd,,,,,08/01/2015,PI1026720,"-1,077.20",,Rent Income-Commercial Letting,,,,,,No,
The Royal Borough of Kensington and Chelsea,RBKC,,Corporate Property,CBV,,Care UK Community Partnerships Ltd,,,,,08/01/2015,PI1026720,"-1,077.20",,Rent Income-Commercial Letting,,,,,,No,
The Royal Borough of Kensington and Chelsea,RBKC,,Corporate Property,CBV,,Care UK Community Partnerships Ltd,,,,,08/01/2015,PI1026720,"-1,077.20",,Rent Income-Commercial Letting,,,,,,No,
The Royal Borough of Kensington and Chelsea,RBKC,,Corporate Property,CBV,,Care UK Community Partnerships Ltd,,,,,08/01/2015,PI1026720,"-1,077.20",,Rent Income-Commercial Letting,,,,,,No,
The Royal Borough of Kensington and Chelsea,RBKC,,Corporate Property,CBV,,Care UK Community Partnerships Ltd,,,,,08/01/2015,PI1026720,"-1,077.20",,Rent Income-Commercial Letting,,,,,,No,
The Royal Borough of Kensington and Chelsea,RBKC,,Corporate Property,CBV,,Care UK Community Partnerships Ltd,,,,,08/01/2015,PI1026720,"-1,077.20",,Rent Income-Commercial Letting,,,,,,No,
The Royal Borough of Kensington and Chelsea,RBKC,,Corporate Property,CBV,,Care UK Community Partnerships Ltd,,,,,08/01/2015,PI1026720,"-1,077.20",,Rent Income-Commercial Letting,,,,,,No,
The Royal Borough of Kensington and Chelsea,RBKC,,Corporate Property,CBV,,Care UK Community Partnerships Ltd,,,,,08/01/2015,PI1026720,"-1,077.20",,Rent Income-Commercial Letting,,,,,,No,
The Royal Borough of Kensington and Chelsea,RBKC,,Corporate Property,CBV,,Care UK Community Partnerships Ltd,,,,,08/01/2015,PI1026720,"-1,077.20",,Rent Income-Commercial Letting,,,,,,No,
The Royal Borough of Kensington and Chelsea,RBKC,,Corporate Property,CBV,,Care UK Community Partnerships Ltd,,,,,08/01/2015,PI1026720,"-1,077.20",,Rent Income-Commercial Letting,,,,,,No,
The Royal Borough of Kensington and Chelsea,RBKC,,Corporate Property,CBV,,Care UK Community Partnerships Ltd,,,,,08/01/2015,PI1026720,"-1,077.20",,Rent Income-Commercial Letting,,,,,,No,
The Royal Borough of Kensington and Chelsea,RBKC,,Corporate Property,CBV,,Care UK Community Partnerships Ltd,,,,,08/01/2015,PI1026720,"-1,077.20",,Rent Income-Commercial Letting,,,,,,No,
The Royal Borough of Kensington and Chelsea,RBKC,,Corporate Property,CBV,,Care UK Community Partnerships Ltd,,,,,08/01/2015,PI1026720,"-1,077.20",,Rent Income-Commercial Letting,,,,,,No,
The Royal Borough of Kensington and Chelsea,RBKC,,Corporate Property,CBV,,Care UK Community Partnerships Ltd,,,,,08/01/2015,PI1026720,"-1,077.20",,Rent Income-Commercial Letting,,,,,,No,
The Royal Borough of Kensington and Chelsea,RBKC,,Corporate Property,CBV,,Care UK Community Partnerships Ltd,,,,,08/01/2015,PI1026720,"-32,316.00",,Rent Income-Commercial Letting,,,,,,No,
The Royal Borough of Kensington and Chelsea,RBKC,,Operations,AS6,,Care UK Community Partnerships Ltd,,,,,08/01/2015,PI1026720,"2,563.91",,P&V Residential Over 65,,,,,,No,
The Royal Borough of Kensington and Chelsea,RBKC,,Operations,AS6,,Care UK Community Partnerships Ltd,,,,,08/01/2015,PI1026720,"3,263.16",,P&V Residential Over 65,,,,,,No,
The Royal Borough of Kensington and Chelsea,RBKC,,Operations,AS6,,Care UK Community Partnerships Ltd,,,,,08/01/2015,PI1026720,"2,796.99",,P&V Residential Over 65,,,,,,No,
The Royal Borough of Kensington and Chelsea,RBKC,,Operations,AS6,,Care UK Community Partnerships Ltd,,,,,08/01/2015,PI1026720,"1,515.04",,P&V Residential Over 65,,,,,,No,
The Royal Borough of Kensington and Chelsea,RBKC,,Operations,AS6,,Care UK Community Partnerships Ltd,,,,,08/01/2015,PI1026720,"1,748.13",,P&V Residential Over 65,,,,,,No,
The Royal Borough of Kensington and Chelsea,RBKC,,Operations,AS6,,Care UK Community Partnerships Ltd,,,,,08/01/2015,PI1026720,"3,263.16",,P&V Residential Over 65,,,,,,No,
The Royal Borough of Kensington and Chelsea,RBKC,,Operations,AS6,,Care UK Community Partnerships Ltd,,,,,08/01/2015,PI1026720,"3,263.16",,P&V Residential Over 65,,,,,,No,
The Royal Borough of Kensington and Chelsea,RBKC,,Operations,AS6,,Care UK Community Partnerships Ltd,,,,,08/01/2015,PI1026720,"3,263.16",,P&V Residential Over 65,,,,,,No,
The Royal Borough of Kensington and Chelsea,RBKC,,Operations,AS6,,Care UK Community Partnerships Ltd,,,,,08/01/2015,PI1026720,"3,263.16",,P&V Residential Over 65,,,,,,No,
The Royal Borough of Kensington and Chelsea,RBKC,,Operations,AS6,,Care UK Community Partnerships Ltd,,,,,08/01/2015,PI1026720,"3,263.16",,P&V Residential Over 65,,,,,,No,
The Royal Borough of Kensington and Chelsea,RBKC,,Operations,AS6,,Care UK Community Partnerships Ltd,,,,,08/01/2015,PI1026720,"3,263.16",,P&V Residential Over 65,,,,,,No,
The Royal Borough of Kensington and Chelsea,RBKC,,Operations,AS6,,Care UK Community Partnerships Ltd,,,,,08/01/2015,PI1026720,"3,263.16",,P&V Residential Over 65,,,,,,No,
The Royal Borough of Kensington and Chelsea,RBKC,,Operations,AS6,,Care UK Community Partnerships Ltd,,,,,08/01/2015,PI1026720,"3,263.16",,P&V Residential Over 65,,,,,,No,
The Royal Borough of Kensington and Chelsea,RBKC,,Operations,AS6,,Care UK Community Partnerships Ltd,,,,,08/01/2015,PI1026720,"3,263.16",,P&V Residential Over 65,,,,,,No,
The Royal Borough of Kensington and Chelsea,RBKC,,Operations,AS6,,Care UK Community Partnerships Ltd,,,,,08/01/2015,PI1026720,"3,263.16",,P&V Residential Over 65,,,,,,No,
The Royal Borough of Kensington and Chelsea,RBKC,,Operations,AS6,,Care UK Community Partnerships Ltd,,,,,08/01/2015,PI1026720,"3,263.16",,P&V Residential Over 65,,,,,,No,
The Royal Borough of Kensington and Chelsea,RBKC,,Operations,AS6,,Care UK Community Partnerships Ltd,,,,,08/01/2015,PI1026720,"3,263.16",,P&V Residential Over 65,,,,,,No,
The Royal Borough of Kensington and Chelsea,RBKC,,Operations,AS6,,Care UK Community Partnerships Ltd,,,,,08/01/2015,PI1026720,"3,263.16",,P&V Residential Over 65,,,,,,No,
The Royal Borough of Kensington and Chelsea,RBKC,,Operations,AS6,,Care UK Community Partnerships Ltd,,,,,08/01/2015,PI1026720,"3,263.16",,P&V Residential Over 65,,,,,,No,
The Royal Borough of Kensington and Chelsea,RBKC,,Operations,AS6,,Care UK Community Partnerships Ltd,,,,,08/01/2015,PI1026720,"3,263.16",,P&V Residential Over 65,,,,,,No,
The Royal Borough of Kensington and Chelsea,RBKC,,Operations,AS6,,Care UK Community Partnerships Ltd,,,,,08/01/2015,PI1026720,"3,263.16",,P&V Residential Over 65,,,,,,No,
The Royal Borough of Kensington and Chelsea,RBKC,,Operations,AS6,,Care UK Community Partnerships Ltd,,,,,08/01/2015,PI1026720,699.25,,P&V Residential Over 65,,,,,,No,
The Royal Borough of Kensington and Chelsea,RBKC,,Operations,AS6,,Care UK Community Partnerships Ltd,,,,,08/01/2015,PI1026720,"32,316.00",,P&V Residential Over 65,,,,,,No,
The Royal Borough of Kensington and Chelsea,RBKC,,Operations,AS6,,Care UK Community Partnerships Ltd,,,,,08/01/2015,PI1026720,-669.28,,Client Cntb Resid Over 65,,,,,,No,
The Royal Borough of Kensington and Chelsea,RBKC,,Operations,AS6,,Care UK Community Partnerships Ltd,,,,,08/01/2015,PI1026720,-785.52,,Client Cntb Resid Over 65,,,,,,No,
The Royal Borough of Kensington and Chelsea,RBKC,,Operations,AS6,,Care UK Community Partnerships Ltd,,,,,08/01/2015,PI1026720,-582.32,,Client Cntb Resid Over 65,,,,,,No,
The Royal Borough of Kensington and Chelsea,RBKC,,Operations,AS6,,Care UK Community Partnerships Ltd,,,,,08/01/2015,PI1026721,828.85,,P&V Nursing Over 65,,,,,,No,
The Royal Borough of Kensington and Chelsea,RBKC,,Operations,AS6,,Care UK Community Partnerships Ltd,,,,,08/01/2015,PI1026721,"4,183.32",,P&V Nursing Over 65,,,,,,No,
The Royal Borough of Kensington and Chelsea,RBKC,,Operations,AS6,,Care UK Community Partnerships Ltd,,,,,08/01/2015,PI1026721,"3,900.00",,P&V Residential Over 65,,,,,,No,
The Royal Borough of Kensington and Chelsea,RBKC,,Operations,AS6,,Care UK Community Partnerships Ltd,,,,,08/01/2015,PI1026721,"-1,378.50",,Client Cntb Resid Over 65,,,,,,No,
The Royal Borough of Kensington and Chelsea,RBKC,,Operations,AS6,,Care UK Community Partnerships Ltd,,,,,08/01/2015,PI1026765,"3,400.00",,P&V Residential Over 65,,,,,,No,
The Royal Borough of Kensington and Chelsea,RBKC,,Operations,AS6,,Care UK Community Partnerships Ltd,,,,,08/01/2015,PI1026825,"3,008.00",,P&V Residential Over 65,,,,,,No,
The Royal Borough of Kensington and Chelsea,RBKC,,Operations,AS6,,Care Unlimited,,,,,08/01/2015,PI1026698,"2,480.00",,P&V Residential Over 65,,,,,,No,
The Royal Borough of Kensington and Chelsea,RBKC,,Non Revenue,001,,Carewatch (Westminster),,,,,08/01/2015,P41027099,"3,693.11",,Payments,,,,,,No,
The Royal Borough of Kensington and Chelsea,RBKC,,Non Revenue,001,,Carewatch (Westminster),,,,,08/01/2015,P41027100,"3,492.84",,Payments,,,,,,No,
The Royal Borough of Kensington and Chelsea,RBKC,,Operations,AS6,,Caring Consultancy Ltd,,,,,08/01/2015,PI1026863,"2,128.44",,P&V Nursing Over 65,,,,,,No,
The Royal Borough of Kensington and Chelsea,RBKC,,Operations,AS6,,Castlehaven Care Ltd,,,,,08/01/2015,PI1026693,"2,309.80",,P&V Residential Over 65,,,,,,No,
The Royal Borough of Kensington and Chelsea,RBKC,,Operations,AS6,,Castlehaven Care Ltd,,,,,08/01/2015,PI1026693,-504.04,,Client Cntb Resid Over 65,,,,,,No,
The Royal Borough of Kensington and Chelsea,RBKC,,Operations,AS6,,Catalyst Housing Ltd,,,,,08/01/2015,PI1026668,"3,388.44",,P&V Nursing Over 65,,,,,,No,
The Royal Borough of Kensington and Chelsea,RBKC,,Operations,AS6,,Catalyst Housing Ltd,,,,,08/01/2015,PI1026668,605.08,,P&V Nursing Over 65,,,,,,No,
The Royal Borough of Kensington and Chelsea,RBKC,,Operations,AS6,,Catalyst Housing Ltd,,,,,08/01/2015,PI1026668,847.11,,P&V Nursing Over 65,,,,,,No,
The Royal Borough of Kensington and Chelsea,RBKC,,Operations,AS6,,Catalyst Housing Ltd,,,,,08/01/2015,PI1026668,"3,388.44",,P&V Nursing Over 65,,,,,,No,
The Royal Borough of Kensington and Chelsea,RBKC,,Operations,AS6,,Catalyst Housing Ltd,,,,,08/01/2015,PI1026668,"3,388.44",,P&V Nursing Over 65,,,,,,No,
The Royal Borough of Kensington and Chelsea,RBKC,,Operations,AS6,,Catalyst Housing Ltd,,,,,08/01/2015,PI1026668,"3,388.44",,P&V Nursing Over 65,,,,,,No,
The Royal Borough of Kensington and Chelsea,RBKC,,Operations,AS6,,Catalyst Housing Ltd,,,,,08/01/2015,PI1026668,"3,388.44",,P&V Nursing Over 65,,,,,,No,
The Royal Borough of Kensington and Chelsea,RBKC,,Operations,AS6,,Catalyst Housing Ltd,,,,,08/01/2015,PI1026668,"3,388.44",,P&V Nursing Over 65,,,,,,No,
The Royal Borough of Kensington and Chelsea,RBKC,,Operations,AS6,,Catalyst Housing Ltd,,,,,08/01/2015,PI1026668,"3,388.44",,P&V Nursing Over 65,,,,,,No,
The Royal Borough of Kensington and Chelsea,RBKC,,Operations,AS6,,Catalyst Housing Ltd,,,,,08/01/2015,PI1026668,"3,388.44",,P&V Nursing Over 65,,,,,,No,
The Royal Borough of Kensington and Chelsea,RBKC,,Operations,AS6,,Catalyst Housing Ltd,,,,,08/01/2015,PI1026668,"3,388.44",,P&V Nursing Over 65,,,,,,No,
The Royal Borough of Kensington and Chelsea,RBKC,,Operations,AS6,,Catalyst Housing Ltd,,,,,08/01/2015,PI1026668,"3,388.44",,P&V Nursing Over 65,,,,,,No,
The Royal Borough of Kensington and Chelsea,RBKC,,Operations,AS6,,Catalyst Housing Ltd,,,,,08/01/2015,PI1026668,"3,388.44",,P&V Nursing Over 65,,,,,,No,
The Royal Borough of Kensington and Chelsea,RBKC,,Operations,AS6,,Catalyst Housing Ltd,,,,,08/01/2015,PI1026668,847.11,,P&V Nursing Over 65,,,,,,No,
The Royal Borough of Kensington and Chelsea,RBKC,,Provided Services/ MH Partners,AS5,,Caterham Domiciliary Care Agency,,,,,08/01/2015,PI1026694,"2,840.20",,VO Supp Accom,,,,,,No,
The Royal Borough of Kensington and Chelsea,RBKC,,Operations,AS6,,Central & Cecil Housing Trust,,,,,08/01/2015,PI1026754,"3,000.00",,P&V Residential Over 65,,,,,,No,
The Royal Borough of Kensington and Chelsea,RBKC,,Operations,AS6,,Central & Cecil Housing Trust,,,,,08/01/2015,PI1026754,"2,502.96",,P&V Residential Over 65,,,,,,No,
The Royal Borough of Kensington and Chelsea,RBKC,,Operations,AS6,,Central & Cecil Housing Trust,,,,,08/01/2015,PI1026754,"2,502.96",,P&V Residential Over 65,,,,,,No,
The Royal Borough of Kensington and Chelsea,RBKC,,Operations,AS6,,Central & Cecil Housing Trust,,,,,08/01/2015,PI1026754,"2,502.96",,P&V Residential Over 65,,,,,,No,
The Royal Borough of Kensington and Chelsea,RBKC,,Operations,AS6,,Central & Cecil Housing Trust,,,,,08/01/2015,PI1026754,-533.12,,Client Cntb Resid Over 65,,,,,,No,
The Royal Borough of Kensington and Chelsea,RBKC,,Hsg Needs and Homelessness,HNH,,Central Housing Group Ltd,,,,,08/01/2015,P21027179,"18,071.45",,PLA Accommod - Stat Homeless,,,,,,No,
The Royal Borough of Kensington and Chelsea,RBKC,,Hsg Needs and Homelessness,HNH,,Central Housing Group Ltd,,,,,08/01/2015,P21027178,"15,965.00",,PLA Accommod - Stat Homeless,,,,,,No,
The Royal Borough of Kensington and Chelsea,RBKC,,Hsg Needs and Homelessness,HNH,,Central Housing Group Ltd,,,,,08/01/2015,P21027177,"14,076.79",,PLA Accommod - Stat Homeless,,,,,,No,
The Royal Borough of Kensington and Chelsea,RBKC,,Hsg Needs and Homelessness,HNH,,Central Housing Group Ltd,,,,,08/01/2015,P21027176,"14,585.32",,PLA Accommod - Stat Homeless,,,,,,No,
The Royal Borough of Kensington and Chelsea,RBKC,,Hsg Needs and Homelessness,HNH,,Central Housing Group Ltd,,,,,08/01/2015,P21027169,"4,487.87",,PLA Accommod - Stat Homeless,,,,,,No,
The Royal Borough of Kensington and Chelsea,RBKC,,Hsg Needs and Homelessness,HNH,,Central Housing Group Ltd,,,,,08/01/2015,P21027175,"15,270.29",,PLA Accommod - Stat Homeless,,,,,,No,
The Royal Borough of Kensington and Chelsea,RBKC,,Hsg Needs and Homelessness,HNH,,Central Housing Group Ltd,,,,,08/01/2015,P21027174,"23,526.21",,PLA Accommod - Stat Homeless,,,,,,No,
The Royal Borough of Kensington and Chelsea,RBKC,,Hsg Needs and Homelessness,HNH,,Central Housing Group Ltd,,,,,08/01/2015,P21027226,"10,294.69",,PLA Accommod - Stat Homeless,,,,,,No,
The Royal Borough of Kensington and Chelsea,RBKC,,Hsg Needs and Homelessness,HNH,,Central Housing Group Ltd,,,,,08/01/2015,P21027173,"11,113.50",,PLA Accommod - Stat Homeless,,,,,,No,
The Royal Borough of Kensington and Chelsea,RBKC,,Hsg Needs and Homelessness,HNH,,Central Housing Group Ltd,,,,,08/01/2015,P21027172,"10,297.27",,PLA Accommod - Stat Homeless,,,,,,No,
The Royal Borough of Kensington and Chelsea,RBKC,,Hsg Needs and Homelessness,HNH,,Central Housing Group Ltd,,,,,08/01/2015,P21027180,"10,649.12",,PLA Accommod - Stat Homeless,,,,,,No,
The Royal Borough of Kensington and Chelsea,RBKC,,Hsg Needs and Homelessness,HNH,,Central Housing Group Ltd,,,,,08/01/2015,P21027171,"6,700.03",,PLA Accommod - Stat Homeless,,,,,,No,
The Royal Borough of Kensington and Chelsea,RBKC,,Hsg Needs and Homelessness,HNH,,Central Housing Group Ltd,,,,,08/01/2015,P21027170,"7,713.73",,PLA Accommod - Stat Homeless,,,,,,No,
The Royal Borough of Kensington and Chelsea,RBKC,,Operations,AS6,,Central London Community Healthcare,,,,,08/01/2015,PI1026732,"3,052.44",,P&V Nursing Over 65,,,,,,No,
The Royal Borough of Kensington and Chelsea,RBKC,,Operations,AS6,,Chatsworth Care,,,,,08/01/2015,PI1026750,"9,600.00",,P&V Residential,,,,,,No,
The Royal Borough of Kensington and Chelsea,RBKC,,Operations,AS6,,CHD Living,,,,,08/01/2015,PI1026679,"6,300.00",,P&V Nursing,,,,,,No,
The Royal Borough of Kensington and Chelsea,RBKC,,School Funding,SSF,,Chelsea Children's Hospital School,,,,,08/01/2015,P41027075,"10,284.00",,Grants Given-Misc,,,,,,No,
The Royal Borough of Kensington and Chelsea,RBKC,,School Funding,SSF,,Chelsea Children's Hospital School,,,,,08/01/2015,P41027080,"1,772.75",,Grants Given-Misc,,,,,,No,
The Royal Borough of Kensington and Chelsea,RBKC,,School Funding,SSF,,Chelsea Children's Hospital School,,,,,08/01/2015,P41027090,"291,250.00",,Grants Given-Misc,,,,,,No,
The Royal Borough of Kensington and Chelsea,RBKC,,Children's Commissioning,SCC,,Childcare Consultancy Ltd,,,,,08/01/2015,P21026911,"1,790.00",,Training Programme Delivery,,,,,,No,
The Royal Borough of Kensington and Chelsea,RBKC,,Provided Services/ MH Partners,AS5,,Chitimali Locum Medical Ltd,,,,,08/01/2015,PI1026716,"3,418.04",,P&V Residential,,,,,,No,
The Royal Borough of Kensington and Chelsea,RBKC,,Operations,AS6,,Choice Ltd,,,,,08/01/2015,PI1026829,"7,900.00",,P&V Residential,,,,,,No,
The Royal Borough of Kensington and Chelsea,RBKC,,School Funding,SSF,,Christ Church CE Primary School,,,,,08/01/2015,P41027125,"264,027.74",,Grants Given-Misc,,,,,,No,
The Royal Borough of Kensington and Chelsea,RBKC,,Operations,AS6,,Christchurch Court,,,,,08/01/2015,PI1026667,"5,703.88",,P&V Residential,,,,,,No,
The Royal Borough of Kensington and Chelsea,RBKC,,Operations,AS6,,Christies Care,,,,,08/01/2015,P21026956,"3,040.00",,Home Care,,,,,,No,
The Royal Borough of Kensington and Chelsea,RBKC,,Family Services - RBKC,SKC,,Claudia Demuth,,,,,08/01/2015,P21027157,600.00,,Salaries,,,,,,No,
The Royal Borough of Kensington and Chelsea,RBKC,,Operations,AS6,,Clovelly House Residential Home Ltd,,,,,08/01/2015,PI1026701,"2,600.00",,P&V Residential Over 65,,,,,,No,
The Royal Borough of Kensington and Chelsea,RBKC,,Operations,AS6,,Clovelly House Residential Home Ltd,,,,,08/01/2015,PI1026701,-626.76,,Client Cntb Resid Over 65,,,,,,No,
The Royal Borough of Kensington and Chelsea,RBKC,,Corporate Property,CBV,,Cluttons LLP,,,,,08/01/2015,P21027149,750.00,,Consultants,,,,,,No,
The Royal Borough of Kensington and Chelsea,RBKC,,Corporate Property,CBV,,Cluttons LLP,,,,,08/01/2015,P21027150,750.00,,Consultants,,,,,,No,
The Royal Borough of Kensington and Chelsea,RBKC,,Public Health,JPH,,CNWL NHS Foundation Trust,,,,,08/01/2015,P21026936,"185,333.00",,Contract Costs,,,,,,No,
The Royal Borough of Kensington and Chelsea,RBKC,,Public Health,JPH,,CNWL NHS Foundation Trust,,,,,08/01/2015,P21026938,"6,250.00",,Contract Costs,,,,,,No,
The Royal Borough of Kensington and Chelsea,RBKC,,Non Revenue,001,,COFELY DISTRICT ENERGY LTD(UTILICOM LTD),,,,,08/01/2015,PI1026623,"1,852.65",,PM-Central Progrmmd Heating wk,,,,,,No,
The Royal Borough of Kensington and Chelsea,RBKC,,Non Revenue,001,,COFELY DISTRICT ENERGY LTD(UTILICOM LTD),,,,,08/01/2015,PI1026624,921.15,,PM-Central Progrmmd Heating wk,,,,,,No,
The Royal Borough of Kensington and Chelsea,RBKC,,Non Revenue,001,,COFELY DISTRICT ENERGY LTD(UTILICOM LTD),,,,,08/01/2015,PI1026625,"1,010.85",,RR-District Heating,,,,,,No,
The Royal Borough of Kensington and Chelsea,RBKC,,Non Revenue,001,,COFELY DISTRICT ENERGY LTD(UTILICOM LTD),,,,,08/01/2015,PI1026626,"1,486.95",,RR-District Heating,,,,,,No,
The Royal Borough of Kensington and Chelsea,RBKC,,Operations,AS6,,Colten Care Ltd,,,,,08/01/2015,PI1026767,"5,166.00",,P&V Residential Over 65,,,,,,No,
The Royal Borough of Kensington and Chelsea,RBKC,,Non Revenue,001,,Comensura Ltd,,,,,08/01/2015,P21026949,"105,376.85",,Payments,,,,,,No,
The Royal Borough of Kensington and Chelsea,RBKC,,Operations,AS6,,Conquest Care Home Ltd,,,,,08/01/2015,PI1026704,"4,148.08",,P&V Residential,,,,,,No,
The Royal Borough of Kensington and Chelsea,RBKC,,Provided Services/ MH Partners,AS5,,Coxhill Manor Ltd,,,,,08/01/2015,PI1026706,"3,153.00",,P&V Nursing Over 65,,,,,,No,
The Royal Borough of Kensington and Chelsea,RBKC,,Transportation & Highways,YTH,,Cycle Confident Ltd,,,,,08/01/2015,P21027228,627.12,,Initiatives,,,,,,No,
The Royal Borough of Kensington and Chelsea,RBKC,,Transportation & Highways,YTH,,Cycle Confident Ltd,,,,,08/01/2015,P21027227,"1,614.80",,Initiatives,,,,,,No,
The Royal Borough of Kensington and Chelsea,RBKC,,Operations,AS6,,Davids House,,,,,08/01/2015,PI1026708,"3,140.00",,P&V Residential Over 65,,,,,,No,
The Royal Borough of Kensington and Chelsea,RBKC,,Operations,AS6,,Davids House,,,,,08/01/2015,PI1026708,"-1,255.60",,Client Cntb Resid Over 65,,,,,,No,
The Royal Borough of Kensington and Chelsea,RBKC,,Operations,AS6,,Deafway,,,,,08/01/2015,PI1026710,"2,984.16",,P&V Residential Over 65,,,,,,No,
The Royal Borough of Kensington and Chelsea,RBKC,,Provided Services/ MH Partners,AS5,,Deepdene Care Ltd,,,,,08/01/2015,PI1026799,"1,843.44",,P&V Residential Over 65,,,,,,No,
The Royal Borough of Kensington and Chelsea,RBKC,,Operations,AS6,,Diplotec Ltd In Admin T/a Ingleside Resi,,,,,08/01/2015,PI1026755,"1,868.00",,P&V Residential Over 65,,,,,,No,
The Royal Borough of Kensington and Chelsea,RBKC,,Operations,AS6,,Diplotec Ltd In Admin T/a Ingleside Resi,,,,,08/01/2015,PI1026755,-715.24,,Client Cntb Resid Over 65,,,,,,No,
The Royal Borough of Kensington and Chelsea,RBKC,,Operations,AS6,,Disabilities Trust,,,,,08/01/2015,PI1026712,"3,797.96",,P&V Residential,,,,,,No,
The Royal Borough of Kensington and Chelsea,RBKC,,Provided Services/ MH Partners,AS5,,Downs Cottage Care Home,,,,,08/01/2015,PI1026713,"3,400.00",,P&V Nursing Over 65,,,,,,No,
The Royal Borough of Kensington and Chelsea,RBKC,,Operations,AS6,,EABF,,,,,08/01/2015,PI1026685,"2,601.80",,P&V Nursing Over 65,,,,,,No,
The Royal Borough of Kensington and Chelsea,RBKC,,Tri-Borough Education Service,SED,,Eagle House School,,,,,08/01/2015,P21027195,"4,363.64",,Independent Schools,,,,,,No,
The Royal Borough of Kensington and Chelsea,RBKC,,Operations,AS6,,Ealing Manor Nursing Home,,,,,08/01/2015,PI1026715,"2,025.20",,P&V Nursing Over 65,,,,,,No,
The Royal Borough of Kensington and Chelsea,RBKC,,Operations,AS6,,Ealing Manor Nursing Home,,,,,08/01/2015,PI1026715,"2,105.20",,P&V Nursing Over 65,,,,,,No,
The Royal Borough of Kensington and Chelsea,RBKC,,Non Revenue,001,,ECD Architects Ltd,,,,,08/01/2015,P21026922,"3,123.60",,Fees-Consultants,,,,,,No,
The Royal Borough of Kensington and Chelsea,RBKC,,Tri-Borough Education Service,SED,,Eleonora Quinti,,,,,08/01/2015,P21027200,"1,605.00",,Independent Schools,,,,,,No,
The Royal Borough of Kensington and Chelsea,RBKC,,Hsg Needs and Homelessness,HNH,,Elliot Leigh Property Management Ltd,,,,,08/01/2015,P21027213,"48,523.86",,PLA Accommod - Stat Homeless,,,,,,No,
The Royal Borough of Kensington and Chelsea,RBKC,,Hsg Needs and Homelessness,HNH,,Elliot Leigh Property Management Ltd,,,,,08/01/2015,P21027214,"41,777.64",,PLA Accommod - Stat Homeless,,,,,,No,
The Royal Borough of Kensington and Chelsea,RBKC,,Hsg Needs and Homelessness,HNH,,Elliot Leigh Property Management Ltd,,,,,08/01/2015,P21027225,"48,866.27",,PLA Accommod - Stat Homeless,,,,,,No,
The Royal Borough of Kensington and Chelsea,RBKC,,Hsg Needs and Homelessness,HNH,,Elliot Leigh Property Management Ltd,,,,,08/01/2015,P21027211,"48,573.28",,PLA Accommod - Stat Homeless,,,,,,No,
The Royal Borough of Kensington and Chelsea,RBKC,,Hsg Needs and Homelessness,HNH,,Elliot Leigh Property Management Ltd,,,,,08/01/2015,P21027218,"47,743.14",,PLA Accommod - Stat Homeless,,,,,,No,
The Royal Borough of Kensington and Chelsea,RBKC,,Hsg Needs and Homelessness,HNH,,Elliot Leigh Property Management Ltd,,,,,08/01/2015,P21027219,"49,355.19",,PLA Accommod - Stat Homeless,,,,,,No,
The Royal Borough of Kensington and Chelsea,RBKC,,Hsg Needs and Homelessness,HNH,,Elliot Leigh Property Management Ltd,,,,,08/01/2015,P21027212,"49,162.24",,PLA Accommod - Stat Homeless,,,,,,No,
The Royal Borough of Kensington and Chelsea,RBKC,,Hsg Needs and Homelessness,HNH,,Elliot Leigh Property Management Ltd,,,,,08/01/2015,P21027220,"47,647.93",,PLA Accommod - Stat Homeless,,,,,,No,
The Royal Borough of Kensington and Chelsea,RBKC,,Hsg Needs and Homelessness,HNH,,Elliot Leigh Property Management Ltd,,,,,08/01/2015,P21027217,"35,163.95",,PLA Accommod - Stat Homeless,,,,,,No,
The Royal Borough of Kensington and Chelsea,RBKC,,Hsg Needs and Homelessness,HNH,,Elliot Leigh Property Management Ltd,,,,,08/01/2015,P21027216,"12,463.29",,PLA Accommod - Stat Homeless,,,,,,No,
The Royal Borough of Kensington and Chelsea,RBKC,,Provided Services/ MH Partners,AS5,,English Churches Housing Group,,,,,08/01/2015,PI1026723,"1,426.68",,P&V Residential Over 65,,,,,,No,
The Royal Borough of Kensington and Chelsea,RBKC,,Provided Services/ MH Partners,AS5,,Enlightened Homes Ltd,,,,,08/01/2015,PI1026764,"2,190.00",,P&V Residential,,,,,,No,
The Royal Borough of Kensington and Chelsea,RBKC,,Provided Services/ MH Partners,AS5,,Enlightened Homes Ltd,,,,,08/01/2015,PI1026764,"2,190.00",,Supported Living,,,,,,No,
The Royal Borough of Kensington and Chelsea,RBKC,,Non Revenue,001,,Eurovia Infrastructure Ltd,,,,,08/01/2015,P21026916,"2,873.76",,Construction-Main Ctrctrs A/C,,,,,,No,
The Royal Borough of Kensington and Chelsea,RBKC,,Non Revenue,001,,EXTREME ENVIRONMENTAL SERVICES LTD,,,,,08/01/2015,PI1026621,"1,346.00",,Client Heavy Duty Cleans,,,,,,No,
The Royal Borough of Kensington and Chelsea,RBKC,,Operations,AS6,,Ezitracker  Ltd,,,,,08/01/2015,P21026917,700.00,,Telephone Charges-Calls,,,,,,No,
The Royal Borough of Kensington and Chelsea,RBKC,,Operations,AS6,,Ezitracker  Ltd,,,,,08/01/2015,P21026919,700.00,,Telephone Charges-Calls,,,,,,No,
The Royal Borough of Kensington and Chelsea,RBKC,,Operations,AS6,,Ezitracker  Ltd,,,,,08/01/2015,P21026913,700.00,,Telephone Charges-Calls,,,,,,No,
The Royal Borough of Kensington and Chelsea,RBKC,,Operations,AS6,,Ezitracker  Ltd,,,,,08/01/2015,P21026907,"1,403.00",,Telephone Charges-Calls,,,,,,No,
The Royal Borough of Kensington and Chelsea,RBKC,,Operations,AS6,,Ezitracker  Ltd,,,,,08/01/2015,P21026918,525.00,,Telephone Charges-Calls,,,,,,No,
The Royal Borough of Kensington and Chelsea,RBKC,,Operations,AS6,,Ezitracker  Ltd,,,,,08/01/2015,P31026948,-945.00,,Telephone Charges-Calls,,,,,,No,
The Royal Borough of Kensington and Chelsea,RBKC,,Operations,AS6,,Farrington Care Homes Ltd,,,,,08/01/2015,PI1026724,540.00,,P&V Residential Over 65,,,,,,No,
The Royal Borough of Kensington and Chelsea,RBKC,,Operations,AS6,,Farrington Care Homes T/A Mayfield Res C,,,,,08/01/2015,PI1026844,"2,545.71",,P&V Residential Over 65,,,,,,No,
The Royal Borough of Kensington and Chelsea,RBKC,,Operations,AS6,,Fircroft,,,,,08/01/2015,PI1026725,"2,838.96",,P&V Residential Over 65,,,,,,No,
The Royal Borough of Kensington and Chelsea,RBKC,,Operations,AS6,,Fircroft,,,,,08/01/2015,PI1026725,"3,080.00",,P&V Residential,,,,,,No,
The Royal Borough of Kensington and Chelsea,RBKC,,Operations,AS6,,Fircroft,,,,,08/01/2015,PI1026725,"2,838.96",,P&V Residential Over 65,,,,,,No,
The Royal Borough of Kensington and Chelsea,RBKC,,Operations,AS6,,Fircroft,,,,,08/01/2015,PI1026725,"2,600.00",,P&V Residential Over 65,,,,,,No,
The Royal Borough of Kensington and Chelsea,RBKC,,Operations,AS6,,Fircroft,,,,,08/01/2015,PI1026725,-691.60,,Client Cntb Resid Over 65,,,,,,No,
The Royal Borough of Kensington and Chelsea,RBKC,,Operations,AS6,,Fircroft,,,,,08/01/2015,PI1026725,"2,838.96",,P&V Residential,,,,,,No,
The Royal Borough of Kensington and Chelsea,RBKC,,Operations,AS6,,Fitzroy Support,,,,,08/01/2015,PI1026726,"7,320.20",,P&V Residential,,,,,,No,
The Royal Borough of Kensington and Chelsea,RBKC,,Operations,AS6,,Fitzroy Support,,,,,08/01/2015,PI1026726,"3,916.52",,P&V Residential,,,,,,No,
The Royal Borough of Kensington and Chelsea,RBKC,,Operations,AS6,,Fitzroy Support,,,,,08/01/2015,PI1026726,606.40,,P&V Day Care,,,,,,No,
The Royal Borough of Kensington and Chelsea,RBKC,,Operations,AS6,,Floron Residential Home,,,,,08/01/2015,PI1026838,"1,965.68",,P&V Residential Over 65,,,,,,No,
The Royal Borough of Kensington and Chelsea,RBKC,,School Funding,SSF,,Fox Primary School,,,,,08/01/2015,P41027070,"12,800.00",,Grants Given-Misc,,,,,,No,
The Royal Borough of Kensington and Chelsea,RBKC,,School Funding,SSF,,Fox Primary School,,,,,08/01/2015,P41027123,"407,615.94",,Grants Given-Misc,,,,,,No,
The Royal Borough of Kensington and Chelsea,RBKC,,School Funding,SSF,,Fox Primary School,,,,,08/01/2015,P41027134,"11,625.00",,Grants Given-Misc,,,,,,No,
The Royal Borough of Kensington and Chelsea,RBKC,,Operations,AS6,,Freeways Trust Ltd,,,,,08/01/2015,PI1026729,"3,100.52",,P&V Residential,,,,,,No,
The Royal Borough of Kensington and Chelsea,RBKC,,Operations,AS6,,Friday House Nursing Home,,,,,08/01/2015,PI1026730,"2,785.40",,P&V Residential Over 65,,,,,,No,
The Royal Borough of Kensington and Chelsea,RBKC,,Provided Services/ MH Partners,AS5,,Frontier Support Services Ltd,,,,,08/01/2015,PI1026731,"1,730.76",,VO Supp Accom,,,,,,No,
The Royal Borough of Kensington and Chelsea,RBKC,,Operations,AS6,,Gary Richard Homes Ltd,,,,,08/01/2015,PI1026733,"2,058.88",,P&V Residential,,,,,,No,
The Royal Borough of Kensington and Chelsea,RBKC,,Operations,AS6,,GCH (Alan Morkill House) Ltd,,,,,08/01/2015,PI1026670,"3,056.68",,P&V Residential Over 65,,,,,,No,
The Royal Borough of Kensington and Chelsea,RBKC,,Operations,AS6,,GCH (Alan Morkill House) Ltd,,,,,08/01/2015,PI1026670,"2,074.18",,P&V Residential Over 65,,,,,,No,
The Royal Borough of Kensington and Chelsea,RBKC,,Operations,AS6,,GCH (Alan Morkill House) Ltd,,,,,08/01/2015,PI1026670,764.17,,P&V Residential Over 65,,,,,,No,
The Royal Borough of Kensington and Chelsea,RBKC,,Operations,AS6,,GCH (Alan Morkill House) Ltd,,,,,08/01/2015,PI1026670,"2,233.00",,P&V Residential Over 65,,,,,,No,
The Royal Borough of Kensington and Chelsea,RBKC,,Operations,AS6,,GCH (Alan Morkill House) Ltd,,,,,08/01/2015,PI1026670,"3,056.68",,P&V Residential Over 65,,,,,,No,
The Royal Borough of Kensington and Chelsea,RBKC,,Operations,AS6,,GCH (Alan Morkill House) Ltd,,,,,08/01/2015,PI1026670,"2,160.00",,P&V Residential Over 65,,,,,,No,
The Royal Borough of Kensington and Chelsea,RBKC,,Operations,AS6,,GCH (Alan Morkill House) Ltd,,,,,08/01/2015,PI1026670,"1,637.51",,P&V Residential Over 65,,,,,,No,
The Royal Borough of Kensington and Chelsea,RBKC,,Operations,AS6,,GCH (Alan Morkill House) Ltd,,,,,08/01/2015,PI1026670,"3,056.68",,P&V Residential Over 65,,,,,,No,
The Royal Borough of Kensington and Chelsea,RBKC,,Operations,AS6,,GCH (Alan Morkill House) Ltd,,,,,08/01/2015,PI1026670,-609.68,,Client Cntb Resid Over 65,,,,,,No,
The Royal Borough of Kensington and Chelsea,RBKC,,Operations,AS6,,GCH (Alan Morkill House) Ltd,,,,,08/01/2015,PI1026670,-520.44,,Client Cntb Resid Over 65,,,,,,No,
The Royal Borough of Kensington and Chelsea,RBKC,,Operations,AS6,,GCH (Alan Morkill House) Ltd,,,,,08/01/2015,PI1026670,-845.60,,Client Cntb Resid Over 65,,,,,,No,
The Royal Borough of Kensington and Chelsea,RBKC,,Operations,AS6,,GCH (Alan Morkill House) Ltd,,,,,08/01/2015,PI1026670,"3,056.44",,P&V Residential,,,,,,No,
The Royal Borough of Kensington and Chelsea,RBKC,,Operations,AS6,,GCH (Alan Morkill House) Ltd,,,,,08/01/2015,PI1026670,694.29,,P&V Residential,,,,,,No,
The Royal Borough of Kensington and Chelsea,RBKC,,Operations,AS6,,GCH (Alan Morkill House) Ltd,,,,,08/01/2015,PI1026670,"3,056.68",,P&V Residential Over 65,,,,,,No,
The Royal Borough of Kensington and Chelsea,RBKC,,Operations,AS6,,GCH (Alan Morkill House) Ltd,,,,,08/01/2015,PI1026670,"-2,472.25",,P&V Residential Over 65,,,,,,No,
The Royal Borough of Kensington and Chelsea,RBKC,,Operations,AS6,,GCH (Alan Morkill House) Ltd,,,,,08/01/2015,PI1026670,682.20,,P&V Residential Over 65,,,,,,No,
The Royal Borough of Kensington and Chelsea,RBKC,,Operations,AS6,,GCH (Alan Morkill House) Ltd,,,,,08/01/2015,PI1026670,"3,056.68",,P&V Residential Over 65,,,,,,No,
The Royal Borough of Kensington and Chelsea,RBKC,,Operations,AS6,,GCH (Alan Morkill House) Ltd,,,,,08/01/2015,PI1026670,"2,160.00",,P&V Residential Over 65,,,,,,No,
The Royal Borough of Kensington and Chelsea,RBKC,,Operations,AS6,,GCH (Alan Morkill House) Ltd,,,,,08/01/2015,PI1026670,"3,056.68",,P&V Residential Over 65,,,,,,No,
The Royal Borough of Kensington and Chelsea,RBKC,,Operations,AS6,,GCH (Alan Morkill House) Ltd,,,,,08/01/2015,PI1026670,"2,233.00",,P&V Residential Over 65,,,,,,No,
The Royal Borough of Kensington and Chelsea,RBKC,,Operations,AS6,,GCH (Alan Morkill House) Ltd,,,,,08/01/2015,PI1026670,"3,056.68",,P&V Residential Over 65,,,,,,No,
The Royal Borough of Kensington and Chelsea,RBKC,,Operations,AS6,,GCH (Alan Morkill House) Ltd,,,,,08/01/2015,PI1026670,"3,056.68",,P&V Residential Over 65,,,,,,No,
The Royal Borough of Kensington and Chelsea,RBKC,,Operations,AS6,,GCH (Alan Morkill House) Ltd,,,,,08/01/2015,PI1026670,"3,056.68",,P&V Residential Over 65,,,,,,No,
The Royal Borough of Kensington and Chelsea,RBKC,,Operations,AS6,,GCH (Alan Morkill House) Ltd,,,,,08/01/2015,PI1026670,"3,056.68",,P&V Residential Over 65,,,,,,No,
The Royal Borough of Kensington and Chelsea,RBKC,,Operations,AS6,,GCH (Alan Morkill House) Ltd,,,,,08/01/2015,PI1026670,681.43,,P&V Residential Over 65,,,,,,No,
The Royal Borough of Kensington and Chelsea,RBKC,,Operations,AS6,,GCH (Alan Morkill House) Ltd,,,,,08/01/2015,PI1026670,"3,056.68",,P&V Residential Over 65,,,,,,No,
The Royal Borough of Kensington and Chelsea,RBKC,,Operations,AS6,,GCH (Alan Morkill House) Ltd,,,,,08/01/2015,PI1026670,"3,056.68",,P&V Residential Over 65,,,,,,No,
The Royal Borough of Kensington and Chelsea,RBKC,,Operations,AS6,,GCH (Alan Morkill House) Ltd,,,,,08/01/2015,PI1026670,"3,056.68",,P&V Residential Over 65,,,,,,No,
The Royal Borough of Kensington and Chelsea,RBKC,,Operations,AS6,,GCH (Alan Morkill House) Ltd,,,,,08/01/2015,PI1026670,"3,056.68",,P&V Residential Over 65,,,,,,No,
The Royal Borough of Kensington and Chelsea,RBKC,,Operations,AS6,,GCH (Alan Morkill House) Ltd,,,,,08/01/2015,PI1026670,"3,056.68",,P&V Residential Over 65,,,,,,No,
The Royal Borough of Kensington and Chelsea,RBKC,,Operations,AS6,,GCH (Alan Morkill House) Ltd,,,,,08/01/2015,PI1026670,"3,056.68",,P&V Residential Over 65,,,,,,No,
The Royal Borough of Kensington and Chelsea,RBKC,,Operations,AS6,,GCH (Alan Morkill House) Ltd,,,,,08/01/2015,PI1026670,"-3,056.68",,Client Cntb Resid Over 65,,,,,,No,
The Royal Borough of Kensington and Chelsea,RBKC,,Operations,AS6,,GCH (Alan Morkill House) Ltd,,,,,08/01/2015,PI1026670,548.92,,Client Cntb Resid Over 65,,,,,,No,
The Royal Borough of Kensington and Chelsea,RBKC,,Operations,AS6,,GCH (Alan Morkill House) Ltd,,,,,08/01/2015,PI1026670,"-1,264.86",,P&V Residential Over 65,,,,,,No,
The Royal Borough of Kensington and Chelsea,RBKC,,Operations,AS6,,GCH (Alan Morkill House) Ltd,,,,,08/01/2015,PI1026670,599.14,,P&V Residential Over 65,,,,,,No,
The Royal Borough of Kensington and Chelsea,RBKC,,Operations,AS6,,GCH (Alan Morkill House) Ltd,,,,,08/01/2015,PI1026670,"3,056.68",,P&V Residential Over 65,,,,,,No,
The Royal Borough of Kensington and Chelsea,RBKC,,Operations,AS6,,GCH (Alan Morkill House) Ltd,,,,,08/01/2015,PI1026670,"3,056.68",,P&V Residential Over 65,,,,,,No,
The Royal Borough of Kensington and Chelsea,RBKC,,Operations,AS6,,GCH (Alan Morkill House) Ltd,,,,,08/01/2015,PI1026670,"3,056.68",,P&V Residential Over 65,,,,,,No,
The Royal Borough of Kensington and Chelsea,RBKC,,Operations,AS6,,GCH (Alan Morkill House) Ltd,,,,,08/01/2015,PI1026670,-637.20,,Client Cntb Resid Over 65,,,,,,No,
The Royal Borough of Kensington and Chelsea,RBKC,,Provided Services/ MH Partners,AS5,,GCH (Alan Morkill House) Ltd,,,,,08/01/2015,PI1026670,"1,528.32",,P&V Residential,,,,,,No,
The Royal Borough of Kensington and Chelsea,RBKC,,Provided Services/ MH Partners,AS5,,GCH (Alan Morkill House) Ltd,,,,,08/01/2015,PI1026670,"1,116.52",,P&V Residential,,,,,,No,
The Royal Borough of Kensington and Chelsea,RBKC,,Provided Services/ MH Partners,AS5,,GCH (Alan Morkill House) Ltd,,,,,08/01/2015,PI1026670,"2,233.00",,P&V Residential Over 65,,,,,,No,
The Royal Borough of Kensington and Chelsea,RBKC,,Provided Services/ MH Partners,AS5,,GCH (Alan Morkill House) Ltd,,,,,08/01/2015,PI1026670,"1,966.04",,P&V Residential Over 65,,,,,,No,
The Royal Borough of Kensington and Chelsea,RBKC,,Provided Services/ MH Partners,AS5,,GCH (Alan Morkill House) Ltd,,,,,08/01/2015,PI1026670,"3,056.68",,P&V Residential Over 65,,,,,,No,
The Royal Borough of Kensington and Chelsea,RBKC,,Provided Services/ MH Partners,AS5,,GCH (Alan Morkill House) Ltd,,,,,08/01/2015,PI1026670,"1,528.36",,P&V Residential,,,,,,No,
The Royal Borough of Kensington and Chelsea,RBKC,,Provided Services/ MH Partners,AS5,,GCH (Alan Morkill House) Ltd,,,,,08/01/2015,PI1026670,"1,116.48",,P&V Residential Over 65,,,,,,No,
The Royal Borough of Kensington and Chelsea,RBKC,,Operations,AS6,,George Potter Care Home,,,,,08/01/2015,PI1026734,"2,303.64",,P&V Nursing Over 65,,,,,,No,
The Royal Borough of Kensington and Chelsea,RBKC,,Operations,AS6,,George Potter Care Home,,,,,08/01/2015,PI1026734,"4,442.83",,P&V Nursing Over 65,,,,,,No,
The Royal Borough of Kensington and Chelsea,RBKC,,Operations,AS6,,George Potter Care Home,,,,,08/01/2015,PI1026734,"5,456.10",,P&V Nursing Over 65,,,,,,No,
The Royal Borough of Kensington and Chelsea,RBKC,,Operations,AS6,,George Potter Care Home,,,,,08/01/2015,PI1026734,"-2,303.64",,Client Cntb Nursing Over 65,,,,,,No,
The Royal Borough of Kensington and Chelsea,RBKC,,Operations,AS6,,George Potter Care Home,,,,,08/01/2015,PI1026734,-927.88,,Client Cntb Nursing Over 65,,,,,,No,
The Royal Borough of Kensington and Chelsea,RBKC,,Operations,AS6,,George Potter Care Home,,,,,08/01/2015,PI1026734,"-1,139.50",,Client Cntb Nursing Over 65,,,,,,No,
The Royal Borough of Kensington and Chelsea,RBKC,,Operations,AS6,,George Potter Care Home,,,,,08/01/2015,PI1026734,"2,208.84",,P&V Nursing Over 65,,,,,,No,
The Royal Borough of Kensington and Chelsea,RBKC,,Operations,AS6,,George Potter Care Home,,,,,08/01/2015,PI1026734,"2,191.20",,P&V Nursing Over 65,,,,,,No,
The Royal Borough of Kensington and Chelsea,RBKC,,Operations,AS6,,George Potter Care Home,,,,,08/01/2015,PI1026734,"2,285.20",,P&V Nursing Over 65,,,,,,No,
The Royal Borough of Kensington and Chelsea,RBKC,,Operations,AS6,,George Potter Care Home,,,,,08/01/2015,PI1026734,-990.48,,Client Cntb Nursing Over 65,,,,,,No,
The Royal Borough of Kensington and Chelsea,RBKC,,Operations,AS6,,George Potter Care Home,,,,,08/01/2015,PI1026734,"2,365.20",,P&V Nursing Over 65,,,,,,No,
The Royal Borough of Kensington and Chelsea,RBKC,,Operations,AS6,,George Potter Care Home,,,,,08/01/2015,PI1026734,"4,407.93",,P&V Nursing Over 65,,,,,,No,
The Royal Borough of Kensington and Chelsea,RBKC,,Operations,AS6,,George Potter Care Home,,,,,08/01/2015,PI1026734,-875.81,,Client Cntb Nursing Over 65,,,,,,No,
The Royal Borough of Kensington and Chelsea,RBKC,,Children's Commissioning,SCC,,Goldsmiths College,,,,,08/01/2015,P21027154,"1,080.00",,Training Programme Delivery,,,,,,No,
The Royal Borough of Kensington and Chelsea,RBKC,,Children's Commissioning,SCC,,Goldsmiths College,,,,,08/01/2015,P21027153,"1,080.00",,Training Programme Delivery,,,,,,No,
The Royal Borough of Kensington and Chelsea,RBKC,,Operations,AS6,,Gordon Lodge Nursing Home,,,,,08/01/2015,PI1026735,"2,128.84",,P&V Nursing Over 65,,,,,,No,
The Royal Borough of Kensington and Chelsea,RBKC,,Operations,AS6,,Gracewell Healthcare 2 Ltd,,,,,08/01/2015,PI1026666,"2,260.04",,P&V Nursing Over 65,,,,,,No,
The Royal Borough of Kensington and Chelsea,RBKC,,Operations,AS6,,Grange Cottage Ltd,,,,,08/01/2015,PI1026736,"1,750.08",,P&V Residential Over 65,,,,,,No,
The Royal Borough of Kensington and Chelsea,RBKC,,Non Revenue,001,,Grillesafe Security Ltd,,,,,08/01/2015,P21027193,"1,567.00",,Capital Grants-General,,,,,,No,
The Royal Borough of Kensington and Chelsea,RBKC,,Operations,AS6,,Grove Care Partnership Ltd,,,,,08/01/2015,PI1026737,"9,279.88",,P&V Residential,,,,,,No,
The Royal Borough of Kensington and Chelsea,RBKC,,Operations,AS6,,Grove Care Partnership Ltd,,,,,08/01/2015,PI1026739,"9,362.36",,P&V Residential,,,,,,No,
The Royal Borough of Kensington and Chelsea,RBKC,,Operations,AS6,,Grove Care Partnership Ltd,,,,,08/01/2015,PI1026760,"7,612.52",,P&V Residential,,,,,,No,
The Royal Borough of Kensington and Chelsea,RBKC,,Commissioning,AS4,,Hakima Daoudi,,,,,08/01/2015,P41027046,500.00,,Service To Carers,,,,,,No,
The Royal Borough of Kensington and Chelsea,RBKC,,Provided Services/ MH Partners,AS5,,Havelock Court Nursing Centre,,,,,08/01/2015,PI1026742,"3,473.80",,P&V Nursing Over 65,,,,,,No,
The Royal Borough of Kensington and Chelsea,RBKC,,Provided Services/ MH Partners,AS5,,Havelock Court Nursing Centre,,,,,08/01/2015,PI1026742,-752.16,,Client Cntb Nursing Over 65,,,,,,No,
The Royal Borough of Kensington and Chelsea,RBKC,,Operations,AS6,,HC One Ltd,,,,,08/01/2015,PI1026677,"2,205.20",,P&V Nursing Over 65,,,,,,No,
The Royal Borough of Kensington and Chelsea,RBKC,,Operations,AS6,,HC One Ltd,,,,,08/01/2015,PI1026784,"1,976.00",,P&V Residential Over 65,,,,,,No,
The Royal Borough of Kensington and Chelsea,RBKC,,Operations,AS6,,HCI Ltd - Larchwood Care Home,,,,,08/01/2015,PI1026763,"1,934.52",,P&V Residential Over 65,,,,,,No,
The Royal Borough of Kensington and Chelsea,RBKC,,Operations,AS6,,HCI Ltd - Larchwood Care Home,,,,,08/01/2015,PI1026763,-600.08,,Client Cntb Resid Over 65,,,,,,No,
The Royal Borough of Kensington and Chelsea,RBKC,,Operations,AS6,,Hestia Housing & Support,,,,,08/01/2015,PI1026747,"2,621.04",,P&V Residential,,,,,,No,
The Royal Borough of Kensington and Chelsea,RBKC,,Operations,AS6,,High Quality Lifestyles Ltd,,,,,08/01/2015,PI1026748,"15,136.00",,P&V Residential,,,,,,No,
The Royal Borough of Kensington and Chelsea,RBKC,,Environmental Health,YEH,,Highfield Awarding Body for Compliance,,,,,08/01/2015,P21027188,"1,104.20",,Materials Purchase-Educational,,,,,,No,
The Royal Borough of Kensington and Chelsea,RBKC,,Operations,AS6,,Hill House (Malmesbury) Ltd,,,,,08/01/2015,PI1026749,"2,460.00",,P&V Residential Over 65,,,,,,No,
The Royal Borough of Kensington and Chelsea,RBKC,,School Funding,SSF,,Holy Trinity School,,,,,08/01/2015,P41027122,"280,525.78",,Grants Given-Misc,,,,,,No,
The Royal Borough of Kensington and Chelsea,RBKC,,Operations,AS6,,Homefield College,,,,,08/01/2015,PI1026751,"2,271.84",,P&V Residential,,,,,,No,
The Royal Borough of Kensington and Chelsea,RBKC,,Operations,AS6,,Homefield Court,,,,,08/01/2015,PI1026752,"2,160.00",,P&V Residential,,,,,,No,
The Royal Borough of Kensington and Chelsea,RBKC,,Non Revenue,001,,Hyde Park Healthcare Ltd,,,,,08/01/2015,P41027096,"2,752.32",,Payments,,,,,,No,
The Royal Borough of Kensington and Chelsea,RBKC,,Tri-Borough Education Service,SED,,IHS Corporation Ltd,,,,,08/01/2015,P21026915,"4,226.40",,General Hired & Contracted Ser,,,,,,No,
The Royal Borough of Kensington and Chelsea,RBKC,,Children's Commissioning,SCC,,J T Epps,,,,,08/01/2015,P21027146,600.00,,Foster Carers Training,,,,,,No,
The Royal Borough of Kensington and Chelsea,RBKC,,Operations,AS6,,Jeesal Residential Care Homes,,,,,08/01/2015,PI1026776,"4,016.56",,P&V Residential,,,,,,No,
The Royal Borough of Kensington and Chelsea,RBKC,,Operations,AS6,,Jeesal Residential Care Service,,,,,08/01/2015,PI1026849,"8,177.96",,P&V Residential,,,,,,No,
The Royal Borough of Kensington and Chelsea,RBKC,,Operations,AS6,,Jeesal Residential Care Services,,,,,08/01/2015,PI1026766,"3,690.32",,P&V Residential,,,,,,No,
The Royal Borough of Kensington and Chelsea,RBKC,,Operations,AS6,,Jeesal Residential Care Services,,,,,08/01/2015,PI1026818,"3,798.36",,P&V Residential,,,,,,No,
The Royal Borough of Kensington and Chelsea,RBKC,,Operations,AS6,,Jeesal Residential Care Services,,,,,08/01/2015,PI1026859,"4,105.96",,P&V Residential,,,,,,No,
The Royal Borough of Kensington and Chelsea,RBKC,,Provided Services/ MH Partners,AS5,,Jewish Care,,,,,08/01/2015,PI1026758,"2,568.44",,P&V Residential,,,,,,No,
The Royal Borough of Kensington and Chelsea,RBKC,,Operations,AS6,,Just Homes,,,,,08/01/2015,PI1026759,"4,900.48",,P&V Residential Over 65,,,,,,No,
The Royal Borough of Kensington and Chelsea,RBKC,,Operations,AS6,,Korcare Ltd,,,,,08/01/2015,PI1026789,"2,456.00",,P&V Residential Over 65,,,,,,No,
The Royal Borough of Kensington and Chelsea,RBKC,,Operations,AS6,,L' Arche Bognor,,,,,08/01/2015,PI1026761,863.55,,P&V Residential,,,,,,No,
The Royal Borough of Kensington and Chelsea,RBKC,,Operations,AS6,,L' Arche Bognor,,,,,08/01/2015,PI1026761,"2,158.85",,P&V Residential,,,,,,No,
The Royal Borough of Kensington and Chelsea,RBKC,,Operations,AS6,,Lansdowne Care Home,,,,,08/01/2015,PI1026762,"2,020.44",,P&V Nursing,,,,,,No,
The Royal Borough of Kensington and Chelsea,RBKC,,Non Revenue,001,,Layla Khassal,,,,,08/01/2015,P41027106,884.60,,Payments,,,,,,No,
The Royal Borough of Kensington and Chelsea,RBKC,,Operations,AS6,,Leonard Cheshire Foundation,,,,,08/01/2015,PI1026673,"3,576.04",,P&V Residential,,,,,,No,
The Royal Borough of Kensington and Chelsea,RBKC,,Operations,AS6,,Life Opportunities Trust,,,,,08/01/2015,PI1026768,"3,297.64",,P&V Residential Over 65,,,,,,No,
The Royal Borough of Kensington and Chelsea,RBKC,,Operations,AS6,,Life Style Care Plc,,,,,08/01/2015,PI1026705,"2,565.20",,P&V Nursing Over 65,,,,,,No,
The Royal Borough of Kensington and Chelsea,RBKC,,Operations,AS6,,Life Style Care Plc,,,,,08/01/2015,PI1026705,"3,706.72",,P&V Nursing,,,,,,No,
The Royal Borough of Kensington and Chelsea,RBKC,,Operations,AS6,,Life Style Care Plc,,,,,08/01/2015,PI1026746,"-1,098.13",,P&V Nursing Over 65,,,,,,No,
The Royal Borough of Kensington and Chelsea,RBKC,,Operations,AS6,,Life Style Care Plc,,,,,08/01/2015,PI1026746,591.30,,P&V Nursing Over 65,,,,,,No,
The Royal Borough of Kensington and Chelsea,RBKC,,Operations,AS6,,Life Style Care Plc,,,,,08/01/2015,PI1026746,"2,880.00",,P&V Residential Over 65,,,,,,No,
The Royal Borough of Kensington and Chelsea,RBKC,,Operations,AS6,,Life Style Care Plc,,,,,08/01/2015,PI1026746,-922.12,,Client Cntb Resid Over 65,,,,,,No,
The Royal Borough of Kensington and Chelsea,RBKC,,Operations,AS6,,Life Style Care Plc,,,,,08/01/2015,PI1026840,"2,756.44",,P&V Nursing,,,,,,No,
The Royal Borough of Kensington and Chelsea,RBKC,,Operations,AS6,,Liftetime Care UK Ltd,,,,,08/01/2015,PI1026796,"2,243.80",,P&V Nursing Over 65,,,,,,No,
The Royal Borough of Kensington and Chelsea,RBKC,,Operations,AS6,,Livability,,,,,08/01/2015,PI1026769,"4,410.32",,P&V Residential,,,,,,No,
The Royal Borough of Kensington and Chelsea,RBKC,,Hsg Strategy and Regeneration,HSR,,London Borough Of Hammersmith & Fulham,,,,,08/01/2015,P21027234,"15,000.00",,Enabling Initiatives,,,,,,No,
The Royal Borough of Kensington and Chelsea,RBKC,,Operations,AS6,,London Borough Of Hillingdon,,,,,08/01/2015,PI1026741,"7,008.16",,P&V Residential Over 65,,,,,,No,
The Royal Borough of Kensington and Chelsea,RBKC,,Operations,AS6,,London Borough Of Hillingdon,,,,,08/01/2015,PI1026741,"7,008.16",,P&V Residential Over 65,,,,,,No,
The Royal Borough of Kensington and Chelsea,RBKC,,Provided Services/ MH Partners,AS5,,London Cyrenians Housing Ltd,,,,,08/01/2015,PI1026718,"4,856.00",,VO Supp Accom,,,,,,No,
The Royal Borough of Kensington and Chelsea,RBKC,,Hsg Needs and Homelessness,HNH,,London Cyrenians Housing Ltd,,,,,08/01/2015,P21027161,"73,123.17",,Management Fee,,,,,,No,
The Royal Borough of Kensington and Chelsea,RBKC,,Hsg Needs and Homelessness,HNH,,London Cyrenians Housing Ltd,,,,,08/01/2015,P21027160,"18,284.67",,Management Fee,,,,,,No,
The Royal Borough of Kensington and Chelsea,RBKC,,Operations,AS6,,Long Furrows,,,,,08/01/2015,PI1026770,"3,610.16",,P&V Residential,,,,,,No,
The Royal Borough of Kensington and Chelsea,RBKC,,Human Resources,CHG,,Lumesse Ltd,,,,,08/01/2015,P21026921,"14,890.02",,Computer Software Licences,,,,,,No,
The Royal Borough of Kensington and Chelsea,RBKC,,Corporate Property,CBV,,M Jones & Co Ltd,,,,,08/01/2015,P21027142,"4,945.00",,Repairs & Maint to Bldgs-Gen,,,,,,No,
The Royal Borough of Kensington and Chelsea,RBKC,,Corporate Property,CBV,,M Jones & Co Ltd,,,,,08/01/2015,P21027143,"1,750.00",,Repairs & Maint to Bldgs-Gen,,,,,,No,
The Royal Borough of Kensington and Chelsea,RBKC,,Corporate Property,CBV,,M Jones & Co Ltd,,,,,08/01/2015,P21027144,"1,750.00",,Repairs & Maint to Bldgs-Gen,,,,,,No,
The Royal Borough of Kensington and Chelsea,RBKC,,Corporate Property,CBV,,M Jones & Co Ltd,,,,,08/01/2015,P21027166,"4,900.00",,Repairs & Maint to Bldgs-Gen,,,,,,No,
The Royal Borough of Kensington and Chelsea,RBKC,,Corporate Property,CBV,,M Jones & Co Ltd,,,,,08/01/2015,P21027147,"4,999.00",,Repairs & Maint to Bldgs-Gen,,,,,,No,
The Royal Borough of Kensington and Chelsea,RBKC,,Operations,AS6,,Macintyre Care,,,,,08/01/2015,PI1026774,"3,440.88",,P&V Residential,,,,,,No,
The Royal Borough of Kensington and Chelsea,RBKC,,Operations,AS6,,Macintyre Care,,,,,08/01/2015,PI1026774,"1,478.08",,P&V Day Care,,,,,,No,
The Royal Borough of Kensington and Chelsea,RBKC,,Provided Services/ MH Partners,AS5,,Maison Moti Ltd,,,,,08/01/2015,PI1026692,"2,123.48",,VO Supp Accom,,,,,,No,
The Royal Borough of Kensington and Chelsea,RBKC,,Provided Services/ MH Partners,AS5,,Maison Moti Ltd,,,,,08/01/2015,PI1026692,"1,477.88",,VO Supp Accom,,,,,,No,
The Royal Borough of Kensington and Chelsea,RBKC,,Operations,AS6,,Maison Moti Ltd,,,,,08/01/2015,PI1026775,"2,500.00",,P&V Residential,,,,,,No,
The Royal Borough of Kensington and Chelsea,RBKC,,Operations,AS6,,Manor Court Care Norfolk Ltd,,,,,08/01/2015,PI1026821,"2,030.00",,P&V Residential Over 65,,,,,,No,
The Royal Borough of Kensington and Chelsea,RBKC,,Operations,AS6,,Manor House Residential Home,,,,,08/01/2015,PI1026777,"2,109.92",,P&V Residential Over 65,,,,,,No,
The Royal Borough of Kensington and Chelsea,RBKC,,Operations,AS6,,Manor Place Nursing Home,,,,,08/01/2015,PI1026778,"2,190.76",,P&V Nursing Over 65,,,,,,No,
The Royal Borough of Kensington and Chelsea,RBKC,,Commissioning,AS4,,Margaret Adams,,,,,08/01/2015,P41027048,600.00,,Service To Carers,,,,,,No,
The Royal Borough of Kensington and Chelsea,RBKC,,School Funding,SSF,,Marlborough Primary School,,,,,08/01/2015,P41027121,"400,755.57",,Grants Given-Misc,,,,,,No,
The Royal Borough of Kensington and Chelsea,RBKC,,Human Resources,CHG,,Martin Ballard Learning & Development Se,,,,,08/01/2015,P21027232,"1,000.00",,Annual Programme,,,,,,No,
The Royal Borough of Kensington and Chelsea,RBKC,,School Funding,SSF,,Maxilla Nursery School,,,,,08/01/2015,P41027078,"1,151.25",,Grants Given-Misc,,,,,,No,
The Royal Borough of Kensington and Chelsea,RBKC,,Operations,AS6,,Methodist Homes For The Aged,,,,,08/01/2015,PI1026805,"2,564.00",,P&V Residential Over 65,,,,,,No,
The Royal Borough of Kensington and Chelsea,RBKC,,Operations,AS6,,Methodist Homes For The Aged,,,,,08/01/2015,PI1026805,"2,380.00",,P&V Residential Over 65,,,,,,No,
The Royal Borough of Kensington and Chelsea,RBKC,,Tri-Borough Education Service,SED,,Michelmores Llp,,,,,08/01/2015,P21027162,"1,717.00",,Legal Costs,,,,,,No,
The Royal Borough of Kensington and Chelsea,RBKC,,Operations,AS6,,Milbury Care Services,,,,,08/01/2015,PI1026783,"5,199.80",,P&V Residential Over 65,,,,,,No,
The Royal Borough of Kensington and Chelsea,RBKC,,Operations,AS6,,Milbury Care Services,,,,,08/01/2015,PI1026783,"4,728.80",,P&V Residential,,,,,,No,
The Royal Borough of Kensington and Chelsea,RBKC,,Operations,AS6,,Milbury Care Services,,,,,08/01/2015,PI1026783,"4,728.80",,P&V Residential Over 65,,,,,,No,
The Royal Borough of Kensington and Chelsea,RBKC,,Operations,AS6,,Milbury Care Services,,,,,08/01/2015,PI1026783,-525.00,,Client Cntb Resid Over 65,,,,,,No,
The Royal Borough of Kensington and Chelsea,RBKC,,Operations,AS6,,Mission Care,,,,,08/01/2015,PI1026753,"-5,661.99",,P&V Nursing Over 65,,,,,,No,
The Royal Borough of Kensington and Chelsea,RBKC,,Operations,AS6,,Mission Care,,,,,08/01/2015,PI1026753,"8,178.43",,P&V Nursing Over 65,,,,,,No,
The Royal Borough of Kensington and Chelsea,RBKC,,Operations,AS6,,National Autistic Society,,,,,08/01/2015,PI1026785,"5,031.28",,P&V Residential,,,,,,No,
The Royal Borough of Kensington and Chelsea,RBKC,,Operations,AS6,,National Autistic Society,,,,,08/01/2015,PI1026785,"1,954.88",,P&V Day Care,,,,,,No,
The Royal Borough of Kensington and Chelsea,RBKC,,Operations,AS6,,National Society for Epilepsy,,,,,08/01/2015,PI1026781,570.00,,P&V Residential,,,,,,No,
The Royal Borough of Kensington and Chelsea,RBKC,,Operations,AS6,,National Society for Epilepsy,,,,,08/01/2015,PI1026781,"8,655.00",,P&V Residential,,,,,,No,
The Royal Borough of Kensington and Chelsea,RBKC,,Operations,AS6,,Nazareth House,,,,,08/01/2015,PI1026786,"2,133.20",,P&V Nursing Over 65,,,,,,No,
The Royal Borough of Kensington and Chelsea,RBKC,,Operations,AS6,,Nazareth House,,,,,08/01/2015,PI1026786,"2,133.20",,P&V Nursing Over 65,,,,,,No,
The Royal Borough of Kensington and Chelsea,RBKC,,Operations,AS6,,Newland Hurst Ltd,,,,,08/01/2015,PI1026787,"2,025.88",,P&V Residential,,,,,,No,
The Royal Borough of Kensington and Chelsea,RBKC,,Operations,AS6,,Nightingale Hammerson,,,,,08/01/2015,PI1026788,"2,387.08",,P&V Nursing Over 65,,,,,,No,
The Royal Borough of Kensington and Chelsea,RBKC,,Operations,AS6,,Nightingale Hammerson,,,,,08/01/2015,PI1026788,-573.56,,Client Cntb Nursing Over 65,,,,,,No,
The Royal Borough of Kensington and Chelsea,RBKC,,Operations,AS6,,Norbury Hall Residential Care Home Ltd,,,,,08/01/2015,PI1026790,"-2,960.00",,P&V Residential Over 65,,,,,,No,
The Royal Borough of Kensington and Chelsea,RBKC,,Operations,AS6,,Norbury Hall Residential Care Home Ltd,,,,,08/01/2015,PI1026790,"5,200.00",,P&V Residential Over 65,,,,,,No,
The Royal Borough of Kensington and Chelsea,RBKC,,Operations,AS6,,Norbury Hall Residential Care Home Ltd,,,,,08/01/2015,PI1026790,"2,160.00",,P&V Residential Over 65,,,,,,No,
The Royal Borough of Kensington and Chelsea,RBKC,,Operations,AS6,,Norbury Hall Residential Care Home Ltd,,,,,08/01/2015,PI1026790,"2,160.00",,P&V Residential Over 65,,,,,,No,
The Royal Borough of Kensington and Chelsea,RBKC,,Operations,AS6,,Norbury Hall Residential Care Home Ltd,,,,,08/01/2015,PI1026790,"2,160.00",,P&V Residential Over 65,,,,,,No,
The Royal Borough of Kensington and Chelsea,RBKC,,Operations,AS6,,Norbury Hall Residential Care Home Ltd,,,,,08/01/2015,PI1026790,-790.84,,Client Cntb Resid Over 65,,,,,,No,
The Royal Borough of Kensington and Chelsea,RBKC,,Operations,AS6,,Norbury Hall Residential Care Home Ltd,,,,,08/01/2015,PI1026790,"1,080.00",,P&V Residential Over 65,,,,,,No,
The Royal Borough of Kensington and Chelsea,RBKC,,Operations,AS6,,Norbury Hall Residential Care Home Ltd,,,,,08/01/2015,PI1026790,"2,160.00",,P&V Residential Over 65,,,,,,No,
The Royal Borough of Kensington and Chelsea,RBKC,,Operations,AS6,,Norbury Hall Residential Care Home Ltd,,,,,08/01/2015,PI1026790,"2,160.00",,P&V Residential Over 65,,,,,,No,
The Royal Borough of Kensington and Chelsea,RBKC,,Operations,AS6,,Norbury Hall Residential Care Home Ltd,,,,,08/01/2015,PI1026790,-639.12,,Client Cntb Resid Over 65,,,,,,No,
The Royal Borough of Kensington and Chelsea,RBKC,,Provided Services/ MH Partners,AS5,,Norbury Hall Residential Care Home Ltd,,,,,08/01/2015,PI1026790,"1,080.00",,P&V Residential,,,,,,No,
The Royal Borough of Kensington and Chelsea,RBKC,,Provided Services/ MH Partners,AS5,,Norbury Hall Residential Care Home Ltd,,,,,08/01/2015,PI1026790,"2,160.00",,P&V Residential Over 65,,,,,,No,
The Royal Borough of Kensington and Chelsea,RBKC,,Human Resources,CHG,,NorthgateArinso UK Ltd,,,,,08/01/2015,P21026912,"16,355.59",,HR Systems Contract,,,,,,No,
The Royal Borough of Kensington and Chelsea,RBKC,,Operations,AS6,,Norwood Green Care Centre,,,,,08/01/2015,PI1026792,"2,128.44",,P&V Nursing Over 65,,,,,,No,
The Royal Borough of Kensington and Chelsea,RBKC,,Operations,AS6,,Norwood Green Care Centre,,,,,08/01/2015,PI1026792,"2,137.56",,P&V Nursing Over 65,,,,,,No,
The Royal Borough of Kensington and Chelsea,RBKC,,Commissioning,AS4,,Nozar Mohseni-Boroujerdi,,,,,08/01/2015,P41027045,500.00,,Service To Carers,,,,,,No,
The Royal Borough of Kensington and Chelsea,RBKC,,Human Resources,CHG,,O H Practice Ltd,,,,,08/01/2015,P21026946,"2,800.00",,Occupational Health Scheme,,,,,,No,
The Royal Borough of Kensington and Chelsea,RBKC,,Operations,AS6,,Oakfield (Easton Maudit) Ltd,,,,,08/01/2015,PI1026793,"2,978.80",,P&V Residential,,,,,,No,
The Royal Borough of Kensington and Chelsea,RBKC,,Provided Services/ MH Partners,AS5,,Oakley House,,,,,08/01/2015,PI1026794,"2,252.76",,P&V Residential Over 65,,,,,,No,
The Royal Borough of Kensington and Chelsea,RBKC,,Operations,AS6,,Oasis Care & Training Agency (OCTA),,,,,08/01/2015,P21026944,"1,049.09",,Home Care over 65,,,,,,No,
The Royal Borough of Kensington and Chelsea,RBKC,,Operations,AS6,,Oasis Care & Training Agency (OCTA),,,,,08/01/2015,P21026943,"2,320.03",,Home Care over 65,,,,,,No,
The Royal Borough of Kensington and Chelsea,RBKC,,School Funding,SSF,,Oratory RC Primary School,,,,,08/01/2015,P41027120,"251,214.60",,Grants Given-Misc,,,,,,No,
The Royal Borough of Kensington and Chelsea,RBKC,,School Funding,SSF,,Our Lady of Victories RC Primary School,,,,,08/01/2015,P41027119,"270,124.31",,Grants Given-Misc,,,,,,No,
The Royal Borough of Kensington and Chelsea,RBKC,,Operations,AS6,,Outlook House,,,,,08/01/2015,PI1026757,"3,803.88",,P&V Residential,,,,,,No,
The Royal Borough of Kensington and Chelsea,RBKC,,School Funding,SSF,,Oxford Gardens Primary School,,,,,08/01/2015,P41027118,"546,189.65",,Grants Given-Misc,,,,,,No,
The Royal Borough of Kensington and Chelsea,RBKC,,Operations,AS6,,Paradise Community,,,,,08/01/2015,PI1026797,"3,763.64",,P&V Residential,,,,,,No,
The Royal Borough of Kensington and Chelsea,RBKC,,School Funding,SSF,,Park Walk Primary School,,,,,08/01/2015,P41027117,"307,753.41",,Grants Given-Misc,,,,,,No,
The Royal Borough of Kensington and Chelsea,RBKC,,School Funding,SSF,,Parkwood Hall School,,,,,08/01/2015,P41027081,"1,628.75",,Grants Given-Misc,,,,,,No,
The Royal Borough of Kensington and Chelsea,RBKC,,School Funding,SSF,,Parkwood Hall School,,,,,08/01/2015,P41027131,"4,800.00",,Grants Given-Misc,,,,,,No,
The Royal Borough of Kensington and Chelsea,RBKC,,School Funding,SSF,,Parkwood Hall School,,,,,08/01/2015,P41027131,"1,300.88",,Grants Given-Misc,,,,,,No,
The Royal Borough of Kensington and Chelsea,RBKC,,Non Revenue,001,,Paypacket Ltd,,,,,08/01/2015,P41026905,"3,745.43",,Payments,,,,,,No,
The Royal Borough of Kensington and Chelsea,RBKC,,Operations,AS6,,PCS Ltd T/a Elizabeth Anne,,,,,08/01/2015,PI1026717,"1,944.92",,P&V Nursing Over 65,,,,,,No,
The Royal Borough of Kensington and Chelsea,RBKC,,Operations,AS6,,Phoenix Care Homes Ltd,,,,,08/01/2015,PI1026798,"2,757.40",,P&V Residential,,,,,,No,
The Royal Borough of Kensington and Chelsea,RBKC,,Finance & Resources,SFR,,Picklesticks Reporting Ltd,,,,,08/01/2015,P21027231,"4,550.00",,Salaries,,,,,,No,
The Royal Borough of Kensington and Chelsea,RBKC,,Operations,AS6,,Presentation Sisters Care Centre,,,,,08/01/2015,PI1026800,"2,025.04",,P&V Nursing Over 65,,,,,,No,
The Royal Borough of Kensington and Chelsea,RBKC,,Non Revenue,001,,Project Centre,,,,,08/01/2015,P21026914,"9,383.27",,Construction-Main Ctrctrs A/C,,,,,,No,
The Royal Borough of Kensington and Chelsea,RBKC,,Corporate Property,CBV,,Proun Architects,,,,,08/01/2015,P21027182,"1,450.00",,Consultants,,,,,,No,
The Royal Borough of Kensington and Chelsea,RBKC,,Provided Services/ MH Partners,AS5,,PureCare Care Homes Ltd,,,,,08/01/2015,PI1026807,"3,822.00",,P&V Residential,,,,,,No,
The Royal Borough of Kensington and Chelsea,RBKC,,Provided Services/ MH Partners,AS5,,Purple Care Ltd,,,,,08/01/2015,PI1026772,"2,233.00",,P&V Residential,,,,,,No,
The Royal Borough of Kensington and Chelsea,RBKC,,Non Revenue,001,,Pursuing Indepentent Paths,,,,,08/01/2015,P41027103,"1,274.56",,Payments,,,,,,No,
The Royal Borough of Kensington and Chelsea,RBKC,,Operations,AS6,,Quantum Care Ltd,,,,,08/01/2015,PI1026743,"2,800.00",,P&V Residential Over 65,,,,,,No,
The Royal Borough of Kensington and Chelsea,RBKC,,Operations,AS6,,R G Sparkes Ltd,,,,,08/01/2015,PI1026696,"1,958.24",,P&V Residential Over 65,,,,,,No,
The Royal Borough of Kensington and Chelsea,RBKC,,Operations,AS6,,R G Sparkes Ltd,,,,,08/01/2015,PI1026696,-792.48,,Client Cntb Resid Over 65,,,,,,No,
The Royal Borough of Kensington and Chelsea,RBKC,,Non Revenue,001,,R&B DOORS LTD,,,,,08/01/2015,PI1026660,713.00,,RR-Car Park Gates,,,,,,No,
The Royal Borough of Kensington and Chelsea,RBKC,,Operations,AS6,,Rainbow House Homes (London) Ltd,,,,,08/01/2015,PI1026801,"4,121.00",,P&V Residential,,,,,,No,
The Royal Borough of Kensington and Chelsea,RBKC,,Provided Services/ MH Partners,AS5,,Rainbow Lodge Nursing Home,,,,,08/01/2015,PI1026802,"2,088.00",,P&V Nursing,,,,,,No,
The Royal Borough of Kensington and Chelsea,RBKC,,Provided Services/ MH Partners,AS5,,Randall Care Homes,,,,,08/01/2015,PI1026803,"3,502.76",,P&V Residential,,,,,,No,
The Royal Borough of Kensington and Chelsea,RBKC,,Provided Services/ MH Partners,AS5,,Randall Care Homes,,,,,08/01/2015,PI1026803,"3,100.00",,P&V Residential,,,,,,No,
The Royal Borough of Kensington and Chelsea,RBKC,,School Funding,SSF,,RBKC Colville Primary School,,,,,08/01/2015,P41027076,"42,310.00",,Grants Given-Misc,,,,,,No,
The Royal Borough of Kensington and Chelsea,RBKC,,School Funding,SSF,,RBKC Colville Primary School,,,,,08/01/2015,P41027124,"376,951.13",,Grants Given-Misc,,,,,,No,
The Royal Borough of Kensington and Chelsea,RBKC,,Tri-Borough Education Service,SED,,Real Training,,,,,08/01/2015,P21027208,"1,650.00",,Training Expenses,,,,,,No,
The Royal Borough of Kensington and Chelsea,RBKC,,Tri-Borough Education Service,SED,,Real Training,,,,,08/01/2015,P21027207,550.00,,Training Expenses,,,,,,No,
The Royal Borough of Kensington and Chelsea,RBKC,,Tri-Borough Education Service,SED,,Real Training,,,,,08/01/2015,P21027209,"1,100.00",,Training Expenses,,,,,,No,
The Royal Borough of Kensington and Chelsea,RBKC,,Family Services - RBKC,SKC,,Redact Details,,,,,08/01/2015,P41026906,"2,000.00",,S24 Assistance,,,,,,No,
The Royal Borough of Kensington and Chelsea,RBKC,,Operations,AS6,,Residential Community Care Ltd,,,,,08/01/2015,PI1026857,"7,291.60",,P&V Residential,,,,,,No,
The Royal Borough of Kensington and Chelsea,RBKC,,Operations,AS6,,Rookhurst Lodge Ltd,,,,,08/01/2015,PI1026808,"4,400.00",,P&V Residential Over 65,,,,,,No,
The Royal Borough of Kensington and Chelsea,RBKC,,Operations,AS6,,Rosenmanor Ltd,,,,,08/01/2015,PI1026809,"3,959.00",,P&V Residential Over 65,,,,,,No,
The Royal Borough of Kensington and Chelsea,RBKC,,Operations,AS6,,Rosenmanor Ltd,,,,,08/01/2015,PI1026809,"2,654.00",,P&V Residential,,,,,,No,
The Royal Borough of Kensington and Chelsea,RBKC,,Operations,AS6,,Royal Borough of Greenwich,,,,,08/01/2015,PI1026676,"3,327.08",,P&V Residential Over 65,,,,,,No,
The Royal Borough of Kensington and Chelsea,RBKC,,"Cleaner,Greener & Cultural Ser",YCG,,Royal College of Music,,,,,08/01/2015,P21026953,900.00,,Artist Fees,,,,,,No,
The Royal Borough of Kensington and Chelsea,RBKC,,Operations,AS6,,Royal Hospital for Neuro Disability,,,,,08/01/2015,PI1026810,"5,542.16",,P&V Residential,,,,,,No,
The Royal Borough of Kensington and Chelsea,RBKC,,Operations,AS6,,Royal Hospital for Neuro Disability,,,,,08/01/2015,PI1026811,"3,682.16",,P&V Nursing,,,,,,No,
The Royal Borough of Kensington and Chelsea,RBKC,,Operations,AS6,,Royal Society For Mentally Handicapped,,,,,08/01/2015,PI1026780,"2,737.60",,P&V Residential,,,,,,No,
The Royal Borough of Kensington and Chelsea,RBKC,,Safeguarding & LSCB,SGB,,Safer London Foundation,,,,,08/01/2015,P21027141,600.00,,Training Programme Delivery,,,,,,No,
The Royal Borough of Kensington and Chelsea,RBKC,,Operations,AS6,,Saffronland Homes,,,,,08/01/2015,PI1026684,"1,600.00",,P&V Residential Over 65,,,,,,No,
The Royal Borough of Kensington and Chelsea,RBKC,,Operations,AS6,,Saffronland Homes,,,,,08/01/2015,PI1026684,"5,202.96",,P&V Residential Over 65,,,,,,No,
The Royal Borough of Kensington and Chelsea,RBKC,,Operations,AS6,,Sanctuary Care Ltd,,,,,08/01/2015,PI1026665,"2,000.00",,P&V Residential Over 65,,,,,,No,
The Royal Borough of Kensington and Chelsea,RBKC,,Operations,AS6,,Scope Fees Department,,,,,08/01/2015,PI1026813,"2,861.60",,P&V Residential,,,,,,No,
The Royal Borough of Kensington and Chelsea,RBKC,,Non Revenue,001,,Scott Evans,,,,,08/01/2015,P21026954,570.00,,Construction-Main Ctrctrs A/C,,,,,,No,
The Royal Borough of Kensington and Chelsea,RBKC,,Safer Neighbourhoods,YSN,,Scott Evans,,,,,08/01/2015,P21026954,"1,140.00",,Planned Park Maintenance,,,,,,No,
The Royal Borough of Kensington and Chelsea,RBKC,,Safer Neighbourhoods,YSN,,Scott Evans,,,,,08/01/2015,P21026955,975.00,,Planned Park Maintenance,,,,,,No,
The Royal Borough of Kensington and Chelsea,RBKC,,Safer Neighbourhoods,YSN,,Scott Evans,,,,,08/01/2015,P21027210,650.00,,Planned Park Maintenance,,,,,,No,
The Royal Borough of Kensington and Chelsea,RBKC,,Operations,AS6,,Seeability,,,,,08/01/2015,PI1026815,"6,195.36",,P&V Residential,,,,,,No,
The Royal Borough of Kensington and Chelsea,RBKC,,School Funding,SSF,,Servite RC Primary School,,,,,08/01/2015,P41027116,"273,817.65",,Grants Given-Misc,,,,,,No,
The Royal Borough of Kensington and Chelsea,RBKC,,Corporate Property,CBV,,Session,,,,,08/01/2015,P41027051,"1,530.00",,Other Lettings Income,,,,,,No,
